{"text_format":"1","workbook":"xlsx","n_sheets":5,"sheets":["VAL_MONTHLY_ELECTRICITY","VAL_EXPLANATORY_NOTES","VAL_LISTS","Parameters","ELEC3"],"not_rendered":{"charts":0,"images":2,"macros":0,"external_links":1,"defined_names":10,"comments":1,"pivot_tables":0},"unopened":[],"bounds":{"document_bytes":16777216,"sheet_cells":100000,"rows_first":2000,"rows_last":500,"rows_between":2000,"halvings":0,"cell_chars":16384,"cell_head_chars":4096},"cells_cut":0,"cells_raw":0,"read":"whole","date_system":"1900"}

{"sheet":"VAL_MONTHLY_ELECTRICITY","index":0,"n_rows":36,"n_cols":41,"rows_kept":36,"cut":false,"hidden":false,"merged":[[1,37,1,39],[2,4,2,5],[2,7,2,8],[2,10,2,11],[2,13,2,14],[2,16,2,17],[2,19,2,20],[2,22,2,23],[2,25,2,26],[2,28,2,29],[2,31,2,32],[2,34,2,35],[2,37,2,38],[1,22,1,24],[1,25,1,27],[1,28,1,30],[1,4,1,6],[1,31,1,33],[1,34,1,36],[1,7,1,9],[1,10,1,12],[1,13,1,15],[1,16,1,18],[1,19,1,21]]}
[null,null,"Monthly Electricity Statistics Questionnaire"]
[null,null,"Country:",null,"January",null,null,"February",null,null,"March",null,null,"April",null,null,"May",null,null,"June",null,null,"July",null,null,"August",null,null,"September",null,null,"October",null,null,"November",null,null,"December"]
[null,null,"Year:",2021,"Updated?",null,null,"Updated?",null,null,"Updated?",null,null,"Updated?",null,"Y","Updated?",null,"Y","Updated?",null,null,"Updated?",null,null,"Updated?",null,null,"Updated?",null,null,"Updated?",null,"Y","Updated?",null,"Y","Updated?",null,"Y"]
[null,null,null,null,"GWh","Flag","Conf","GWh","Flag","Conf","GWh","Flag","Conf","GWh","Flag","Conf","GWh","Flag","Conf","GWh","Flag","Conf","GWh","Flag","Conf","GWh","Flag","Conf","GWh","Flag","Conf","GWh","Flag","Conf","GWh","Flag","Conf","GWh","Flag","Conf"]
[null,null,"Table 1: NET ELECTRICITY PRODUCTION"]
["NELEPROD",null,1,"Total net production",{"$f":"E7+E8+E14+E18+E21+E24+E25+E26","v":5931.7578457799982},null,null,{"$f":"H7+H8+H14+H18+H21+H24+H25+H26","v":5656.7911018599925},null,null,{"$f":"K7+K8+K14+K18+K21+K24+K25+K26","v":6061.8273824500056},null,null,{"$f":"N7+N8+N14+N18+N21+N24+N25+N26","v":5826.2198452600105},null,null,{"$f":"Q7+Q8+Q14+Q18+Q21+Q24+Q25+Q26","v":5997.7920093499924},null,null,{"$f":"T7+T8+T14+T18+T21+T24+T25+T26","v":0},null,null,{"$f":"W7+W8+W14+W18+W21+W24+W25+W26","v":0},null,null,{"$f":"Z7+Z8+Z14+Z18+Z21+Z24+Z25+Z26","v":0},null,null,{"$f":"AC7+AC8+AC14+AC18+AC21+AC24+AC25+AC26","v":0},null,null,{"$f":"AF7+AF8+AF14+AF18+AF21+AF24+AF25+AF26","v":0},null,null,{"$f":"AI7+AI8+AI14+AI18+AI21+AI24+AI25+AI26","v":0},null,null,{"$f":"AL7+AL8+AL14+AL18+AL21+AL24+AL25+AL26","v":0},null,null,"Total net production"]
["NUCLEAR",null,2,"Nuclear",0,null,null,0,null,null,0,null,null,0,null,null,0,null,null,0,null,null,0,null,null,0,null,null,0,null,null,0,null,null,0,null,null,null,null,null,"Nuclear"]
["COMBFUEL",null,3,"Conventional thermal",{"$f":"+SUM(E9:E13)","v":1311.8656015199988},null,null,{"$f":"+SUM(H9:H13)","v":1620.0428926899992},null,null,{"$f":"+SUM(K9:K13)","v":1189.1964084800002},null,null,{"$f":"+SUM(N9:N13)","v":1017.8605151199991},null,null,{"$f":"+SUM(Q9:Q13)","v":814.79172453000012},null,null,{"$f":"+SUM(T9:T13)","v":0},null,null,{"$f":"+SUM(W9:W13)","v":0},null,null,{"$f":"+SUM(Z9:Z13)","v":0},null,null,{"$f":"+SUM(AC9:AC13)","v":0},null,null,{"$f":"+SUM(AF9:AF13)","v":0},null,null,{"$f":"+SUM(AI9:AI13)","v":0},null,null,{"$f":"+SUM(AL9:AL13)","v":0},null,null,"Conventional thermal"]
["COAL",null,3.1,"Coal",512.43129035000004,null,null,817.83446295999977,null,null,426.1470518600002,null,null,358.67223851000006,null,null,232.41575035999995,null,null,null,null,null,null,null,null,null,null,null,null,null,null,null,null,null,null,null,null,null,null,null,"Coal"]
["OIL",null,3.2,"Oil",3.3603869999999998,null,null,0.38403704999999994,null,null,0.56490576999999997,null,null,1.8555671499999999,null,null,0,null,null,null,null,null,null,null,null,null,null,null,null,null,null,null,null,null,null,null,null,null,null,null,"Oil"]
["NATGAS",null,3.3,"Natural gas",726.27585343999885,null,null,731.34160123999959,null,null,690.21791557999995,null,null,587.90856764999921,null,null,562.19345355000019,null,null,null,null,null,null,null,null,null,null,null,null,null,null,null,null,null,null,null,null,null,null,null,"Natural gas"]
["COMBREN",null,3.4,"Combustible renewables",69.798070729999964,null,null,70.48279144,null,null,72.26653527000002,null,null,69.424141809999966,null,null,20.182520620000002,null,null,null,null,null,null,null,null,null,null,null,null,null,null,null,null,null,null,null,null,null,null,null,"Combustible renewables"]
["COMBNREN",null,3.5,"Other combustible fuels (non-renewable)",0,null,null,0,null,null,0,null,null,0,null,null,0,null,null,null,null,null,null,null,null,null,null,null,null,null,null,null,null,null,null,null,null,null,null,null,"Other combustible fuels (non-renewable)"]
["HYDRO",null,"4","Hydro",{"$f":"+SUM(E15:E17)","v":4590.3825456799996},null,null,{"$f":"+SUM(H15:H17)","v":4006.6336379599934},null,null,{"$f":"+SUM(K15:K17)","v":4841.0011265100056},null,null,{"$f":"+SUM(N15:N17)","v":4778.2515574200115},null,null,{"$f":"+SUM(Q15:Q17)","v":5154.0303147799914},null,null,{"$f":"+SUM(T15:T17)","v":0},null,null,{"$f":"+SUM(W15:W17)","v":0},null,null,{"$f":"+SUM(Z15:Z17)","v":0},null,null,{"$f":"+SUM(AC15:AC17)","v":0},null,null,{"$f":"+SUM(AF15:AF17)","v":0},null,null,{"$f":"+SUM(AI15:AI17)","v":0},null,null,{"$f":"+SUM(AL15:AL17)","v":0},null,null,"Hydro"]
["HYDPURE",null,4.0999999999999996,"Pure hydro",4590.3825456799996,null,null,4006.6336379599934,null,null,4841.0011265100056,null,null,4778.2515574200115,null,null,5154.0303147799914,null,null,null,null,null,null,null,null,null,null,null,null,null,null,null,null,null,null,null,null,null,null,null,"Pure hydro"]
["HYDMIXED",null,4.2,"Mixed hydro",0,null,null,0,null,null,0,null,null,0,null,null,0,null,null,null,null,null,null,null,null,null,null,null,null,null,null,null,null,null,null,null,null,null,null,null,"Mixed hydro"]
["HYDPUMP",null,4.3,"Pure pumped storage",0,null,null,0,null,null,0,null,null,0,null,null,0,null,null,null,null,null,null,null,null,null,null,null,null,null,null,null,null,null,null,null,null,null,null,null,"Pure pumped storage"]
["WIND",null,5,"Wind",{"$f":"+SUM(E19:E20)","v":4.37369393},null,null,{"$f":"+SUM(H19:H20)","v":5.6824105500000002},null,null,{"$f":"+SUM(K19:K20)","v":6.2179611800000005},null,null,{"$f":"+SUM(N19:N20)","v":6.3397587199999998},null,null,{"$f":"+SUM(Q19:Q20)","v":6.9922434500000019},null,null,{"$f":"+SUM(T19:T20)","v":0},null,null,{"$f":"+SUM(W19:W20)","v":0},null,null,{"$f":"+SUM(Z19:Z20)","v":0},null,null,{"$f":"+SUM(AC19:AC20)","v":0},null,null,{"$f":"+SUM(AF19:AF20)","v":0},null,null,{"$f":"+SUM(AI19:AI20)","v":0},null,null,{"$f":"+SUM(AL19:AL20)","v":0},null,null,"Wind"]
["WINDON",null,5.0999999999999996,"Onshore",4.37369393,null,null,5.6824105500000002,null,null,6.2179611800000005,null,null,6.3397587199999998,null,null,6.9922434500000019,null,null,null,null,null,null,null,null,null,null,null,null,null,null,null,null,null,null,null,null,null,null,null,"Onshore"]
["WINDOFF",null,5.2,"Offshore",0,null,null,0,null,null,0,null,null,0,null,null,0,null,null,null,null,null,null,null,null,null,null,null,null,null,null,null,null,null,null,null,null,null,null,null,"Offshore"]
["SOLAR",null,6,"Solar",{"$f":"+SUM(E22:E23)","v":25.13600464999999},null,null,{"$f":"+SUM(H22:H23)","v":24.432160660000008},null,null,{"$f":"+SUM(K22:K23)","v":25.411886279999994},null,null,{"$f":"+SUM(N22:N23)","v":23.768013999999997},null,null,{"$f":"+SUM(Q22:Q23)","v":21.977726590000003},null,null,{"$f":"+SUM(T22:T23)","v":0},null,null,{"$f":"+SUM(W22:W23)","v":0},null,null,{"$f":"+SUM(Z22:Z23)","v":0},null,null,{"$f":"+SUM(AC22:AC23)","v":0},null,null,{"$f":"+SUM(AF22:AF23)","v":0},null,null,{"$f":"+SUM(AI22:AI23)","v":0},null,null,{"$f":"+SUM(AL22:AL23)","v":0},null,null,"Solar"]
["SOLARPV",null,6.1,"Solar photovoltaic",25.13600464999999,null,null,24.432160660000008,null,null,25.411886279999994,null,null,23.768013999999997,null,null,21.977726590000003,null,null,null,null,null,null,null,null,null,null,null,null,null,null,null,null,null,null,null,null,null,null,null,"Solar photovoltaic"]
["SOLARTH",null,6.2,"Solar thermal",0,null,null,0,null,null,0,null,null,0,null,null,0,null,null,null,null,null,null,null,null,null,null,null,null,null,null,null,null,null,null,null,null,null,null,null,"Solar thermal"]
["GEOTHERM",null,7,"Geothermal",0,null,null,0,null,null,0,null,null,0,null,null,0,null,null,0,null,null,0,null,null,0,null,null,0,null,null,0,null,null,0,null,null,null,null,null,"Geothermal"]
["OTHERREN",null,8,"Other renewable sources",0,null,null,0,null,null,0,null,null,0,null,null,0,null,null,0,null,null,0,null,null,0,null,null,0,null,null,0,null,null,0,null,null,null,null,null,"Other renewable sources"]
["NONSPEC",null,9,"Not specified",0,null,null,0,null,null,0,null,null,0,null,null,0,null,null,0,null,null,0,null,null,0,null,null,0,null,null,0,null,null,0,null,null,null,null,null,"Not specified"]
[]
[null,null,"Table 2: SUMMARY OF PRODUCTION AND SUPPLY/CONSUMPTION (CALCULATED)"]
["NELEPROD",null,1,"Total net production",{"$f":"E6","v":5931.7578457799982},null,null,{"$f":"H6","v":5656.7911018599925},null,null,{"$f":"K6","v":6061.8273824500056},null,null,{"$f":"N6","v":5826.2198452600105},null,null,{"$f":"Q6","v":5997.7920093499924},null,null,{"$f":"T6","v":0},null,null,{"$f":"W6","v":0},null,null,{"$f":"Z6","v":0},null,null,{"$f":"AC6","v":0},null,null,{"$f":"AF6","v":0},null,null,{"$f":"AI6","v":0},null,null,{"$f":"AL6","v":0},null,null,"Total net production"]
["TOTIMPSB",null,2,"Total imports",3.0066420800000002,null,null,7.4891826699999999,null,null,165.53462954999995,null,null,173.81076263000003,null,null,15.555231439999998,null,null,null,null,null,null,null,null,null,null,null,null,null,null,null,null,null,null,null,null,null,null,null,"Total imports"]
[null,null,"2a","    out of which from EU",0,null,null,0,null,null,0,null,null,0,null,null,0,null,null,null,null,null,null,null,null,null,null,null,null,null,null,null,null,null,null,null,null,null,null,null,"    out of which from EU"]
["TOTEXPSB",null,3,"Total exports",0.22747911000000004,null,null,0.74721575000000007,null,null,0.11000810000000001,null,null,4.258656999999999E-2,null,null,1.1098490799999998,null,null,null,null,null,null,null,null,null,null,null,null,null,null,null,null,null,null,null,null,null,null,null,"Total exports"]
[null,null,"3a","    out of which to EU",0,null,null,0,null,null,0,null,null,0,null,null,0,null,null,null,null,null,null,null,null,null,null,null,null,null,null,null,null,null,null,null,null,null,null,null,"    out of which to EU"]
["EPUMPST",null,4,"Used for pumped storage",0,null,null,0,null,null,0,null,null,0,null,null,0,null,null,null,null,null,null,null,null,null,null,null,null,null,null,null,null,null,null,null,null,null,null,null,"Used for pumped storage"]
["DISTLOSS",null,5,"Transmission and distribution losses",1268.7982152758223,"E",null,1002.3806285413928,"E",null,1431.0764199373509,"E",null,1110.8818525001961,"E",null,1197.6446914684052,"E",null,null,null,null,null,null,null,null,null,null,null,null,null,null,null,null,null,null,null,null,null,null,"Transmission and distribution losses"]
["TFCCALC",null,6,"Total consumption (calculated)",{"$f":"E29+E30-E32-E34-E35","v":4665.7387934741764},null,null,{"$f":"H29+H30-H32-H34-H35","v":4661.1524402386003},null,null,{"$f":"K29+K30-K32-K34-K35","v":4796.1755839626549},null,null,{"$f":"N29+N30-N32-N34-N35","v":4889.1061688198142},null,null,{"$f":"Q29+Q30-Q32-Q34-Q35","v":4814.5927002415883},null,null,{"$f":"T29+T30-T32-T34-T35","v":0},null,null,{"$f":"W29+W30-W32-W34-W35","v":0},null,null,{"$f":"Z29+Z30-Z32-Z34-Z35","v":0},null,null,{"$f":"AC29+AC30-AC32-AC34-AC35","v":0},null,null,{"$f":"AF29+AF30-AF32-AF34-AF35","v":0},null,null,{"$f":"AI29+AI30-AI32-AI34-AI35","v":0},null,null,{"$f":"AL29+AL30-AL32-AL34-AL35","v":0},null,null,"Total consumption (calculated)"]

{"sheet":"VAL_EXPLANATORY_NOTES","index":1,"n_rows":71,"n_cols":3,"rows_kept":71,"cut":false,"hidden":false,"merged":[[0,1,0,2],[1,1,1,2]]}
[]
[null,"Monthly Electricity Statistics Questionnaire - Explanatory notes"]
[]
[null,"Instructions:"]
[null,1,"Sheet setup"]
[null,"1.a","Select country first, then the year."]
[null,"1.b","There is an event macro to safeguard against the deletion of any data when you change the year. If you choose to save your data under a different filename and restart the questionnaire on your own, you can use the \"Clear Questionnaire\" button."]
[null,"1.c","Please change the attribute \"Updated?\" to \"Y\" for the months for which you enter or revise data (reference months, previous months). The cell names for the updated months become \"green highlighted\"."]
[null,"1.d","Reporting countries can edit cells highlighted in yellow, other cells are locked."]
[null,"1.e","Some cells have conditional formatting and turn red if basic relationships are not respected. Please try to correct those before data transmission to Eurostat and the IEA."]
[null,"1.f","All values shall be entered on sheet \"VAL_MONTHLY_ELECTRICITY\". Please do not modify other sheets."]
[]
[null,2,"Numerical data entry"]
[null,"2.a","Enter values up to three decimal places in the column \"GWh\" for tables 1 and 2."]
[null,"2.b","The fields for \"Total Net Production\" and \"Total consumption (calculated)\" contain formulas that can't be directly edited. "]
[null,"2.c","There is not an automatic formula for totals of \"Conventional thermal\", \"Hydro\", \"Wind\", or \"Solar\" so please enter all of the sub-categories available as well as the totals for these categories."]
[null,null,"NOTE: The sum of the sub-categories must be less than or equal to the totals. When this condition is not met, the totals will turn red. In many cases, the totals will be equal to the sum of the sub-categories. When sub-category data is not available on a monthly basis (for confidentiality or other reasons), please select the appropriate flags and leave the unavailable categories blank. Often the total will be known when the breakdown is unavailable, and this is why we allow the value for the total to be larger than the sum of the sub-categories."]
[null,"2.d","In Table 2, note that reporting rows 2.a (imports out of which from EU) and 3.a (exports out of which to EU) is mandatory for countries reporting to Eurostat."]
[null,"2.e","In Table 2, note that reporting row 5 (transmission and distribution losses) is not mandatory for countries reporting to Eurostat."]
[]
[null,3,"Observation status (Flag) and confidentiality status (Conf)"]
[null,"3.a","Data observation status (\"Flag\" column in questionnaire) and data confidentiality status (\"Conf\" column in questionnaire) could be assigned to reported values."]
[null,"3.b","The default settings are null (empty) which mean \"normal value\" and \"not confidential\"."]
[null,"3.c","If there is a form of electricity generation that does not exist in your country, the default entries (0 GWh, \"normal value\" and \"not confidential\") are appropriate."]
[null,null,"This means value 0 shall be entered and no selection shall be made for observation status and confidentiality status."]
[null,"3.d","If some data are not available on a monthly basis, please select \"O\" for \"missing value\"."]
[null,"3.e","For very small values that are not known but are actually known to exist, report value zero and select \"N\" for \"not significant\"."]
[null,"3.f","If a value is not filled in because of confidentiality please enter the confidentiality status \"C\"."]
[null,"3.g","For estimated values, please select \"E\" for \"estimated\". You can use this flag also for provisional data."]
[null,"3.h","For estimated values where a solid reporting methodology is not yet implemented, please select \"U\" indicating \"low reliability of reported values\"."]
[null,"3.i","If the collected data doesn’t comply with the definitions (difference in definition for a category or a difference in groupings of categories), please select \"D\" for \"definition differs\" and please inform Eurostat and the IEA."]
[null,"3.j","All empty observations (fields GWh, Flag and Conf are kept empty) are interpreted by Eurostat and the IEA as non-confidential value zero with observation status normal value."]
[]
[null,4,"Submittal"]
[null,"4.a","Countries reporting to Eurostat please transmit as dataset ENERGY_ELEC3_M via EDAMIS within 3 months after the end of the reference month."]
[null,null,"Countries reporting to Eurostat are reminded about the agreement on data revision policy and the need to send revision announcement form if appropriate."]
[null,"4.b","Countries reporting to the IEA please transmit by email to CES@iea.org"]
[null,"4.c","The IEA requests the full-year time series, even when there are no revisions."]
[]
[null,"Definitions:"]
[null,"Table 1: NET ELECTRICITY PRODUCTION"]
[null,"Total Net Production ","The gross electricity production less the electrical energy absorbed by the generating auxiliaries and the losses in the main generator transformers. "]
[null,null,"This is calculated as the sum of the electricity production by energy source (Nuclear + Conventional thermal + Hydro + Wind + Solar + Geothermal + Other Renewable Sources + Not Specified)."]
[null,"Nuclear","Energy released by nuclear fission or nuclear fusion."]
[null,"Conventional thermal","Electricity production by combusting fuels capable of igniting or burning, i.e. reacting with oxygen to produce a significant rise in temperature."]
[null,"Coal ","Production from primary coal, coal products, peat and peat products, oil shale and oil sands, and manufactured gas (such as coke-oven gas, blast-furnace gas and gas works gas)."]
[null,"Oil ","Production from crude oil, natural gas liquids, refinery feedstocks, and petroleum products (such as refinery gases and fuel oil)."]
[null,"Natural Gas","Production from natural gas (including gas distributed via the grid that may contain very little amounts of blended other gases)."]
[null,"Combustible Renewables","Production from combustible renewables (such as solid biofuels, biogases, liquid biofuels, municipal renewable waste)."]
[null,"Other Combustible Fuels (non-renewables)","Production from all other combustible fuels (such as industrial and non-renewable municipal solid waste)."]
[null,"Hydro","Electricity generated from the potential and kinetic energy of water converted into electricity in hydroelectric plants. Pumped storage should be included."]
[null,"Pure Hydro Plants","Production of pure hydro plants (hydro plants that only use direct natural water inflow and have no capacity for hydro pump storage)."]
[null,"Mixed Hydro Plants","Production of mixed hydro plants (hydro plants with natural water inflow into an upper reservoir where part or all equipment can be used for pumping water uphill; the electricity generated is a consequence of both natural water inflow and water previously pumped into the upper reservoir)."]
[null,"Pure Pumped Storage Hydro Plants","Production of pure pumped storage hydro plants (hydro plants with no natural water inflow into the upper reservoir; the vast majority of water that generates electricity was previously pumped uphill; abstracting from the rainfall and snowfall)."]
[null,"Wind","Electricity generated in wind turbines using kinetic energy of wind."]
[null,"Onshore","Production of electricity by wind in locations onshore (inland, including lakes and other bodies of water located inland)."]
[null,"Offshore","Production of electricity by wind in locations offshore (e.g. sea, ocean and artificial islands). In relation to offshore wind production outside of the territorial waters of the concerned territory, all installations located in the exclusive economic zone of a country shall be taken into account."]
[null,"Solar","Electricity generated using solar radiation."]
[null,"Solar Photovoltaic","Production from sunlight using solar cells - usually made of semi-conducting material - which exposed to light, will generate electricity."]
[null,"Solar Thermal","Production of solar thermal-electric plants."]
[null,"Geothermal","Electricity generated using heat emitted from within the earth’s crust, usually in the form of hot water or steam. "]
[null,"Other Renewable Sources","Electricity generated from tide, wave, ocean and other non-combustible sources."]
[null,"Not Specified","Not elsewhere reported electricity generation."]
[]
[null,"Table 2: SUMMARY OF PRODUCTION AND SUPPLY/CONSUMPTION (CALCULATED)"]
[null,"Electricity Imports / Exports","Amounts of electricity that have crossed political boundaries of the country, whether customs clearance has taken place or not. If electricity is transited through a country, the amount should be reported as both an import and an export."]
[null,"out of which from EU","Electricity imported from countries of the EU  (only mandatory for countries reporting to Eurostat)."]
[null,"out of which to EU","Electricity exported to countries in the EU  (only mandatory for countries reporting to Eurostat)."]
[null,"Used for pumped storage ","Electricity consumed by pumping water into a reservoir in mixed and pure pumped storage hydro plants."]
[null,"Transmission and distribution losses","All losses due to transport and distribution of electrical energy. Losses in transformers which are not considered as integral parts of the power plants are also included. This value is not mandatory for countries reporting to Eurostat."]
[null,"Total consumption (calculated) ","Electricity available (calculated as: Indigenous production + Imports - Exports - used for pumped storage - Transmission and distribution losses)"]

{"sheet":"VAL_LISTS","index":2,"n_rows":53,"n_cols":13,"rows_kept":53,"cut":false,"hidden":false,"merged":[[0,0,0,14]]}
["Values for drop-down lists.\nPLEASE DO NOT MODIFY THIS SHEET."]
[2014,null,"Albania","AL",null,null,"normal value",null,null,"Not updated",null,null,"Not confidential"]
[2015,null,"Australia","AU",null,"O","missing value",null,"Y","Updated",null,"C","Confidential statistical information"]
[2016,null,"Austria","AT",null,"N","not significant"]
[2017,null,"Belarus","BY",null,"E","estimated value"]
[2018,null,"Belgium","BE",null,"U","low reliability"]
[2019,null,"Bosnia and Herzegovina","BA",null,"D","definition differs"]
[2020,null,"Bulgaria","BG"]
[2021,null,"Canada","CA"]
[2022,null,"Chile","CL"]
[2023,null,"Croatia","HR"]
[2024,null,"Cyprus","CY"]
[2025,null,"Czech Republic","CZ"]
[2026,null,"Denmark","DK"]
[2027,null,"Estonia","EE"]
[2028,null,"Finland","FI"]
[2029,null,"France","FR"]
[2030,null,"FYR of Macedonia","MK"]
[2031,null,"Georgia","GE"]
[2032,null,"Germany","DE"]
[2033,null,"Greece","GR"]
[2034,null,"Hungary","HU"]
[2035,null,"Iceland","IS"]
[2036,null,"Ireland","IE"]
[2037,null,"Israel","IL"]
[2038,null,"Italy","IT"]
[2039,null,"Japan","JP"]
[2040,null,"Korea","KR"]
[2041,null,"Kosovo (UNSCR 1244/99)","XK"]
[2042,null,"Latvia","LV"]
[2043,null,"Liechtenstein","LI"]
[2044,null,"Lithuania","LT"]
[2045,null,"Luxembourg","LU"]
[2046,null,"Malta","MT"]
[2047,null,"Mexico","MX"]
[null,null,"Moldova","MD"]
[null,null,"Montenegro","ME"]
[null,null,"Netherlands","NL"]
[null,null,"New Zealand","NZ"]
[null,null,"Norway","NO"]
[null,null,"Poland","PL"]
[null,null,"Portugal","PT"]
[null,null,"Romania","RO"]
[null,null,"Serbia","RS"]
[null,null,"Slovakia","SK"]
[null,null,"Slovenia","SI"]
[null,null,"Spain","ES"]
[null,null,"Sweden","SE"]
[null,null,"Switzerland","CH"]
[null,null,"Turkey","TR"]
[null,null,"Ukraine","UA"]
[null,null,"United Kingdom","GB"]
[null,null,"United States","US"]

{"sheet":"Parameters","index":3,"n_rows":22,"n_cols":7,"rows_kept":22,"cut":false,"hidden":false,"merged":[]}
["Element","Type","PosType","Position",null,"DataStart","H10"]
["QUEST_SOURCE","DIM","FIX","M_ELECT",null,"MaxEmptyRows",100]
["FREQ","DIM","FIX","M",null,"MaxEmptyColumns",100]
["REF_AREA","DIM","CELL","B2"]
["ENERGY_PRODUCT","DIM","FIX","E7000"]
["MAIN_FLOW","DIM","COLUMN",3]
["FLOW_BREAKDOWN","DIM","COLUMN",4]
["PLANT_TECH","DIM","COLUMN",5]
["PLANT_TYPE","DIM","FIX","_T"]
["STOCKS","DIM","FIX","_Z"]
["INFRASTRUCTURE_IND","DIM","FIX","_Z"]
["VIS_A_VIS_AREA","DIM","COLUMN",6]
["MEASURE_VALUE_TYPE","DIM","FIX","ENERGY"]
["TIME_PERIOD","DIM","ROW",7]
["FACILITY_ID","DIM","FIX","_Z"]
["UNIT_MEASURE","ATT","FIX","GWH"]
["OBS_STATUS","ATT","OBS_LEVEL",1]
["CONF_STATUS","ATT","OBS_LEVEL",2]
["SUBMISSION","ATT","SKIP"]
["COMMENT_OBS","ATT","SKIP"]
["FACILITY_TYPE","ATT","SKIP"]
["FACILITY_NAME","ATT","SKIP"]

{"sheet":"ELEC3","index":4,"n_rows":37,"n_cols":43,"rows_kept":37,"cut":false,"hidden":false,"merged":[[0,0,0,13]]}
["Input for SDMX converter.\nPLEASE DO NOT MODIFY THIS SHEET."]
["REF_AREA ",{"$f":"VLOOKUP(VAL_MONTHLY_ELECTRICITY!D2,VAL_LISTS!C2:D53,2)","v":{"$error":"#N/A"}}]
["YEAR",{"$f":"VAL_MONTHLY_ELECTRICITY!D3","v":2021}]
[]
[]
[]
[null,null,null,null,null,null,null,{"$f":"VAL_MONTHLY_ELECTRICITY!D3&\"-01\"","v":"2021-01"},null,null,{"$f":"VAL_MONTHLY_ELECTRICITY!D3&\"-02\"","v":"2021-02"},null,null,{"$f":"VAL_MONTHLY_ELECTRICITY!D3&\"-03\"","v":"2021-03"},null,null,{"$f":"VAL_MONTHLY_ELECTRICITY!D3&\"-04\"","v":"2021-04"},null,null,{"$f":"VAL_MONTHLY_ELECTRICITY!D3&\"-05\"","v":"2021-05"},null,null,{"$f":"VAL_MONTHLY_ELECTRICITY!D3&\"-06\"","v":"2021-06"},null,null,{"$f":"VAL_MONTHLY_ELECTRICITY!D3&\"-07\"","v":"2021-07"},null,null,{"$f":"VAL_MONTHLY_ELECTRICITY!D3&\"-08\"","v":"2021-08"},null,null,{"$f":"VAL_MONTHLY_ELECTRICITY!D3&\"-09\"","v":"2021-09"},null,null,{"$f":"VAL_MONTHLY_ELECTRICITY!D3&\"-10\"","v":"2021-10"},null,null,{"$f":"VAL_MONTHLY_ELECTRICITY!D3&\"-11\"","v":"2021-11"},null,null,{"$f":"VAL_MONTHLY_ELECTRICITY!D3&\"-12\"","v":"2021-12"}]
[null,null,null,null,null,null,null,"January",null,null,"February",null,null,"March",null,null,"April",null,null,"May",null,null,"June",null,null,"July",null,null,"August",null,null,"September",null,null,"October",null,null,"November",null,null,"December"]
[null,null,"MAIN_FLOW","FLOW_BREAKDOWN","PLANT_TECH","VIS_A_VIS_AREA",null,"Value","Flag","Conf","Value","Flag","Conf","Value","Flag","Conf","Value","Flag","Conf","Value","Flag","Conf","Value","Flag","Conf","Value","Flag","Conf","Value","Flag","Conf","Value","Flag","Conf","Value","Flag","Conf","Value","Flag","Conf","Value","Flag","Conf"]
[null,null,"NETPROD","_Z","_T","_Z","Total net production",{"$f":"IF(VAL_MONTHLY_ELECTRICITY!G$3=\"Y\",ROUND(VAL_MONTHLY_ELECTRICITY!E6,3),\"\")","v":""},{"$f":"IF(VAL_MONTHLY_ELECTRICITY!G$3=\"Y\",IF(VAL_MONTHLY_ELECTRICITY!F6=\"\",\"A\",VAL_MONTHLY_ELECTRICITY!F6),\"\")","v":""},{"$f":"IF(VAL_MONTHLY_ELECTRICITY!G$3=\"Y\",IF(VAL_MONTHLY_ELECTRICITY!G6=\"\",\"F\",VAL_MONTHLY_ELECTRICITY!G6),\"\")","v":""},{"$f":"IF(VAL_MONTHLY_ELECTRICITY!J$3=\"Y\",ROUND(VAL_MONTHLY_ELECTRICITY!H6,3),\"\")","v":""},{"$f":"IF(VAL_MONTHLY_ELECTRICITY!J$3=\"Y\",IF(VAL_MONTHLY_ELECTRICITY!I6=\"\",\"A\",VAL_MONTHLY_ELECTRICITY!I6),\"\")","v":""},{"$f":"IF(VAL_MONTHLY_ELECTRICITY!J$3=\"Y\",IF(VAL_MONTHLY_ELECTRICITY!J6=\"\",\"F\",VAL_MONTHLY_ELECTRICITY!J6),\"\")","v":""},{"$f":"IF(VAL_MONTHLY_ELECTRICITY!M$3=\"Y\",ROUND(VAL_MONTHLY_ELECTRICITY!K6,3),\"\")","v":""},{"$f":"IF(VAL_MONTHLY_ELECTRICITY!M$3=\"Y\",IF(VAL_MONTHLY_ELECTRICITY!L6=\"\",\"A\",VAL_MONTHLY_ELECTRICITY!L6),\"\")","v":""},{"$f":"IF(VAL_MONTHLY_ELECTRICITY!M$3=\"Y\",IF(VAL_MONTHLY_ELECTRICITY!M6=\"\",\"F\",VAL_MONTHLY_ELECTRICITY!M6),\"\")","v":""},{"$f":"IF(VAL_MONTHLY_ELECTRICITY!P$3=\"Y\",ROUND(VAL_MONTHLY_ELECTRICITY!N6,3),\"\")","v":5826.22},{"$f":"IF(VAL_MONTHLY_ELECTRICITY!P$3=\"Y\",IF(VAL_MONTHLY_ELECTRICITY!O6=\"\",\"A\",VAL_MONTHLY_ELECTRICITY!O6),\"\")","v":"A"},{"$f":"IF(VAL_MONTHLY_ELECTRICITY!P$3=\"Y\",IF(VAL_MONTHLY_ELECTRICITY!P6=\"\",\"F\",VAL_MONTHLY_ELECTRICITY!P6),\"\")","v":"F"},{"$f":"IF(VAL_MONTHLY_ELECTRICITY!S$3=\"Y\",ROUND(VAL_MONTHLY_ELECTRICITY!Q6,3),\"\")","v":5997.7920000000004},{"$f":"IF(VAL_MONTHLY_ELECTRICITY!S$3=\"Y\",IF(VAL_MONTHLY_ELECTRICITY!R6=\"\",\"A\",VAL_MONTHLY_ELECTRICITY!R6),\"\")","v":"A"},{"$f":"IF(VAL_MONTHLY_ELECTRICITY!S$3=\"Y\",IF(VAL_MONTHLY_ELECTRICITY!S6=\"\",\"F\",VAL_MONTHLY_ELECTRICITY!S6),\"\")","v":"F"},{"$f":"IF(VAL_MONTHLY_ELECTRICITY!V$3=\"Y\",ROUND(VAL_MONTHLY_ELECTRICITY!T6,3),\"\")","v":""},{"$f":"IF(VAL_MONTHLY_ELECTRICITY!V$3=\"Y\",IF(VAL_MONTHLY_ELECTRICITY!U6=\"\",\"A\",VAL_MONTHLY_ELECTRICITY!U6),\"\")","v":""},{"$f":"IF(VAL_MONTHLY_ELECTRICITY!V$3=\"Y\",IF(VAL_MONTHLY_ELECTRICITY!V6=\"\",\"F\",VAL_MONTHLY_ELECTRICITY!V6),\"\")","v":""},{"$f":"IF(VAL_MONTHLY_ELECTRICITY!Y$3=\"Y\",ROUND(VAL_MONTHLY_ELECTRICITY!W6,3),\"\")","v":""},{"$f":"IF(VAL_MONTHLY_ELECTRICITY!Y$3=\"Y\",IF(VAL_MONTHLY_ELECTRICITY!X6=\"\",\"A\",VAL_MONTHLY_ELECTRICITY!X6),\"\")","v":""},{"$f":"IF(VAL_MONTHLY_ELECTRICITY!Y$3=\"Y\",IF(VAL_MONTHLY_ELECTRICITY!Y6=\"\",\"F\",VAL_MONTHLY_ELECTRICITY!Y6),\"\")","v":""},{"$f":"IF(VAL_MONTHLY_ELECTRICITY!AB$3=\"Y\",ROUND(VAL_MONTHLY_ELECTRICITY!Z6,3),\"\")","v":""},{"$f":"IF(VAL_MONTHLY_ELECTRICITY!AB$3=\"Y\",IF(VAL_MONTHLY_ELECTRICITY!AA6=\"\",\"A\",VAL_MONTHLY_ELECTRICITY!AA6),\"\")","v":""},{"$f":"IF(VAL_MONTHLY_ELECTRICITY!AB$3=\"Y\",IF(VAL_MONTHLY_ELECTRICITY!AB6=\"\",\"F\",VAL_MONTHLY_ELECTRICITY!AB6),\"\")","v":""},{"$f":"IF(VAL_MONTHLY_ELECTRICITY!AE$3=\"Y\",ROUND(VAL_MONTHLY_ELECTRICITY!AC6,3),\"\")","v":""},{"$f":"IF(VAL_MONTHLY_ELECTRICITY!AE$3=\"Y\",IF(VAL_MONTHLY_ELECTRICITY!AD6=\"\",\"A\",VAL_MONTHLY_ELECTRICITY!AD6),\"\")","v":""},{"$f":"IF(VAL_MONTHLY_ELECTRICITY!AE$3=\"Y\",IF(VAL_MONTHLY_ELECTRICITY!AE6=\"\",\"F\",VAL_MONTHLY_ELECTRICITY!AE6),\"\")","v":""},{"$f":"IF(VAL_MONTHLY_ELECTRICITY!AH$3=\"Y\",ROUND(VAL_MONTHLY_ELECTRICITY!AF6,3),\"\")","v":0},{"$f":"IF(VAL_MONTHLY_ELECTRICITY!AH$3=\"Y\",IF(VAL_MONTHLY_ELECTRICITY!AG6=\"\",\"A\",VAL_MONTHLY_ELECTRICITY!AG6),\"\")","v":"A"},{"$f":"IF(VAL_MONTHLY_ELECTRICITY!AH$3=\"Y\",IF(VAL_MONTHLY_ELECTRICITY!AH6=\"\",\"F\",VAL_MONTHLY_ELECTRICITY!AH6),\"\")","v":"F"},{"$f":"IF(VAL_MONTHLY_ELECTRICITY!AK$3=\"Y\",ROUND(VAL_MONTHLY_ELECTRICITY!AI6,3),\"\")","v":0},{"$f":"IF(VAL_MONTHLY_ELECTRICITY!AK$3=\"Y\",IF(VAL_MONTHLY_ELECTRICITY!AJ6=\"\",\"A\",VAL_MONTHLY_ELECTRICITY!AJ6),\"\")","v":"A"},{"$f":"IF(VAL_MONTHLY_ELECTRICITY!AK$3=\"Y\",IF(VAL_MONTHLY_ELECTRICITY!AK6=\"\",\"F\",VAL_MONTHLY_ELECTRICITY!AK6),\"\")","v":"F"},{"$f":"IF(VAL_MONTHLY_ELECTRICITY!AN$3=\"Y\",ROUND(VAL_MONTHLY_ELECTRICITY!AL6,3),\"\")","v":0},{"$f":"IF(VAL_MONTHLY_ELECTRICITY!AN$3=\"Y\",IF(VAL_MONTHLY_ELECTRICITY!AM6=\"\",\"A\",VAL_MONTHLY_ELECTRICITY!AM6),\"\")","v":"A"},{"$f":"IF(VAL_MONTHLY_ELECTRICITY!AN$3=\"Y\",IF(VAL_MONTHLY_ELECTRICITY!AN6=\"\",\"F\",VAL_MONTHLY_ELECTRICITY!AN6),\"\")","v":"F"}]
[null,null,"NETPROD","_Z","NUCLEAR","_Z","Nuclear",{"$f":"IF(VAL_MONTHLY_ELECTRICITY!G$3=\"Y\",ROUND(VAL_MONTHLY_ELECTRICITY!E7,3),\"\")","v":""},{"$f":"IF(VAL_MONTHLY_ELECTRICITY!G$3=\"Y\",IF(VAL_MONTHLY_ELECTRICITY!F7=\"\",\"A\",VAL_MONTHLY_ELECTRICITY!F7),\"\")","v":""},{"$f":"IF(VAL_MONTHLY_ELECTRICITY!G$3=\"Y\",IF(VAL_MONTHLY_ELECTRICITY!G7=\"\",\"F\",VAL_MONTHLY_ELECTRICITY!G7),\"\")","v":""},{"$f":"IF(VAL_MONTHLY_ELECTRICITY!J$3=\"Y\",ROUND(VAL_MONTHLY_ELECTRICITY!H7,3),\"\")","v":""},{"$f":"IF(VAL_MONTHLY_ELECTRICITY!J$3=\"Y\",IF(VAL_MONTHLY_ELECTRICITY!I7=\"\",\"A\",VAL_MONTHLY_ELECTRICITY!I7),\"\")","v":""},{"$f":"IF(VAL_MONTHLY_ELECTRICITY!J$3=\"Y\",IF(VAL_MONTHLY_ELECTRICITY!J7=\"\",\"F\",VAL_MONTHLY_ELECTRICITY!J7),\"\")","v":""},{"$f":"IF(VAL_MONTHLY_ELECTRICITY!M$3=\"Y\",ROUND(VAL_MONTHLY_ELECTRICITY!K7,3),\"\")","v":""},{"$f":"IF(VAL_MONTHLY_ELECTRICITY!M$3=\"Y\",IF(VAL_MONTHLY_ELECTRICITY!L7=\"\",\"A\",VAL_MONTHLY_ELECTRICITY!L7),\"\")","v":""},{"$f":"IF(VAL_MONTHLY_ELECTRICITY!M$3=\"Y\",IF(VAL_MONTHLY_ELECTRICITY!M7=\"\",\"F\",VAL_MONTHLY_ELECTRICITY!M7),\"\")","v":""},{"$f":"IF(VAL_MONTHLY_ELECTRICITY!P$3=\"Y\",ROUND(VAL_MONTHLY_ELECTRICITY!N7,3),\"\")","v":0},{"$f":"IF(VAL_MONTHLY_ELECTRICITY!P$3=\"Y\",IF(VAL_MONTHLY_ELECTRICITY!O7=\"\",\"A\",VAL_MONTHLY_ELECTRICITY!O7),\"\")","v":"A"},{"$f":"IF(VAL_MONTHLY_ELECTRICITY!P$3=\"Y\",IF(VAL_MONTHLY_ELECTRICITY!P7=\"\",\"F\",VAL_MONTHLY_ELECTRICITY!P7),\"\")","v":"F"},{"$f":"IF(VAL_MONTHLY_ELECTRICITY!S$3=\"Y\",ROUND(VAL_MONTHLY_ELECTRICITY!Q7,3),\"\")","v":0},{"$f":"IF(VAL_MONTHLY_ELECTRICITY!S$3=\"Y\",IF(VAL_MONTHLY_ELECTRICITY!R7=\"\",\"A\",VAL_MONTHLY_ELECTRICITY!R7),\"\")","v":"A"},{"$f":"IF(VAL_MONTHLY_ELECTRICITY!S$3=\"Y\",IF(VAL_MONTHLY_ELECTRICITY!S7=\"\",\"F\",VAL_MONTHLY_ELECTRICITY!S7),\"\")","v":"F"},{"$f":"IF(VAL_MONTHLY_ELECTRICITY!V$3=\"Y\",ROUND(VAL_MONTHLY_ELECTRICITY!T7,3),\"\")","v":""},{"$f":"IF(VAL_MONTHLY_ELECTRICITY!V$3=\"Y\",IF(VAL_MONTHLY_ELECTRICITY!U7=\"\",\"A\",VAL_MONTHLY_ELECTRICITY!U7),\"\")","v":""},{"$f":"IF(VAL_MONTHLY_ELECTRICITY!V$3=\"Y\",IF(VAL_MONTHLY_ELECTRICITY!V7=\"\",\"F\",VAL_MONTHLY_ELECTRICITY!V7),\"\")","v":""},{"$f":"IF(VAL_MONTHLY_ELECTRICITY!Y$3=\"Y\",ROUND(VAL_MONTHLY_ELECTRICITY!W7,3),\"\")","v":""},{"$f":"IF(VAL_MONTHLY_ELECTRICITY!Y$3=\"Y\",IF(VAL_MONTHLY_ELECTRICITY!X7=\"\",\"A\",VAL_MONTHLY_ELECTRICITY!X7),\"\")","v":""},{"$f":"IF(VAL_MONTHLY_ELECTRICITY!Y$3=\"Y\",IF(VAL_MONTHLY_ELECTRICITY!Y7=\"\",\"F\",VAL_MONTHLY_ELECTRICITY!Y7),\"\")","v":""},{"$f":"IF(VAL_MONTHLY_ELECTRICITY!AB$3=\"Y\",ROUND(VAL_MONTHLY_ELECTRICITY!Z7,3),\"\")","v":""},{"$f":"IF(VAL_MONTHLY_ELECTRICITY!AB$3=\"Y\",IF(VAL_MONTHLY_ELECTRICITY!AA7=\"\",\"A\",VAL_MONTHLY_ELECTRICITY!AA7),\"\")","v":""},{"$f":"IF(VAL_MONTHLY_ELECTRICITY!AB$3=\"Y\",IF(VAL_MONTHLY_ELECTRICITY!AB7=\"\",\"F\",VAL_MONTHLY_ELECTRICITY!AB7),\"\")","v":""},{"$f":"IF(VAL_MONTHLY_ELECTRICITY!AE$3=\"Y\",ROUND(VAL_MONTHLY_ELECTRICITY!AC7,3),\"\")","v":""},{"$f":"IF(VAL_MONTHLY_ELECTRICITY!AE$3=\"Y\",IF(VAL_MONTHLY_ELECTRICITY!AD7=\"\",\"A\",VAL_MONTHLY_ELECTRICITY!AD7),\"\")","v":""},{"$f":"IF(VAL_MONTHLY_ELECTRICITY!AE$3=\"Y\",IF(VAL_MONTHLY_ELECTRICITY!AE7=\"\",\"F\",VAL_MONTHLY_ELECTRICITY!AE7),\"\")","v":""},{"$f":"IF(VAL_MONTHLY_ELECTRICITY!AH$3=\"Y\",ROUND(VAL_MONTHLY_ELECTRICITY!AF7,3),\"\")","v":0},{"$f":"IF(VAL_MONTHLY_ELECTRICITY!AH$3=\"Y\",IF(VAL_MONTHLY_ELECTRICITY!AG7=\"\",\"A\",VAL_MONTHLY_ELECTRICITY!AG7),\"\")","v":"A"},{"$f":"IF(VAL_MONTHLY_ELECTRICITY!AH$3=\"Y\",IF(VAL_MONTHLY_ELECTRICITY!AH7=\"\",\"F\",VAL_MONTHLY_ELECTRICITY!AH7),\"\")","v":"F"},{"$f":"IF(VAL_MONTHLY_ELECTRICITY!AK$3=\"Y\",ROUND(VAL_MONTHLY_ELECTRICITY!AI7,3),\"\")","v":0},{"$f":"IF(VAL_MONTHLY_ELECTRICITY!AK$3=\"Y\",IF(VAL_MONTHLY_ELECTRICITY!AJ7=\"\",\"A\",VAL_MONTHLY_ELECTRICITY!AJ7),\"\")","v":"A"},{"$f":"IF(VAL_MONTHLY_ELECTRICITY!AK$3=\"Y\",IF(VAL_MONTHLY_ELECTRICITY!AK7=\"\",\"F\",VAL_MONTHLY_ELECTRICITY!AK7),\"\")","v":"F"},{"$f":"IF(VAL_MONTHLY_ELECTRICITY!AN$3=\"Y\",ROUND(VAL_MONTHLY_ELECTRICITY!AL7,3),\"\")","v":0},{"$f":"IF(VAL_MONTHLY_ELECTRICITY!AN$3=\"Y\",IF(VAL_MONTHLY_ELECTRICITY!AM7=\"\",\"A\",VAL_MONTHLY_ELECTRICITY!AM7),\"\")","v":"A"},{"$f":"IF(VAL_MONTHLY_ELECTRICITY!AN$3=\"Y\",IF(VAL_MONTHLY_ELECTRICITY!AN7=\"\",\"F\",VAL_MONTHLY_ELECTRICITY!AN7),\"\")","v":"F"}]
[null,null,"NETPROD","_Z","COMBFUEL","_Z","Conventional thermal",{"$f":"IF(VAL_MONTHLY_ELECTRICITY!G$3=\"Y\",ROUND(VAL_MONTHLY_ELECTRICITY!E8,3),\"\")","v":""},{"$f":"IF(VAL_MONTHLY_ELECTRICITY!G$3=\"Y\",IF(VAL_MONTHLY_ELECTRICITY!F8=\"\",\"A\",VAL_MONTHLY_ELECTRICITY!F8),\"\")","v":""},{"$f":"IF(VAL_MONTHLY_ELECTRICITY!G$3=\"Y\",IF(VAL_MONTHLY_ELECTRICITY!G8=\"\",\"F\",VAL_MONTHLY_ELECTRICITY!G8),\"\")","v":""},{"$f":"IF(VAL_MONTHLY_ELECTRICITY!J$3=\"Y\",ROUND(VAL_MONTHLY_ELECTRICITY!H8,3),\"\")","v":""},{"$f":"IF(VAL_MONTHLY_ELECTRICITY!J$3=\"Y\",IF(VAL_MONTHLY_ELECTRICITY!I8=\"\",\"A\",VAL_MONTHLY_ELECTRICITY!I8),\"\")","v":""},{"$f":"IF(VAL_MONTHLY_ELECTRICITY!J$3=\"Y\",IF(VAL_MONTHLY_ELECTRICITY!J8=\"\",\"F\",VAL_MONTHLY_ELECTRICITY!J8),\"\")","v":""},{"$f":"IF(VAL_MONTHLY_ELECTRICITY!M$3=\"Y\",ROUND(VAL_MONTHLY_ELECTRICITY!K8,3),\"\")","v":""},{"$f":"IF(VAL_MONTHLY_ELECTRICITY!M$3=\"Y\",IF(VAL_MONTHLY_ELECTRICITY!L8=\"\",\"A\",VAL_MONTHLY_ELECTRICITY!L8),\"\")","v":""},{"$f":"IF(VAL_MONTHLY_ELECTRICITY!M$3=\"Y\",IF(VAL_MONTHLY_ELECTRICITY!M8=\"\",\"F\",VAL_MONTHLY_ELECTRICITY!M8),\"\")","v":""},{"$f":"IF(VAL_MONTHLY_ELECTRICITY!P$3=\"Y\",ROUND(VAL_MONTHLY_ELECTRICITY!N8,3),\"\")","v":1017.861},{"$f":"IF(VAL_MONTHLY_ELECTRICITY!P$3=\"Y\",IF(VAL_MONTHLY_ELECTRICITY!O8=\"\",\"A\",VAL_MONTHLY_ELECTRICITY!O8),\"\")","v":"A"},{"$f":"IF(VAL_MONTHLY_ELECTRICITY!P$3=\"Y\",IF(VAL_MONTHLY_ELECTRICITY!P8=\"\",\"F\",VAL_MONTHLY_ELECTRICITY!P8),\"\")","v":"F"},{"$f":"IF(VAL_MONTHLY_ELECTRICITY!S$3=\"Y\",ROUND(VAL_MONTHLY_ELECTRICITY!Q8,3),\"\")","v":814.79200000000003},{"$f":"IF(VAL_MONTHLY_ELECTRICITY!S$3=\"Y\",IF(VAL_MONTHLY_ELECTRICITY!R8=\"\",\"A\",VAL_MONTHLY_ELECTRICITY!R8),\"\")","v":"A"},{"$f":"IF(VAL_MONTHLY_ELECTRICITY!S$3=\"Y\",IF(VAL_MONTHLY_ELECTRICITY!S8=\"\",\"F\",VAL_MONTHLY_ELECTRICITY!S8),\"\")","v":"F"},{"$f":"IF(VAL_MONTHLY_ELECTRICITY!V$3=\"Y\",ROUND(VAL_MONTHLY_ELECTRICITY!T8,3),\"\")","v":""},{"$f":"IF(VAL_MONTHLY_ELECTRICITY!V$3=\"Y\",IF(VAL_MONTHLY_ELECTRICITY!U8=\"\",\"A\",VAL_MONTHLY_ELECTRICITY!U8),\"\")","v":""},{"$f":"IF(VAL_MONTHLY_ELECTRICITY!V$3=\"Y\",IF(VAL_MONTHLY_ELECTRICITY!V8=\"\",\"F\",VAL_MONTHLY_ELECTRICITY!V8),\"\")","v":""},{"$f":"IF(VAL_MONTHLY_ELECTRICITY!Y$3=\"Y\",ROUND(VAL_MONTHLY_ELECTRICITY!W8,3),\"\")","v":""},{"$f":"IF(VAL_MONTHLY_ELECTRICITY!Y$3=\"Y\",IF(VAL_MONTHLY_ELECTRICITY!X8=\"\",\"A\",VAL_MONTHLY_ELECTRICITY!X8),\"\")","v":""},{"$f":"IF(VAL_MONTHLY_ELECTRICITY!Y$3=\"Y\",IF(VAL_MONTHLY_ELECTRICITY!Y8=\"\",\"F\",VAL_MONTHLY_ELECTRICITY!Y8),\"\")","v":""},{"$f":"IF(VAL_MONTHLY_ELECTRICITY!AB$3=\"Y\",ROUND(VAL_MONTHLY_ELECTRICITY!Z8,3),\"\")","v":""},{"$f":"IF(VAL_MONTHLY_ELECTRICITY!AB$3=\"Y\",IF(VAL_MONTHLY_ELECTRICITY!AA8=\"\",\"A\",VAL_MONTHLY_ELECTRICITY!AA8),\"\")","v":""},{"$f":"IF(VAL_MONTHLY_ELECTRICITY!AB$3=\"Y\",IF(VAL_MONTHLY_ELECTRICITY!AB8=\"\",\"F\",VAL_MONTHLY_ELECTRICITY!AB8),\"\")","v":""},{"$f":"IF(VAL_MONTHLY_ELECTRICITY!AE$3=\"Y\",ROUND(VAL_MONTHLY_ELECTRICITY!AC8,3),\"\")","v":""},{"$f":"IF(VAL_MONTHLY_ELECTRICITY!AE$3=\"Y\",IF(VAL_MONTHLY_ELECTRICITY!AD8=\"\",\"A\",VAL_MONTHLY_ELECTRICITY!AD8),\"\")","v":""},{"$f":"IF(VAL_MONTHLY_ELECTRICITY!AE$3=\"Y\",IF(VAL_MONTHLY_ELECTRICITY!AE8=\"\",\"F\",VAL_MONTHLY_ELECTRICITY!AE8),\"\")","v":""},{"$f":"IF(VAL_MONTHLY_ELECTRICITY!AH$3=\"Y\",ROUND(VAL_MONTHLY_ELECTRICITY!AF8,3),\"\")","v":0},{"$f":"IF(VAL_MONTHLY_ELECTRICITY!AH$3=\"Y\",IF(VAL_MONTHLY_ELECTRICITY!AG8=\"\",\"A\",VAL_MONTHLY_ELECTRICITY!AG8),\"\")","v":"A"},{"$f":"IF(VAL_MONTHLY_ELECTRICITY!AH$3=\"Y\",IF(VAL_MONTHLY_ELECTRICITY!AH8=\"\",\"F\",VAL_MONTHLY_ELECTRICITY!AH8),\"\")","v":"F"},{"$f":"IF(VAL_MONTHLY_ELECTRICITY!AK$3=\"Y\",ROUND(VAL_MONTHLY_ELECTRICITY!AI8,3),\"\")","v":0},{"$f":"IF(VAL_MONTHLY_ELECTRICITY!AK$3=\"Y\",IF(VAL_MONTHLY_ELECTRICITY!AJ8=\"\",\"A\",VAL_MONTHLY_ELECTRICITY!AJ8),\"\")","v":"A"},{"$f":"IF(VAL_MONTHLY_ELECTRICITY!AK$3=\"Y\",IF(VAL_MONTHLY_ELECTRICITY!AK8=\"\",\"F\",VAL_MONTHLY_ELECTRICITY!AK8),\"\")","v":"F"},{"$f":"IF(VAL_MONTHLY_ELECTRICITY!AN$3=\"Y\",ROUND(VAL_MONTHLY_ELECTRICITY!AL8,3),\"\")","v":0},{"$f":"IF(VAL_MONTHLY_ELECTRICITY!AN$3=\"Y\",IF(VAL_MONTHLY_ELECTRICITY!AM8=\"\",\"A\",VAL_MONTHLY_ELECTRICITY!AM8),\"\")","v":"A"},{"$f":"IF(VAL_MONTHLY_ELECTRICITY!AN$3=\"Y\",IF(VAL_MONTHLY_ELECTRICITY!AN8=\"\",\"F\",VAL_MONTHLY_ELECTRICITY!AN8),\"\")","v":"F"}]
[null,null,"NETPROD","_Z","COMBCOAL","_Z","Coal",{"$f":"IF(VAL_MONTHLY_ELECTRICITY!G$3=\"Y\",ROUND(VAL_MONTHLY_ELECTRICITY!E9,3),\"\")","v":""},{"$f":"IF(VAL_MONTHLY_ELECTRICITY!G$3=\"Y\",IF(VAL_MONTHLY_ELECTRICITY!F9=\"\",\"A\",VAL_MONTHLY_ELECTRICITY!F9),\"\")","v":""},{"$f":"IF(VAL_MONTHLY_ELECTRICITY!G$3=\"Y\",IF(VAL_MONTHLY_ELECTRICITY!G9=\"\",\"F\",VAL_MONTHLY_ELECTRICITY!G9),\"\")","v":""},{"$f":"IF(VAL_MONTHLY_ELECTRICITY!J$3=\"Y\",ROUND(VAL_MONTHLY_ELECTRICITY!H9,3),\"\")","v":""},{"$f":"IF(VAL_MONTHLY_ELECTRICITY!J$3=\"Y\",IF(VAL_MONTHLY_ELECTRICITY!I9=\"\",\"A\",VAL_MONTHLY_ELECTRICITY!I9),\"\")","v":""},{"$f":"IF(VAL_MONTHLY_ELECTRICITY!J$3=\"Y\",IF(VAL_MONTHLY_ELECTRICITY!J9=\"\",\"F\",VAL_MONTHLY_ELECTRICITY!J9),\"\")","v":""},{"$f":"IF(VAL_MONTHLY_ELECTRICITY!M$3=\"Y\",ROUND(VAL_MONTHLY_ELECTRICITY!K9,3),\"\")","v":""},{"$f":"IF(VAL_MONTHLY_ELECTRICITY!M$3=\"Y\",IF(VAL_MONTHLY_ELECTRICITY!L9=\"\",\"A\",VAL_MONTHLY_ELECTRICITY!L9),\"\")","v":""},{"$f":"IF(VAL_MONTHLY_ELECTRICITY!M$3=\"Y\",IF(VAL_MONTHLY_ELECTRICITY!M9=\"\",\"F\",VAL_MONTHLY_ELECTRICITY!M9),\"\")","v":""},{"$f":"IF(VAL_MONTHLY_ELECTRICITY!P$3=\"Y\",ROUND(VAL_MONTHLY_ELECTRICITY!N9,3),\"\")","v":358.67200000000003},{"$f":"IF(VAL_MONTHLY_ELECTRICITY!P$3=\"Y\",IF(VAL_MONTHLY_ELECTRICITY!O9=\"\",\"A\",VAL_MONTHLY_ELECTRICITY!O9),\"\")","v":"A"},{"$f":"IF(VAL_MONTHLY_ELECTRICITY!P$3=\"Y\",IF(VAL_MONTHLY_ELECTRICITY!P9=\"\",\"F\",VAL_MONTHLY_ELECTRICITY!P9),\"\")","v":"F"},{"$f":"IF(VAL_MONTHLY_ELECTRICITY!S$3=\"Y\",ROUND(VAL_MONTHLY_ELECTRICITY!Q9,3),\"\")","v":232.416},{"$f":"IF(VAL_MONTHLY_ELECTRICITY!S$3=\"Y\",IF(VAL_MONTHLY_ELECTRICITY!R9=\"\",\"A\",VAL_MONTHLY_ELECTRICITY!R9),\"\")","v":"A"},{"$f":"IF(VAL_MONTHLY_ELECTRICITY!S$3=\"Y\",IF(VAL_MONTHLY_ELECTRICITY!S9=\"\",\"F\",VAL_MONTHLY_ELECTRICITY!S9),\"\")","v":"F"},{"$f":"IF(VAL_MONTHLY_ELECTRICITY!V$3=\"Y\",ROUND(VAL_MONTHLY_ELECTRICITY!T9,3),\"\")","v":""},{"$f":"IF(VAL_MONTHLY_ELECTRICITY!V$3=\"Y\",IF(VAL_MONTHLY_ELECTRICITY!U9=\"\",\"A\",VAL_MONTHLY_ELECTRICITY!U9),\"\")","v":""},{"$f":"IF(VAL_MONTHLY_ELECTRICITY!V$3=\"Y\",IF(VAL_MONTHLY_ELECTRICITY!V9=\"\",\"F\",VAL_MONTHLY_ELECTRICITY!V9),\"\")","v":""},{"$f":"IF(VAL_MONTHLY_ELECTRICITY!Y$3=\"Y\",ROUND(VAL_MONTHLY_ELECTRICITY!W9,3),\"\")","v":""},{"$f":"IF(VAL_MONTHLY_ELECTRICITY!Y$3=\"Y\",IF(VAL_MONTHLY_ELECTRICITY!X9=\"\",\"A\",VAL_MONTHLY_ELECTRICITY!X9),\"\")","v":""},{"$f":"IF(VAL_MONTHLY_ELECTRICITY!Y$3=\"Y\",IF(VAL_MONTHLY_ELECTRICITY!Y9=\"\",\"F\",VAL_MONTHLY_ELECTRICITY!Y9),\"\")","v":""},{"$f":"IF(VAL_MONTHLY_ELECTRICITY!AB$3=\"Y\",ROUND(VAL_MONTHLY_ELECTRICITY!Z9,3),\"\")","v":""},{"$f":"IF(VAL_MONTHLY_ELECTRICITY!AB$3=\"Y\",IF(VAL_MONTHLY_ELECTRICITY!AA9=\"\",\"A\",VAL_MONTHLY_ELECTRICITY!AA9),\"\")","v":""},{"$f":"IF(VAL_MONTHLY_ELECTRICITY!AB$3=\"Y\",IF(VAL_MONTHLY_ELECTRICITY!AB9=\"\",\"F\",VAL_MONTHLY_ELECTRICITY!AB9),\"\")","v":""},{"$f":"IF(VAL_MONTHLY_ELECTRICITY!AE$3=\"Y\",ROUND(VAL_MONTHLY_ELECTRICITY!AC9,3),\"\")","v":""},{"$f":"IF(VAL_MONTHLY_ELECTRICITY!AE$3=\"Y\",IF(VAL_MONTHLY_ELECTRICITY!AD9=\"\",\"A\",VAL_MONTHLY_ELECTRICITY!AD9),\"\")","v":""},{"$f":"IF(VAL_MONTHLY_ELECTRICITY!AE$3=\"Y\",IF(VAL_MONTHLY_ELECTRICITY!AE9=\"\",\"F\",VAL_MONTHLY_ELECTRICITY!AE9),\"\")","v":""},{"$f":"IF(VAL_MONTHLY_ELECTRICITY!AH$3=\"Y\",ROUND(VAL_MONTHLY_ELECTRICITY!AF9,3),\"\")","v":0},{"$f":"IF(VAL_MONTHLY_ELECTRICITY!AH$3=\"Y\",IF(VAL_MONTHLY_ELECTRICITY!AG9=\"\",\"A\",VAL_MONTHLY_ELECTRICITY!AG9),\"\")","v":"A"},{"$f":"IF(VAL_MONTHLY_ELECTRICITY!AH$3=\"Y\",IF(VAL_MONTHLY_ELECTRICITY!AH9=\"\",\"F\",VAL_MONTHLY_ELECTRICITY!AH9),\"\")","v":"F"},{"$f":"IF(VAL_MONTHLY_ELECTRICITY!AK$3=\"Y\",ROUND(VAL_MONTHLY_ELECTRICITY!AI9,3),\"\")","v":0},{"$f":"IF(VAL_MONTHLY_ELECTRICITY!AK$3=\"Y\",IF(VAL_MONTHLY_ELECTRICITY!AJ9=\"\",\"A\",VAL_MONTHLY_ELECTRICITY!AJ9),\"\")","v":"A"},{"$f":"IF(VAL_MONTHLY_ELECTRICITY!AK$3=\"Y\",IF(VAL_MONTHLY_ELECTRICITY!AK9=\"\",\"F\",VAL_MONTHLY_ELECTRICITY!AK9),\"\")","v":"F"},{"$f":"IF(VAL_MONTHLY_ELECTRICITY!AN$3=\"Y\",ROUND(VAL_MONTHLY_ELECTRICITY!AL9,3),\"\")","v":0},{"$f":"IF(VAL_MONTHLY_ELECTRICITY!AN$3=\"Y\",IF(VAL_MONTHLY_ELECTRICITY!AM9=\"\",\"A\",VAL_MONTHLY_ELECTRICITY!AM9),\"\")","v":"A"},{"$f":"IF(VAL_MONTHLY_ELECTRICITY!AN$3=\"Y\",IF(VAL_MONTHLY_ELECTRICITY!AN9=\"\",\"F\",VAL_MONTHLY_ELECTRICITY!AN9),\"\")","v":"F"}]
[null,null,"NETPROD","_Z","COMBOIL","_Z","Oil",{"$f":"IF(VAL_MONTHLY_ELECTRICITY!G$3=\"Y\",ROUND(VAL_MONTHLY_ELECTRICITY!E10,3),\"\")","v":""},{"$f":"IF(VAL_MONTHLY_ELECTRICITY!G$3=\"Y\",IF(VAL_MONTHLY_ELECTRICITY!F10=\"\",\"A\",VAL_MONTHLY_ELECTRICITY!F10),\"\")","v":""},{"$f":"IF(VAL_MONTHLY_ELECTRICITY!G$3=\"Y\",IF(VAL_MONTHLY_ELECTRICITY!G10=\"\",\"F\",VAL_MONTHLY_ELECTRICITY!G10),\"\")","v":""},{"$f":"IF(VAL_MONTHLY_ELECTRICITY!J$3=\"Y\",ROUND(VAL_MONTHLY_ELECTRICITY!H10,3),\"\")","v":""},{"$f":"IF(VAL_MONTHLY_ELECTRICITY!J$3=\"Y\",IF(VAL_MONTHLY_ELECTRICITY!I10=\"\",\"A\",VAL_MONTHLY_ELECTRICITY!I10),\"\")","v":""},{"$f":"IF(VAL_MONTHLY_ELECTRICITY!J$3=\"Y\",IF(VAL_MONTHLY_ELECTRICITY!J10=\"\",\"F\",VAL_MONTHLY_ELECTRICITY!J10),\"\")","v":""},{"$f":"IF(VAL_MONTHLY_ELECTRICITY!M$3=\"Y\",ROUND(VAL_MONTHLY_ELECTRICITY!K10,3),\"\")","v":""},{"$f":"IF(VAL_MONTHLY_ELECTRICITY!M$3=\"Y\",IF(VAL_MONTHLY_ELECTRICITY!L10=\"\",\"A\",VAL_MONTHLY_ELECTRICITY!L10),\"\")","v":""},{"$f":"IF(VAL_MONTHLY_ELECTRICITY!M$3=\"Y\",IF(VAL_MONTHLY_ELECTRICITY!M10=\"\",\"F\",VAL_MONTHLY_ELECTRICITY!M10),\"\")","v":""},{"$f":"IF(VAL_MONTHLY_ELECTRICITY!P$3=\"Y\",ROUND(VAL_MONTHLY_ELECTRICITY!N10,3),\"\")","v":1.8560000000000001},{"$f":"IF(VAL_MONTHLY_ELECTRICITY!P$3=\"Y\",IF(VAL_MONTHLY_ELECTRICITY!O10=\"\",\"A\",VAL_MONTHLY_ELECTRICITY!O10),\"\")","v":"A"},{"$f":"IF(VAL_MONTHLY_ELECTRICITY!P$3=\"Y\",IF(VAL_MONTHLY_ELECTRICITY!P10=\"\",\"F\",VAL_MONTHLY_ELECTRICITY!P10),\"\")","v":"F"},{"$f":"IF(VAL_MONTHLY_ELECTRICITY!S$3=\"Y\",ROUND(VAL_MONTHLY_ELECTRICITY!Q10,3),\"\")","v":0},{"$f":"IF(VAL_MONTHLY_ELECTRICITY!S$3=\"Y\",IF(VAL_MONTHLY_ELECTRICITY!R10=\"\",\"A\",VAL_MONTHLY_ELECTRICITY!R10),\"\")","v":"A"},{"$f":"IF(VAL_MONTHLY_ELECTRICITY!S$3=\"Y\",IF(VAL_MONTHLY_ELECTRICITY!S10=\"\",\"F\",VAL_MONTHLY_ELECTRICITY!S10),\"\")","v":"F"},{"$f":"IF(VAL_MONTHLY_ELECTRICITY!V$3=\"Y\",ROUND(VAL_MONTHLY_ELECTRICITY!T10,3),\"\")","v":""},{"$f":"IF(VAL_MONTHLY_ELECTRICITY!V$3=\"Y\",IF(VAL_MONTHLY_ELECTRICITY!U10=\"\",\"A\",VAL_MONTHLY_ELECTRICITY!U10),\"\")","v":""},{"$f":"IF(VAL_MONTHLY_ELECTRICITY!V$3=\"Y\",IF(VAL_MONTHLY_ELECTRICITY!V10=\"\",\"F\",VAL_MONTHLY_ELECTRICITY!V10),\"\")","v":""},{"$f":"IF(VAL_MONTHLY_ELECTRICITY!Y$3=\"Y\",ROUND(VAL_MONTHLY_ELECTRICITY!W10,3),\"\")","v":""},{"$f":"IF(VAL_MONTHLY_ELECTRICITY!Y$3=\"Y\",IF(VAL_MONTHLY_ELECTRICITY!X10=\"\",\"A\",VAL_MONTHLY_ELECTRICITY!X10),\"\")","v":""},{"$f":"IF(VAL_MONTHLY_ELECTRICITY!Y$3=\"Y\",IF(VAL_MONTHLY_ELECTRICITY!Y10=\"\",\"F\",VAL_MONTHLY_ELECTRICITY!Y10),\"\")","v":""},{"$f":"IF(VAL_MONTHLY_ELECTRICITY!AB$3=\"Y\",ROUND(VAL_MONTHLY_ELECTRICITY!Z10,3),\"\")","v":""},{"$f":"IF(VAL_MONTHLY_ELECTRICITY!AB$3=\"Y\",IF(VAL_MONTHLY_ELECTRICITY!AA10=\"\",\"A\",VAL_MONTHLY_ELECTRICITY!AA10),\"\")","v":""},{"$f":"IF(VAL_MONTHLY_ELECTRICITY!AB$3=\"Y\",IF(VAL_MONTHLY_ELECTRICITY!AB10=\"\",\"F\",VAL_MONTHLY_ELECTRICITY!AB10),\"\")","v":""},{"$f":"IF(VAL_MONTHLY_ELECTRICITY!AE$3=\"Y\",ROUND(VAL_MONTHLY_ELECTRICITY!AC10,3),\"\")","v":""},{"$f":"IF(VAL_MONTHLY_ELECTRICITY!AE$3=\"Y\",IF(VAL_MONTHLY_ELECTRICITY!AD10=\"\",\"A\",VAL_MONTHLY_ELECTRICITY!AD10),\"\")","v":""},{"$f":"IF(VAL_MONTHLY_ELECTRICITY!AE$3=\"Y\",IF(VAL_MONTHLY_ELECTRICITY!AE10=\"\",\"F\",VAL_MONTHLY_ELECTRICITY!AE10),\"\")","v":""},{"$f":"IF(VAL_MONTHLY_ELECTRICITY!AH$3=\"Y\",ROUND(VAL_MONTHLY_ELECTRICITY!AF10,3),\"\")","v":0},{"$f":"IF(VAL_MONTHLY_ELECTRICITY!AH$3=\"Y\",IF(VAL_MONTHLY_ELECTRICITY!AG10=\"\",\"A\",VAL_MONTHLY_ELECTRICITY!AG10),\"\")","v":"A"},{"$f":"IF(VAL_MONTHLY_ELECTRICITY!AH$3=\"Y\",IF(VAL_MONTHLY_ELECTRICITY!AH10=\"\",\"F\",VAL_MONTHLY_ELECTRICITY!AH10),\"\")","v":"F"},{"$f":"IF(VAL_MONTHLY_ELECTRICITY!AK$3=\"Y\",ROUND(VAL_MONTHLY_ELECTRICITY!AI10,3),\"\")","v":0},{"$f":"IF(VAL_MONTHLY_ELECTRICITY!AK$3=\"Y\",IF(VAL_MONTHLY_ELECTRICITY!AJ10=\"\",\"A\",VAL_MONTHLY_ELECTRICITY!AJ10),\"\")","v":"A"},{"$f":"IF(VAL_MONTHLY_ELECTRICITY!AK$3=\"Y\",IF(VAL_MONTHLY_ELECTRICITY!AK10=\"\",\"F\",VAL_MONTHLY_ELECTRICITY!AK10),\"\")","v":"F"},{"$f":"IF(VAL_MONTHLY_ELECTRICITY!AN$3=\"Y\",ROUND(VAL_MONTHLY_ELECTRICITY!AL10,3),\"\")","v":0},{"$f":"IF(VAL_MONTHLY_ELECTRICITY!AN$3=\"Y\",IF(VAL_MONTHLY_ELECTRICITY!AM10=\"\",\"A\",VAL_MONTHLY_ELECTRICITY!AM10),\"\")","v":"A"},{"$f":"IF(VAL_MONTHLY_ELECTRICITY!AN$3=\"Y\",IF(VAL_MONTHLY_ELECTRICITY!AN10=\"\",\"F\",VAL_MONTHLY_ELECTRICITY!AN10),\"\")","v":"F"}]
[null,null,"NETPROD","_Z","COMBGAS","_Z","Natural gas",{"$f":"IF(VAL_MONTHLY_ELECTRICITY!G$3=\"Y\",ROUND(VAL_MONTHLY_ELECTRICITY!E11,3),\"\")","v":""},{"$f":"IF(VAL_MONTHLY_ELECTRICITY!G$3=\"Y\",IF(VAL_MONTHLY_ELECTRICITY!F11=\"\",\"A\",VAL_MONTHLY_ELECTRICITY!F11),\"\")","v":""},{"$f":"IF(VAL_MONTHLY_ELECTRICITY!G$3=\"Y\",IF(VAL_MONTHLY_ELECTRICITY!G11=\"\",\"F\",VAL_MONTHLY_ELECTRICITY!G11),\"\")","v":""},{"$f":"IF(VAL_MONTHLY_ELECTRICITY!J$3=\"Y\",ROUND(VAL_MONTHLY_ELECTRICITY!H11,3),\"\")","v":""},{"$f":"IF(VAL_MONTHLY_ELECTRICITY!J$3=\"Y\",IF(VAL_MONTHLY_ELECTRICITY!I11=\"\",\"A\",VAL_MONTHLY_ELECTRICITY!I11),\"\")","v":""},{"$f":"IF(VAL_MONTHLY_ELECTRICITY!J$3=\"Y\",IF(VAL_MONTHLY_ELECTRICITY!J11=\"\",\"F\",VAL_MONTHLY_ELECTRICITY!J11),\"\")","v":""},{"$f":"IF(VAL_MONTHLY_ELECTRICITY!M$3=\"Y\",ROUND(VAL_MONTHLY_ELECTRICITY!K11,3),\"\")","v":""},{"$f":"IF(VAL_MONTHLY_ELECTRICITY!M$3=\"Y\",IF(VAL_MONTHLY_ELECTRICITY!L11=\"\",\"A\",VAL_MONTHLY_ELECTRICITY!L11),\"\")","v":""},{"$f":"IF(VAL_MONTHLY_ELECTRICITY!M$3=\"Y\",IF(VAL_MONTHLY_ELECTRICITY!M11=\"\",\"F\",VAL_MONTHLY_ELECTRICITY!M11),\"\")","v":""},{"$f":"IF(VAL_MONTHLY_ELECTRICITY!P$3=\"Y\",ROUND(VAL_MONTHLY_ELECTRICITY!N11,3),\"\")","v":587.90899999999999},{"$f":"IF(VAL_MONTHLY_ELECTRICITY!P$3=\"Y\",IF(VAL_MONTHLY_ELECTRICITY!O11=\"\",\"A\",VAL_MONTHLY_ELECTRICITY!O11),\"\")","v":"A"},{"$f":"IF(VAL_MONTHLY_ELECTRICITY!P$3=\"Y\",IF(VAL_MONTHLY_ELECTRICITY!P11=\"\",\"F\",VAL_MONTHLY_ELECTRICITY!P11),\"\")","v":"F"},{"$f":"IF(VAL_MONTHLY_ELECTRICITY!S$3=\"Y\",ROUND(VAL_MONTHLY_ELECTRICITY!Q11,3),\"\")","v":562.19299999999998},{"$f":"IF(VAL_MONTHLY_ELECTRICITY!S$3=\"Y\",IF(VAL_MONTHLY_ELECTRICITY!R11=\"\",\"A\",VAL_MONTHLY_ELECTRICITY!R11),\"\")","v":"A"},{"$f":"IF(VAL_MONTHLY_ELECTRICITY!S$3=\"Y\",IF(VAL_MONTHLY_ELECTRICITY!S11=\"\",\"F\",VAL_MONTHLY_ELECTRICITY!S11),\"\")","v":"F"},{"$f":"IF(VAL_MONTHLY_ELECTRICITY!V$3=\"Y\",ROUND(VAL_MONTHLY_ELECTRICITY!T11,3),\"\")","v":""},{"$f":"IF(VAL_MONTHLY_ELECTRICITY!V$3=\"Y\",IF(VAL_MONTHLY_ELECTRICITY!U11=\"\",\"A\",VAL_MONTHLY_ELECTRICITY!U11),\"\")","v":""},{"$f":"IF(VAL_MONTHLY_ELECTRICITY!V$3=\"Y\",IF(VAL_MONTHLY_ELECTRICITY!V11=\"\",\"F\",VAL_MONTHLY_ELECTRICITY!V11),\"\")","v":""},{"$f":"IF(VAL_MONTHLY_ELECTRICITY!Y$3=\"Y\",ROUND(VAL_MONTHLY_ELECTRICITY!W11,3),\"\")","v":""},{"$f":"IF(VAL_MONTHLY_ELECTRICITY!Y$3=\"Y\",IF(VAL_MONTHLY_ELECTRICITY!X11=\"\",\"A\",VAL_MONTHLY_ELECTRICITY!X11),\"\")","v":""},{"$f":"IF(VAL_MONTHLY_ELECTRICITY!Y$3=\"Y\",IF(VAL_MONTHLY_ELECTRICITY!Y11=\"\",\"F\",VAL_MONTHLY_ELECTRICITY!Y11),\"\")","v":""},{"$f":"IF(VAL_MONTHLY_ELECTRICITY!AB$3=\"Y\",ROUND(VAL_MONTHLY_ELECTRICITY!Z11,3),\"\")","v":""},{"$f":"IF(VAL_MONTHLY_ELECTRICITY!AB$3=\"Y\",IF(VAL_MONTHLY_ELECTRICITY!AA11=\"\",\"A\",VAL_MONTHLY_ELECTRICITY!AA11),\"\")","v":""},{"$f":"IF(VAL_MONTHLY_ELECTRICITY!AB$3=\"Y\",IF(VAL_MONTHLY_ELECTRICITY!AB11=\"\",\"F\",VAL_MONTHLY_ELECTRICITY!AB11),\"\")","v":""},{"$f":"IF(VAL_MONTHLY_ELECTRICITY!AE$3=\"Y\",ROUND(VAL_MONTHLY_ELECTRICITY!AC11,3),\"\")","v":""},{"$f":"IF(VAL_MONTHLY_ELECTRICITY!AE$3=\"Y\",IF(VAL_MONTHLY_ELECTRICITY!AD11=\"\",\"A\",VAL_MONTHLY_ELECTRICITY!AD11),\"\")","v":""},{"$f":"IF(VAL_MONTHLY_ELECTRICITY!AE$3=\"Y\",IF(VAL_MONTHLY_ELECTRICITY!AE11=\"\",\"F\",VAL_MONTHLY_ELECTRICITY!AE11),\"\")","v":""},{"$f":"IF(VAL_MONTHLY_ELECTRICITY!AH$3=\"Y\",ROUND(VAL_MONTHLY_ELECTRICITY!AF11,3),\"\")","v":0},{"$f":"IF(VAL_MONTHLY_ELECTRICITY!AH$3=\"Y\",IF(VAL_MONTHLY_ELECTRICITY!AG11=\"\",\"A\",VAL_MONTHLY_ELECTRICITY!AG11),\"\")","v":"A"},{"$f":"IF(VAL_MONTHLY_ELECTRICITY!AH$3=\"Y\",IF(VAL_MONTHLY_ELECTRICITY!AH11=\"\",\"F\",VAL_MONTHLY_ELECTRICITY!AH11),\"\")","v":"F"},{"$f":"IF(VAL_MONTHLY_ELECTRICITY!AK$3=\"Y\",ROUND(VAL_MONTHLY_ELECTRICITY!AI11,3),\"\")","v":0},{"$f":"IF(VAL_MONTHLY_ELECTRICITY!AK$3=\"Y\",IF(VAL_MONTHLY_ELECTRICITY!AJ11=\"\",\"A\",VAL_MONTHLY_ELECTRICITY!AJ11),\"\")","v":"A"},{"$f":"IF(VAL_MONTHLY_ELECTRICITY!AK$3=\"Y\",IF(VAL_MONTHLY_ELECTRICITY!AK11=\"\",\"F\",VAL_MONTHLY_ELECTRICITY!AK11),\"\")","v":"F"},{"$f":"IF(VAL_MONTHLY_ELECTRICITY!AN$3=\"Y\",ROUND(VAL_MONTHLY_ELECTRICITY!AL11,3),\"\")","v":0},{"$f":"IF(VAL_MONTHLY_ELECTRICITY!AN$3=\"Y\",IF(VAL_MONTHLY_ELECTRICITY!AM11=\"\",\"A\",VAL_MONTHLY_ELECTRICITY!AM11),\"\")","v":"A"},{"$f":"IF(VAL_MONTHLY_ELECTRICITY!AN$3=\"Y\",IF(VAL_MONTHLY_ELECTRICITY!AN11=\"\",\"F\",VAL_MONTHLY_ELECTRICITY!AN11),\"\")","v":"F"}]
[null,null,"NETPROD","_Z","COMBREN","_Z","Combustible renewables",{"$f":"IF(VAL_MONTHLY_ELECTRICITY!G$3=\"Y\",ROUND(VAL_MONTHLY_ELECTRICITY!E12,3),\"\")","v":""},{"$f":"IF(VAL_MONTHLY_ELECTRICITY!G$3=\"Y\",IF(VAL_MONTHLY_ELECTRICITY!F12=\"\",\"A\",VAL_MONTHLY_ELECTRICITY!F12),\"\")","v":""},{"$f":"IF(VAL_MONTHLY_ELECTRICITY!G$3=\"Y\",IF(VAL_MONTHLY_ELECTRICITY!G12=\"\",\"F\",VAL_MONTHLY_ELECTRICITY!G12),\"\")","v":""},{"$f":"IF(VAL_MONTHLY_ELECTRICITY!J$3=\"Y\",ROUND(VAL_MONTHLY_ELECTRICITY!H12,3),\"\")","v":""},{"$f":"IF(VAL_MONTHLY_ELECTRICITY!J$3=\"Y\",IF(VAL_MONTHLY_ELECTRICITY!I12=\"\",\"A\",VAL_MONTHLY_ELECTRICITY!I12),\"\")","v":""},{"$f":"IF(VAL_MONTHLY_ELECTRICITY!J$3=\"Y\",IF(VAL_MONTHLY_ELECTRICITY!J12=\"\",\"F\",VAL_MONTHLY_ELECTRICITY!J12),\"\")","v":""},{"$f":"IF(VAL_MONTHLY_ELECTRICITY!M$3=\"Y\",ROUND(VAL_MONTHLY_ELECTRICITY!K12,3),\"\")","v":""},{"$f":"IF(VAL_MONTHLY_ELECTRICITY!M$3=\"Y\",IF(VAL_MONTHLY_ELECTRICITY!L12=\"\",\"A\",VAL_MONTHLY_ELECTRICITY!L12),\"\")","v":""},{"$f":"IF(VAL_MONTHLY_ELECTRICITY!M$3=\"Y\",IF(VAL_MONTHLY_ELECTRICITY!M12=\"\",\"F\",VAL_MONTHLY_ELECTRICITY!M12),\"\")","v":""},{"$f":"IF(VAL_MONTHLY_ELECTRICITY!P$3=\"Y\",ROUND(VAL_MONTHLY_ELECTRICITY!N12,3),\"\")","v":69.424000000000007},{"$f":"IF(VAL_MONTHLY_ELECTRICITY!P$3=\"Y\",IF(VAL_MONTHLY_ELECTRICITY!O12=\"\",\"A\",VAL_MONTHLY_ELECTRICITY!O12),\"\")","v":"A"},{"$f":"IF(VAL_MONTHLY_ELECTRICITY!P$3=\"Y\",IF(VAL_MONTHLY_ELECTRICITY!P12=\"\",\"F\",VAL_MONTHLY_ELECTRICITY!P12),\"\")","v":"F"},{"$f":"IF(VAL_MONTHLY_ELECTRICITY!S$3=\"Y\",ROUND(VAL_MONTHLY_ELECTRICITY!Q12,3),\"\")","v":20.183},{"$f":"IF(VAL_MONTHLY_ELECTRICITY!S$3=\"Y\",IF(VAL_MONTHLY_ELECTRICITY!R12=\"\",\"A\",VAL_MONTHLY_ELECTRICITY!R12),\"\")","v":"A"},{"$f":"IF(VAL_MONTHLY_ELECTRICITY!S$3=\"Y\",IF(VAL_MONTHLY_ELECTRICITY!S12=\"\",\"F\",VAL_MONTHLY_ELECTRICITY!S12),\"\")","v":"F"},{"$f":"IF(VAL_MONTHLY_ELECTRICITY!V$3=\"Y\",ROUND(VAL_MONTHLY_ELECTRICITY!T12,3),\"\")","v":""},{"$f":"IF(VAL_MONTHLY_ELECTRICITY!V$3=\"Y\",IF(VAL_MONTHLY_ELECTRICITY!U12=\"\",\"A\",VAL_MONTHLY_ELECTRICITY!U12),\"\")","v":""},{"$f":"IF(VAL_MONTHLY_ELECTRICITY!V$3=\"Y\",IF(VAL_MONTHLY_ELECTRICITY!V12=\"\",\"F\",VAL_MONTHLY_ELECTRICITY!V12),\"\")","v":""},{"$f":"IF(VAL_MONTHLY_ELECTRICITY!Y$3=\"Y\",ROUND(VAL_MONTHLY_ELECTRICITY!W12,3),\"\")","v":""},{"$f":"IF(VAL_MONTHLY_ELECTRICITY!Y$3=\"Y\",IF(VAL_MONTHLY_ELECTRICITY!X12=\"\",\"A\",VAL_MONTHLY_ELECTRICITY!X12),\"\")","v":""},{"$f":"IF(VAL_MONTHLY_ELECTRICITY!Y$3=\"Y\",IF(VAL_MONTHLY_ELECTRICITY!Y12=\"\",\"F\",VAL_MONTHLY_ELECTRICITY!Y12),\"\")","v":""},{"$f":"IF(VAL_MONTHLY_ELECTRICITY!AB$3=\"Y\",ROUND(VAL_MONTHLY_ELECTRICITY!Z12,3),\"\")","v":""},{"$f":"IF(VAL_MONTHLY_ELECTRICITY!AB$3=\"Y\",IF(VAL_MONTHLY_ELECTRICITY!AA12=\"\",\"A\",VAL_MONTHLY_ELECTRICITY!AA12),\"\")","v":""},{"$f":"IF(VAL_MONTHLY_ELECTRICITY!AB$3=\"Y\",IF(VAL_MONTHLY_ELECTRICITY!AB12=\"\",\"F\",VAL_MONTHLY_ELECTRICITY!AB12),\"\")","v":""},{"$f":"IF(VAL_MONTHLY_ELECTRICITY!AE$3=\"Y\",ROUND(VAL_MONTHLY_ELECTRICITY!AC12,3),\"\")","v":""},{"$f":"IF(VAL_MONTHLY_ELECTRICITY!AE$3=\"Y\",IF(VAL_MONTHLY_ELECTRICITY!AD12=\"\",\"A\",VAL_MONTHLY_ELECTRICITY!AD12),\"\")","v":""},{"$f":"IF(VAL_MONTHLY_ELECTRICITY!AE$3=\"Y\",IF(VAL_MONTHLY_ELECTRICITY!AE12=\"\",\"F\",VAL_MONTHLY_ELECTRICITY!AE12),\"\")","v":""},{"$f":"IF(VAL_MONTHLY_ELECTRICITY!AH$3=\"Y\",ROUND(VAL_MONTHLY_ELECTRICITY!AF12,3),\"\")","v":0},{"$f":"IF(VAL_MONTHLY_ELECTRICITY!AH$3=\"Y\",IF(VAL_MONTHLY_ELECTRICITY!AG12=\"\",\"A\",VAL_MONTHLY_ELECTRICITY!AG12),\"\")","v":"A"},{"$f":"IF(VAL_MONTHLY_ELECTRICITY!AH$3=\"Y\",IF(VAL_MONTHLY_ELECTRICITY!AH12=\"\",\"F\",VAL_MONTHLY_ELECTRICITY!AH12),\"\")","v":"F"},{"$f":"IF(VAL_MONTHLY_ELECTRICITY!AK$3=\"Y\",ROUND(VAL_MONTHLY_ELECTRICITY!AI12,3),\"\")","v":0},{"$f":"IF(VAL_MONTHLY_ELECTRICITY!AK$3=\"Y\",IF(VAL_MONTHLY_ELECTRICITY!AJ12=\"\",\"A\",VAL_MONTHLY_ELECTRICITY!AJ12),\"\")","v":"A"},{"$f":"IF(VAL_MONTHLY_ELECTRICITY!AK$3=\"Y\",IF(VAL_MONTHLY_ELECTRICITY!AK12=\"\",\"F\",VAL_MONTHLY_ELECTRICITY!AK12),\"\")","v":"F"},{"$f":"IF(VAL_MONTHLY_ELECTRICITY!AN$3=\"Y\",ROUND(VAL_MONTHLY_ELECTRICITY!AL12,3),\"\")","v":0},{"$f":"IF(VAL_MONTHLY_ELECTRICITY!AN$3=\"Y\",IF(VAL_MONTHLY_ELECTRICITY!AM12=\"\",\"A\",VAL_MONTHLY_ELECTRICITY!AM12),\"\")","v":"A"},{"$f":"IF(VAL_MONTHLY_ELECTRICITY!AN$3=\"Y\",IF(VAL_MONTHLY_ELECTRICITY!AN12=\"\",\"F\",VAL_MONTHLY_ELECTRICITY!AN12),\"\")","v":"F"}]
[null,null,"NETPROD","_Z","COMBOTH","_Z","Other combustible fuels (non-renewable)",{"$f":"IF(VAL_MONTHLY_ELECTRICITY!G$3=\"Y\",ROUND(VAL_MONTHLY_ELECTRICITY!E13,3),\"\")","v":""},{"$f":"IF(VAL_MONTHLY_ELECTRICITY!G$3=\"Y\",IF(VAL_MONTHLY_ELECTRICITY!F13=\"\",\"A\",VAL_MONTHLY_ELECTRICITY!F13),\"\")","v":""},{"$f":"IF(VAL_MONTHLY_ELECTRICITY!G$3=\"Y\",IF(VAL_MONTHLY_ELECTRICITY!G13=\"\",\"F\",VAL_MONTHLY_ELECTRICITY!G13),\"\")","v":""},{"$f":"IF(VAL_MONTHLY_ELECTRICITY!J$3=\"Y\",ROUND(VAL_MONTHLY_ELECTRICITY!H13,3),\"\")","v":""},{"$f":"IF(VAL_MONTHLY_ELECTRICITY!J$3=\"Y\",IF(VAL_MONTHLY_ELECTRICITY!I13=\"\",\"A\",VAL_MONTHLY_ELECTRICITY!I13),\"\")","v":""},{"$f":"IF(VAL_MONTHLY_ELECTRICITY!J$3=\"Y\",IF(VAL_MONTHLY_ELECTRICITY!J13=\"\",\"F\",VAL_MONTHLY_ELECTRICITY!J13),\"\")","v":""},{"$f":"IF(VAL_MONTHLY_ELECTRICITY!M$3=\"Y\",ROUND(VAL_MONTHLY_ELECTRICITY!K13,3),\"\")","v":""},{"$f":"IF(VAL_MONTHLY_ELECTRICITY!M$3=\"Y\",IF(VAL_MONTHLY_ELECTRICITY!L13=\"\",\"A\",VAL_MONTHLY_ELECTRICITY!L13),\"\")","v":""},{"$f":"IF(VAL_MONTHLY_ELECTRICITY!M$3=\"Y\",IF(VAL_MONTHLY_ELECTRICITY!M13=\"\",\"F\",VAL_MONTHLY_ELECTRICITY!M13),\"\")","v":""},{"$f":"IF(VAL_MONTHLY_ELECTRICITY!P$3=\"Y\",ROUND(VAL_MONTHLY_ELECTRICITY!N13,3),\"\")","v":0},{"$f":"IF(VAL_MONTHLY_ELECTRICITY!P$3=\"Y\",IF(VAL_MONTHLY_ELECTRICITY!O13=\"\",\"A\",VAL_MONTHLY_ELECTRICITY!O13),\"\")","v":"A"},{"$f":"IF(VAL_MONTHLY_ELECTRICITY!P$3=\"Y\",IF(VAL_MONTHLY_ELECTRICITY!P13=\"\",\"F\",VAL_MONTHLY_ELECTRICITY!P13),\"\")","v":"F"},{"$f":"IF(VAL_MONTHLY_ELECTRICITY!S$3=\"Y\",ROUND(VAL_MONTHLY_ELECTRICITY!Q13,3),\"\")","v":0},{"$f":"IF(VAL_MONTHLY_ELECTRICITY!S$3=\"Y\",IF(VAL_MONTHLY_ELECTRICITY!R13=\"\",\"A\",VAL_MONTHLY_ELECTRICITY!R13),\"\")","v":"A"},{"$f":"IF(VAL_MONTHLY_ELECTRICITY!S$3=\"Y\",IF(VAL_MONTHLY_ELECTRICITY!S13=\"\",\"F\",VAL_MONTHLY_ELECTRICITY!S13),\"\")","v":"F"},{"$f":"IF(VAL_MONTHLY_ELECTRICITY!V$3=\"Y\",ROUND(VAL_MONTHLY_ELECTRICITY!T13,3),\"\")","v":""},{"$f":"IF(VAL_MONTHLY_ELECTRICITY!V$3=\"Y\",IF(VAL_MONTHLY_ELECTRICITY!U13=\"\",\"A\",VAL_MONTHLY_ELECTRICITY!U13),\"\")","v":""},{"$f":"IF(VAL_MONTHLY_ELECTRICITY!V$3=\"Y\",IF(VAL_MONTHLY_ELECTRICITY!V13=\"\",\"F\",VAL_MONTHLY_ELECTRICITY!V13),\"\")","v":""},{"$f":"IF(VAL_MONTHLY_ELECTRICITY!Y$3=\"Y\",ROUND(VAL_MONTHLY_ELECTRICITY!W13,3),\"\")","v":""},{"$f":"IF(VAL_MONTHLY_ELECTRICITY!Y$3=\"Y\",IF(VAL_MONTHLY_ELECTRICITY!X13=\"\",\"A\",VAL_MONTHLY_ELECTRICITY!X13),\"\")","v":""},{"$f":"IF(VAL_MONTHLY_ELECTRICITY!Y$3=\"Y\",IF(VAL_MONTHLY_ELECTRICITY!Y13=\"\",\"F\",VAL_MONTHLY_ELECTRICITY!Y13),\"\")","v":""},{"$f":"IF(VAL_MONTHLY_ELECTRICITY!AB$3=\"Y\",ROUND(VAL_MONTHLY_ELECTRICITY!Z13,3),\"\")","v":""},{"$f":"IF(VAL_MONTHLY_ELECTRICITY!AB$3=\"Y\",IF(VAL_MONTHLY_ELECTRICITY!AA13=\"\",\"A\",VAL_MONTHLY_ELECTRICITY!AA13),\"\")","v":""},{"$f":"IF(VAL_MONTHLY_ELECTRICITY!AB$3=\"Y\",IF(VAL_MONTHLY_ELECTRICITY!AB13=\"\",\"F\",VAL_MONTHLY_ELECTRICITY!AB13),\"\")","v":""},{"$f":"IF(VAL_MONTHLY_ELECTRICITY!AE$3=\"Y\",ROUND(VAL_MONTHLY_ELECTRICITY!AC13,3),\"\")","v":""},{"$f":"IF(VAL_MONTHLY_ELECTRICITY!AE$3=\"Y\",IF(VAL_MONTHLY_ELECTRICITY!AD13=\"\",\"A\",VAL_MONTHLY_ELECTRICITY!AD13),\"\")","v":""},{"$f":"IF(VAL_MONTHLY_ELECTRICITY!AE$3=\"Y\",IF(VAL_MONTHLY_ELECTRICITY!AE13=\"\",\"F\",VAL_MONTHLY_ELECTRICITY!AE13),\"\")","v":""},{"$f":"IF(VAL_MONTHLY_ELECTRICITY!AH$3=\"Y\",ROUND(VAL_MONTHLY_ELECTRICITY!AF13,3),\"\")","v":0},{"$f":"IF(VAL_MONTHLY_ELECTRICITY!AH$3=\"Y\",IF(VAL_MONTHLY_ELECTRICITY!AG13=\"\",\"A\",VAL_MONTHLY_ELECTRICITY!AG13),\"\")","v":"A"},{"$f":"IF(VAL_MONTHLY_ELECTRICITY!AH$3=\"Y\",IF(VAL_MONTHLY_ELECTRICITY!AH13=\"\",\"F\",VAL_MONTHLY_ELECTRICITY!AH13),\"\")","v":"F"},{"$f":"IF(VAL_MONTHLY_ELECTRICITY!AK$3=\"Y\",ROUND(VAL_MONTHLY_ELECTRICITY!AI13,3),\"\")","v":0},{"$f":"IF(VAL_MONTHLY_ELECTRICITY!AK$3=\"Y\",IF(VAL_MONTHLY_ELECTRICITY!AJ13=\"\",\"A\",VAL_MONTHLY_ELECTRICITY!AJ13),\"\")","v":"A"},{"$f":"IF(VAL_MONTHLY_ELECTRICITY!AK$3=\"Y\",IF(VAL_MONTHLY_ELECTRICITY!AK13=\"\",\"F\",VAL_MONTHLY_ELECTRICITY!AK13),\"\")","v":"F"},{"$f":"IF(VAL_MONTHLY_ELECTRICITY!AN$3=\"Y\",ROUND(VAL_MONTHLY_ELECTRICITY!AL13,3),\"\")","v":0},{"$f":"IF(VAL_MONTHLY_ELECTRICITY!AN$3=\"Y\",IF(VAL_MONTHLY_ELECTRICITY!AM13=\"\",\"A\",VAL_MONTHLY_ELECTRICITY!AM13),\"\")","v":"A"},{"$f":"IF(VAL_MONTHLY_ELECTRICITY!AN$3=\"Y\",IF(VAL_MONTHLY_ELECTRICITY!AN13=\"\",\"F\",VAL_MONTHLY_ELECTRICITY!AN13),\"\")","v":"F"}]
[null,null,"NETPROD","_Z","HYDRO","_Z","Hydro",{"$f":"IF(VAL_MONTHLY_ELECTRICITY!G$3=\"Y\",ROUND(VAL_MONTHLY_ELECTRICITY!E14,3),\"\")","v":""},{"$f":"IF(VAL_MONTHLY_ELECTRICITY!G$3=\"Y\",IF(VAL_MONTHLY_ELECTRICITY!F14=\"\",\"A\",VAL_MONTHLY_ELECTRICITY!F14),\"\")","v":""},{"$f":"IF(VAL_MONTHLY_ELECTRICITY!G$3=\"Y\",IF(VAL_MONTHLY_ELECTRICITY!G14=\"\",\"F\",VAL_MONTHLY_ELECTRICITY!G14),\"\")","v":""},{"$f":"IF(VAL_MONTHLY_ELECTRICITY!J$3=\"Y\",ROUND(VAL_MONTHLY_ELECTRICITY!H14,3),\"\")","v":""},{"$f":"IF(VAL_MONTHLY_ELECTRICITY!J$3=\"Y\",IF(VAL_MONTHLY_ELECTRICITY!I14=\"\",\"A\",VAL_MONTHLY_ELECTRICITY!I14),\"\")","v":""},{"$f":"IF(VAL_MONTHLY_ELECTRICITY!J$3=\"Y\",IF(VAL_MONTHLY_ELECTRICITY!J14=\"\",\"F\",VAL_MONTHLY_ELECTRICITY!J14),\"\")","v":""},{"$f":"IF(VAL_MONTHLY_ELECTRICITY!M$3=\"Y\",ROUND(VAL_MONTHLY_ELECTRICITY!K14,3),\"\")","v":""},{"$f":"IF(VAL_MONTHLY_ELECTRICITY!M$3=\"Y\",IF(VAL_MONTHLY_ELECTRICITY!L14=\"\",\"A\",VAL_MONTHLY_ELECTRICITY!L14),\"\")","v":""},{"$f":"IF(VAL_MONTHLY_ELECTRICITY!M$3=\"Y\",IF(VAL_MONTHLY_ELECTRICITY!M14=\"\",\"F\",VAL_MONTHLY_ELECTRICITY!M14),\"\")","v":""},{"$f":"IF(VAL_MONTHLY_ELECTRICITY!P$3=\"Y\",ROUND(VAL_MONTHLY_ELECTRICITY!N14,3),\"\")","v":4778.2520000000004},{"$f":"IF(VAL_MONTHLY_ELECTRICITY!P$3=\"Y\",IF(VAL_MONTHLY_ELECTRICITY!O14=\"\",\"A\",VAL_MONTHLY_ELECTRICITY!O14),\"\")","v":"A"},{"$f":"IF(VAL_MONTHLY_ELECTRICITY!P$3=\"Y\",IF(VAL_MONTHLY_ELECTRICITY!P14=\"\",\"F\",VAL_MONTHLY_ELECTRICITY!P14),\"\")","v":"F"},{"$f":"IF(VAL_MONTHLY_ELECTRICITY!S$3=\"Y\",ROUND(VAL_MONTHLY_ELECTRICITY!Q14,3),\"\")","v":5154.03},{"$f":"IF(VAL_MONTHLY_ELECTRICITY!S$3=\"Y\",IF(VAL_MONTHLY_ELECTRICITY!R14=\"\",\"A\",VAL_MONTHLY_ELECTRICITY!R14),\"\")","v":"A"},{"$f":"IF(VAL_MONTHLY_ELECTRICITY!S$3=\"Y\",IF(VAL_MONTHLY_ELECTRICITY!S14=\"\",\"F\",VAL_MONTHLY_ELECTRICITY!S14),\"\")","v":"F"},{"$f":"IF(VAL_MONTHLY_ELECTRICITY!V$3=\"Y\",ROUND(VAL_MONTHLY_ELECTRICITY!T14,3),\"\")","v":""},{"$f":"IF(VAL_MONTHLY_ELECTRICITY!V$3=\"Y\",IF(VAL_MONTHLY_ELECTRICITY!U14=\"\",\"A\",VAL_MONTHLY_ELECTRICITY!U14),\"\")","v":""},{"$f":"IF(VAL_MONTHLY_ELECTRICITY!V$3=\"Y\",IF(VAL_MONTHLY_ELECTRICITY!V14=\"\",\"F\",VAL_MONTHLY_ELECTRICITY!V14),\"\")","v":""},{"$f":"IF(VAL_MONTHLY_ELECTRICITY!Y$3=\"Y\",ROUND(VAL_MONTHLY_ELECTRICITY!W14,3),\"\")","v":""},{"$f":"IF(VAL_MONTHLY_ELECTRICITY!Y$3=\"Y\",IF(VAL_MONTHLY_ELECTRICITY!X14=\"\",\"A\",VAL_MONTHLY_ELECTRICITY!X14),\"\")","v":""},{"$f":"IF(VAL_MONTHLY_ELECTRICITY!Y$3=\"Y\",IF(VAL_MONTHLY_ELECTRICITY!Y14=\"\",\"F\",VAL_MONTHLY_ELECTRICITY!Y14),\"\")","v":""},{"$f":"IF(VAL_MONTHLY_ELECTRICITY!AB$3=\"Y\",ROUND(VAL_MONTHLY_ELECTRICITY!Z14,3),\"\")","v":""},{"$f":"IF(VAL_MONTHLY_ELECTRICITY!AB$3=\"Y\",IF(VAL_MONTHLY_ELECTRICITY!AA14=\"\",\"A\",VAL_MONTHLY_ELECTRICITY!AA14),\"\")","v":""},{"$f":"IF(VAL_MONTHLY_ELECTRICITY!AB$3=\"Y\",IF(VAL_MONTHLY_ELECTRICITY!AB14=\"\",\"F\",VAL_MONTHLY_ELECTRICITY!AB14),\"\")","v":""},{"$f":"IF(VAL_MONTHLY_ELECTRICITY!AE$3=\"Y\",ROUND(VAL_MONTHLY_ELECTRICITY!AC14,3),\"\")","v":""},{"$f":"IF(VAL_MONTHLY_ELECTRICITY!AE$3=\"Y\",IF(VAL_MONTHLY_ELECTRICITY!AD14=\"\",\"A\",VAL_MONTHLY_ELECTRICITY!AD14),\"\")","v":""},{"$f":"IF(VAL_MONTHLY_ELECTRICITY!AE$3=\"Y\",IF(VAL_MONTHLY_ELECTRICITY!AE14=\"\",\"F\",VAL_MONTHLY_ELECTRICITY!AE14),\"\")","v":""},{"$f":"IF(VAL_MONTHLY_ELECTRICITY!AH$3=\"Y\",ROUND(VAL_MONTHLY_ELECTRICITY!AF14,3),\"\")","v":0},{"$f":"IF(VAL_MONTHLY_ELECTRICITY!AH$3=\"Y\",IF(VAL_MONTHLY_ELECTRICITY!AG14=\"\",\"A\",VAL_MONTHLY_ELECTRICITY!AG14),\"\")","v":"A"},{"$f":"IF(VAL_MONTHLY_ELECTRICITY!AH$3=\"Y\",IF(VAL_MONTHLY_ELECTRICITY!AH14=\"\",\"F\",VAL_MONTHLY_ELECTRICITY!AH14),\"\")","v":"F"},{"$f":"IF(VAL_MONTHLY_ELECTRICITY!AK$3=\"Y\",ROUND(VAL_MONTHLY_ELECTRICITY!AI14,3),\"\")","v":0},{"$f":"IF(VAL_MONTHLY_ELECTRICITY!AK$3=\"Y\",IF(VAL_MONTHLY_ELECTRICITY!AJ14=\"\",\"A\",VAL_MONTHLY_ELECTRICITY!AJ14),\"\")","v":"A"},{"$f":"IF(VAL_MONTHLY_ELECTRICITY!AK$3=\"Y\",IF(VAL_MONTHLY_ELECTRICITY!AK14=\"\",\"F\",VAL_MONTHLY_ELECTRICITY!AK14),\"\")","v":"F"},{"$f":"IF(VAL_MONTHLY_ELECTRICITY!AN$3=\"Y\",ROUND(VAL_MONTHLY_ELECTRICITY!AL14,3),\"\")","v":0},{"$f":"IF(VAL_MONTHLY_ELECTRICITY!AN$3=\"Y\",IF(VAL_MONTHLY_ELECTRICITY!AM14=\"\",\"A\",VAL_MONTHLY_ELECTRICITY!AM14),\"\")","v":"A"},{"$f":"IF(VAL_MONTHLY_ELECTRICITY!AN$3=\"Y\",IF(VAL_MONTHLY_ELECTRICITY!AN14=\"\",\"F\",VAL_MONTHLY_ELECTRICITY!AN14),\"\")","v":"F"}]
[null,null,"NETPROD","_Z","PURHYDRO","_Z","Pure hydro",{"$f":"IF(VAL_MONTHLY_ELECTRICITY!G$3=\"Y\",ROUND(VAL_MONTHLY_ELECTRICITY!E15,3),\"\")","v":""},{"$f":"IF(VAL_MONTHLY_ELECTRICITY!G$3=\"Y\",IF(VAL_MONTHLY_ELECTRICITY!F15=\"\",\"A\",VAL_MONTHLY_ELECTRICITY!F15),\"\")","v":""},{"$f":"IF(VAL_MONTHLY_ELECTRICITY!G$3=\"Y\",IF(VAL_MONTHLY_ELECTRICITY!G15=\"\",\"F\",VAL_MONTHLY_ELECTRICITY!G15),\"\")","v":""},{"$f":"IF(VAL_MONTHLY_ELECTRICITY!J$3=\"Y\",ROUND(VAL_MONTHLY_ELECTRICITY!H15,3),\"\")","v":""},{"$f":"IF(VAL_MONTHLY_ELECTRICITY!J$3=\"Y\",IF(VAL_MONTHLY_ELECTRICITY!I15=\"\",\"A\",VAL_MONTHLY_ELECTRICITY!I15),\"\")","v":""},{"$f":"IF(VAL_MONTHLY_ELECTRICITY!J$3=\"Y\",IF(VAL_MONTHLY_ELECTRICITY!J15=\"\",\"F\",VAL_MONTHLY_ELECTRICITY!J15),\"\")","v":""},{"$f":"IF(VAL_MONTHLY_ELECTRICITY!M$3=\"Y\",ROUND(VAL_MONTHLY_ELECTRICITY!K15,3),\"\")","v":""},{"$f":"IF(VAL_MONTHLY_ELECTRICITY!M$3=\"Y\",IF(VAL_MONTHLY_ELECTRICITY!L15=\"\",\"A\",VAL_MONTHLY_ELECTRICITY!L15),\"\")","v":""},{"$f":"IF(VAL_MONTHLY_ELECTRICITY!M$3=\"Y\",IF(VAL_MONTHLY_ELECTRICITY!M15=\"\",\"F\",VAL_MONTHLY_ELECTRICITY!M15),\"\")","v":""},{"$f":"IF(VAL_MONTHLY_ELECTRICITY!P$3=\"Y\",ROUND(VAL_MONTHLY_ELECTRICITY!N15,3),\"\")","v":4778.2520000000004},{"$f":"IF(VAL_MONTHLY_ELECTRICITY!P$3=\"Y\",IF(VAL_MONTHLY_ELECTRICITY!O15=\"\",\"A\",VAL_MONTHLY_ELECTRICITY!O15),\"\")","v":"A"},{"$f":"IF(VAL_MONTHLY_ELECTRICITY!P$3=\"Y\",IF(VAL_MONTHLY_ELECTRICITY!P15=\"\",\"F\",VAL_MONTHLY_ELECTRICITY!P15),\"\")","v":"F"},{"$f":"IF(VAL_MONTHLY_ELECTRICITY!S$3=\"Y\",ROUND(VAL_MONTHLY_ELECTRICITY!Q15,3),\"\")","v":5154.03},{"$f":"IF(VAL_MONTHLY_ELECTRICITY!S$3=\"Y\",IF(VAL_MONTHLY_ELECTRICITY!R15=\"\",\"A\",VAL_MONTHLY_ELECTRICITY!R15),\"\")","v":"A"},{"$f":"IF(VAL_MONTHLY_ELECTRICITY!S$3=\"Y\",IF(VAL_MONTHLY_ELECTRICITY!S15=\"\",\"F\",VAL_MONTHLY_ELECTRICITY!S15),\"\")","v":"F"},{"$f":"IF(VAL_MONTHLY_ELECTRICITY!V$3=\"Y\",ROUND(VAL_MONTHLY_ELECTRICITY!T15,3),\"\")","v":""},{"$f":"IF(VAL_MONTHLY_ELECTRICITY!V$3=\"Y\",IF(VAL_MONTHLY_ELECTRICITY!U15=\"\",\"A\",VAL_MONTHLY_ELECTRICITY!U15),\"\")","v":""},{"$f":"IF(VAL_MONTHLY_ELECTRICITY!V$3=\"Y\",IF(VAL_MONTHLY_ELECTRICITY!V15=\"\",\"F\",VAL_MONTHLY_ELECTRICITY!V15),\"\")","v":""},{"$f":"IF(VAL_MONTHLY_ELECTRICITY!Y$3=\"Y\",ROUND(VAL_MONTHLY_ELECTRICITY!W15,3),\"\")","v":""},{"$f":"IF(VAL_MONTHLY_ELECTRICITY!Y$3=\"Y\",IF(VAL_MONTHLY_ELECTRICITY!X15=\"\",\"A\",VAL_MONTHLY_ELECTRICITY!X15),\"\")","v":""},{"$f":"IF(VAL_MONTHLY_ELECTRICITY!Y$3=\"Y\",IF(VAL_MONTHLY_ELECTRICITY!Y15=\"\",\"F\",VAL_MONTHLY_ELECTRICITY!Y15),\"\")","v":""},{"$f":"IF(VAL_MONTHLY_ELECTRICITY!AB$3=\"Y\",ROUND(VAL_MONTHLY_ELECTRICITY!Z15,3),\"\")","v":""},{"$f":"IF(VAL_MONTHLY_ELECTRICITY!AB$3=\"Y\",IF(VAL_MONTHLY_ELECTRICITY!AA15=\"\",\"A\",VAL_MONTHLY_ELECTRICITY!AA15),\"\")","v":""},{"$f":"IF(VAL_MONTHLY_ELECTRICITY!AB$3=\"Y\",IF(VAL_MONTHLY_ELECTRICITY!AB15=\"\",\"F\",VAL_MONTHLY_ELECTRICITY!AB15),\"\")","v":""},{"$f":"IF(VAL_MONTHLY_ELECTRICITY!AE$3=\"Y\",ROUND(VAL_MONTHLY_ELECTRICITY!AC15,3),\"\")","v":""},{"$f":"IF(VAL_MONTHLY_ELECTRICITY!AE$3=\"Y\",IF(VAL_MONTHLY_ELECTRICITY!AD15=\"\",\"A\",VAL_MONTHLY_ELECTRICITY!AD15),\"\")","v":""},{"$f":"IF(VAL_MONTHLY_ELECTRICITY!AE$3=\"Y\",IF(VAL_MONTHLY_ELECTRICITY!AE15=\"\",\"F\",VAL_MONTHLY_ELECTRICITY!AE15),\"\")","v":""},{"$f":"IF(VAL_MONTHLY_ELECTRICITY!AH$3=\"Y\",ROUND(VAL_MONTHLY_ELECTRICITY!AF15,3),\"\")","v":0},{"$f":"IF(VAL_MONTHLY_ELECTRICITY!AH$3=\"Y\",IF(VAL_MONTHLY_ELECTRICITY!AG15=\"\",\"A\",VAL_MONTHLY_ELECTRICITY!AG15),\"\")","v":"A"},{"$f":"IF(VAL_MONTHLY_ELECTRICITY!AH$3=\"Y\",IF(VAL_MONTHLY_ELECTRICITY!AH15=\"\",\"F\",VAL_MONTHLY_ELECTRICITY!AH15),\"\")","v":"F"},{"$f":"IF(VAL_MONTHLY_ELECTRICITY!AK$3=\"Y\",ROUND(VAL_MONTHLY_ELECTRICITY!AI15,3),\"\")","v":0},{"$f":"IF(VAL_MONTHLY_ELECTRICITY!AK$3=\"Y\",IF(VAL_MONTHLY_ELECTRICITY!AJ15=\"\",\"A\",VAL_MONTHLY_ELECTRICITY!AJ15),\"\")","v":"A"},{"$f":"IF(VAL_MONTHLY_ELECTRICITY!AK$3=\"Y\",IF(VAL_MONTHLY_ELECTRICITY!AK15=\"\",\"F\",VAL_MONTHLY_ELECTRICITY!AK15),\"\")","v":"F"},{"$f":"IF(VAL_MONTHLY_ELECTRICITY!AN$3=\"Y\",ROUND(VAL_MONTHLY_ELECTRICITY!AL15,3),\"\")","v":0},{"$f":"IF(VAL_MONTHLY_ELECTRICITY!AN$3=\"Y\",IF(VAL_MONTHLY_ELECTRICITY!AM15=\"\",\"A\",VAL_MONTHLY_ELECTRICITY!AM15),\"\")","v":"A"},{"$f":"IF(VAL_MONTHLY_ELECTRICITY!AN$3=\"Y\",IF(VAL_MONTHLY_ELECTRICITY!AN15=\"\",\"F\",VAL_MONTHLY_ELECTRICITY!AN15),\"\")","v":"F"}]
[null,null,"NETPROD","_Z","MIXHYDRO","_Z","Mixed hydro",{"$f":"IF(VAL_MONTHLY_ELECTRICITY!G$3=\"Y\",ROUND(VAL_MONTHLY_ELECTRICITY!E16,3),\"\")","v":""},{"$f":"IF(VAL_MONTHLY_ELECTRICITY!G$3=\"Y\",IF(VAL_MONTHLY_ELECTRICITY!F16=\"\",\"A\",VAL_MONTHLY_ELECTRICITY!F16),\"\")","v":""},{"$f":"IF(VAL_MONTHLY_ELECTRICITY!G$3=\"Y\",IF(VAL_MONTHLY_ELECTRICITY!G16=\"\",\"F\",VAL_MONTHLY_ELECTRICITY!G16),\"\")","v":""},{"$f":"IF(VAL_MONTHLY_ELECTRICITY!J$3=\"Y\",ROUND(VAL_MONTHLY_ELECTRICITY!H16,3),\"\")","v":""},{"$f":"IF(VAL_MONTHLY_ELECTRICITY!J$3=\"Y\",IF(VAL_MONTHLY_ELECTRICITY!I16=\"\",\"A\",VAL_MONTHLY_ELECTRICITY!I16),\"\")","v":""},{"$f":"IF(VAL_MONTHLY_ELECTRICITY!J$3=\"Y\",IF(VAL_MONTHLY_ELECTRICITY!J16=\"\",\"F\",VAL_MONTHLY_ELECTRICITY!J16),\"\")","v":""},{"$f":"IF(VAL_MONTHLY_ELECTRICITY!M$3=\"Y\",ROUND(VAL_MONTHLY_ELECTRICITY!K16,3),\"\")","v":""},{"$f":"IF(VAL_MONTHLY_ELECTRICITY!M$3=\"Y\",IF(VAL_MONTHLY_ELECTRICITY!L16=\"\",\"A\",VAL_MONTHLY_ELECTRICITY!L16),\"\")","v":""},{"$f":"IF(VAL_MONTHLY_ELECTRICITY!M$3=\"Y\",IF(VAL_MONTHLY_ELECTRICITY!M16=\"\",\"F\",VAL_MONTHLY_ELECTRICITY!M16),\"\")","v":""},{"$f":"IF(VAL_MONTHLY_ELECTRICITY!P$3=\"Y\",ROUND(VAL_MONTHLY_ELECTRICITY!N16,3),\"\")","v":0},{"$f":"IF(VAL_MONTHLY_ELECTRICITY!P$3=\"Y\",IF(VAL_MONTHLY_ELECTRICITY!O16=\"\",\"A\",VAL_MONTHLY_ELECTRICITY!O16),\"\")","v":"A"},{"$f":"IF(VAL_MONTHLY_ELECTRICITY!P$3=\"Y\",IF(VAL_MONTHLY_ELECTRICITY!P16=\"\",\"F\",VAL_MONTHLY_ELECTRICITY!P16),\"\")","v":"F"},{"$f":"IF(VAL_MONTHLY_ELECTRICITY!S$3=\"Y\",ROUND(VAL_MONTHLY_ELECTRICITY!Q16,3),\"\")","v":0},{"$f":"IF(VAL_MONTHLY_ELECTRICITY!S$3=\"Y\",IF(VAL_MONTHLY_ELECTRICITY!R16=\"\",\"A\",VAL_MONTHLY_ELECTRICITY!R16),\"\")","v":"A"},{"$f":"IF(VAL_MONTHLY_ELECTRICITY!S$3=\"Y\",IF(VAL_MONTHLY_ELECTRICITY!S16=\"\",\"F\",VAL_MONTHLY_ELECTRICITY!S16),\"\")","v":"F"},{"$f":"IF(VAL_MONTHLY_ELECTRICITY!V$3=\"Y\",ROUND(VAL_MONTHLY_ELECTRICITY!T16,3),\"\")","v":""},{"$f":"IF(VAL_MONTHLY_ELECTRICITY!V$3=\"Y\",IF(VAL_MONTHLY_ELECTRICITY!U16=\"\",\"A\",VAL_MONTHLY_ELECTRICITY!U16),\"\")","v":""},{"$f":"IF(VAL_MONTHLY_ELECTRICITY!V$3=\"Y\",IF(VAL_MONTHLY_ELECTRICITY!V16=\"\",\"F\",VAL_MONTHLY_ELECTRICITY!V16),\"\")","v":""},{"$f":"IF(VAL_MONTHLY_ELECTRICITY!Y$3=\"Y\",ROUND(VAL_MONTHLY_ELECTRICITY!W16,3),\"\")","v":""},{"$f":"IF(VAL_MONTHLY_ELECTRICITY!Y$3=\"Y\",IF(VAL_MONTHLY_ELECTRICITY!X16=\"\",\"A\",VAL_MONTHLY_ELECTRICITY!X16),\"\")","v":""},{"$f":"IF(VAL_MONTHLY_ELECTRICITY!Y$3=\"Y\",IF(VAL_MONTHLY_ELECTRICITY!Y16=\"\",\"F\",VAL_MONTHLY_ELECTRICITY!Y16),\"\")","v":""},{"$f":"IF(VAL_MONTHLY_ELECTRICITY!AB$3=\"Y\",ROUND(VAL_MONTHLY_ELECTRICITY!Z16,3),\"\")","v":""},{"$f":"IF(VAL_MONTHLY_ELECTRICITY!AB$3=\"Y\",IF(VAL_MONTHLY_ELECTRICITY!AA16=\"\",\"A\",VAL_MONTHLY_ELECTRICITY!AA16),\"\")","v":""},{"$f":"IF(VAL_MONTHLY_ELECTRICITY!AB$3=\"Y\",IF(VAL_MONTHLY_ELECTRICITY!AB16=\"\",\"F\",VAL_MONTHLY_ELECTRICITY!AB16),\"\")","v":""},{"$f":"IF(VAL_MONTHLY_ELECTRICITY!AE$3=\"Y\",ROUND(VAL_MONTHLY_ELECTRICITY!AC16,3),\"\")","v":""},{"$f":"IF(VAL_MONTHLY_ELECTRICITY!AE$3=\"Y\",IF(VAL_MONTHLY_ELECTRICITY!AD16=\"\",\"A\",VAL_MONTHLY_ELECTRICITY!AD16),\"\")","v":""},{"$f":"IF(VAL_MONTHLY_ELECTRICITY!AE$3=\"Y\",IF(VAL_MONTHLY_ELECTRICITY!AE16=\"\",\"F\",VAL_MONTHLY_ELECTRICITY!AE16),\"\")","v":""},{"$f":"IF(VAL_MONTHLY_ELECTRICITY!AH$3=\"Y\",ROUND(VAL_MONTHLY_ELECTRICITY!AF16,3),\"\")","v":0},{"$f":"IF(VAL_MONTHLY_ELECTRICITY!AH$3=\"Y\",IF(VAL_MONTHLY_ELECTRICITY!AG16=\"\",\"A\",VAL_MONTHLY_ELECTRICITY!AG16),\"\")","v":"A"},{"$f":"IF(VAL_MONTHLY_ELECTRICITY!AH$3=\"Y\",IF(VAL_MONTHLY_ELECTRICITY!AH16=\"\",\"F\",VAL_MONTHLY_ELECTRICITY!AH16),\"\")","v":"F"},{"$f":"IF(VAL_MONTHLY_ELECTRICITY!AK$3=\"Y\",ROUND(VAL_MONTHLY_ELECTRICITY!AI16,3),\"\")","v":0},{"$f":"IF(VAL_MONTHLY_ELECTRICITY!AK$3=\"Y\",IF(VAL_MONTHLY_ELECTRICITY!AJ16=\"\",\"A\",VAL_MONTHLY_ELECTRICITY!AJ16),\"\")","v":"A"},{"$f":"IF(VAL_MONTHLY_ELECTRICITY!AK$3=\"Y\",IF(VAL_MONTHLY_ELECTRICITY!AK16=\"\",\"F\",VAL_MONTHLY_ELECTRICITY!AK16),\"\")","v":"F"},{"$f":"IF(VAL_MONTHLY_ELECTRICITY!AN$3=\"Y\",ROUND(VAL_MONTHLY_ELECTRICITY!AL16,3),\"\")","v":0},{"$f":"IF(VAL_MONTHLY_ELECTRICITY!AN$3=\"Y\",IF(VAL_MONTHLY_ELECTRICITY!AM16=\"\",\"A\",VAL_MONTHLY_ELECTRICITY!AM16),\"\")","v":"A"},{"$f":"IF(VAL_MONTHLY_ELECTRICITY!AN$3=\"Y\",IF(VAL_MONTHLY_ELECTRICITY!AN16=\"\",\"F\",VAL_MONTHLY_ELECTRICITY!AN16),\"\")","v":"F"}]
[null,null,"NETPROD","_Z","HYDPUMP","_Z","Pure pumped storage",{"$f":"IF(VAL_MONTHLY_ELECTRICITY!G$3=\"Y\",ROUND(VAL_MONTHLY_ELECTRICITY!E17,3),\"\")","v":""},{"$f":"IF(VAL_MONTHLY_ELECTRICITY!G$3=\"Y\",IF(VAL_MONTHLY_ELECTRICITY!F17=\"\",\"A\",VAL_MONTHLY_ELECTRICITY!F17),\"\")","v":""},{"$f":"IF(VAL_MONTHLY_ELECTRICITY!G$3=\"Y\",IF(VAL_MONTHLY_ELECTRICITY!G17=\"\",\"F\",VAL_MONTHLY_ELECTRICITY!G17),\"\")","v":""},{"$f":"IF(VAL_MONTHLY_ELECTRICITY!J$3=\"Y\",ROUND(VAL_MONTHLY_ELECTRICITY!H17,3),\"\")","v":""},{"$f":"IF(VAL_MONTHLY_ELECTRICITY!J$3=\"Y\",IF(VAL_MONTHLY_ELECTRICITY!I17=\"\",\"A\",VAL_MONTHLY_ELECTRICITY!I17),\"\")","v":""},{"$f":"IF(VAL_MONTHLY_ELECTRICITY!J$3=\"Y\",IF(VAL_MONTHLY_ELECTRICITY!J17=\"\",\"F\",VAL_MONTHLY_ELECTRICITY!J17),\"\")","v":""},{"$f":"IF(VAL_MONTHLY_ELECTRICITY!M$3=\"Y\",ROUND(VAL_MONTHLY_ELECTRICITY!K17,3),\"\")","v":""},{"$f":"IF(VAL_MONTHLY_ELECTRICITY!M$3=\"Y\",IF(VAL_MONTHLY_ELECTRICITY!L17=\"\",\"A\",VAL_MONTHLY_ELECTRICITY!L17),\"\")","v":""},{"$f":"IF(VAL_MONTHLY_ELECTRICITY!M$3=\"Y\",IF(VAL_MONTHLY_ELECTRICITY!M17=\"\",\"F\",VAL_MONTHLY_ELECTRICITY!M17),\"\")","v":""},{"$f":"IF(VAL_MONTHLY_ELECTRICITY!P$3=\"Y\",ROUND(VAL_MONTHLY_ELECTRICITY!N17,3),\"\")","v":0},{"$f":"IF(VAL_MONTHLY_ELECTRICITY!P$3=\"Y\",IF(VAL_MONTHLY_ELECTRICITY!O17=\"\",\"A\",VAL_MONTHLY_ELECTRICITY!O17),\"\")","v":"A"},{"$f":"IF(VAL_MONTHLY_ELECTRICITY!P$3=\"Y\",IF(VAL_MONTHLY_ELECTRICITY!P17=\"\",\"F\",VAL_MONTHLY_ELECTRICITY!P17),\"\")","v":"F"},{"$f":"IF(VAL_MONTHLY_ELECTRICITY!S$3=\"Y\",ROUND(VAL_MONTHLY_ELECTRICITY!Q17,3),\"\")","v":0},{"$f":"IF(VAL_MONTHLY_ELECTRICITY!S$3=\"Y\",IF(VAL_MONTHLY_ELECTRICITY!R17=\"\",\"A\",VAL_MONTHLY_ELECTRICITY!R17),\"\")","v":"A"},{"$f":"IF(VAL_MONTHLY_ELECTRICITY!S$3=\"Y\",IF(VAL_MONTHLY_ELECTRICITY!S17=\"\",\"F\",VAL_MONTHLY_ELECTRICITY!S17),\"\")","v":"F"},{"$f":"IF(VAL_MONTHLY_ELECTRICITY!V$3=\"Y\",ROUND(VAL_MONTHLY_ELECTRICITY!T17,3),\"\")","v":""},{"$f":"IF(VAL_MONTHLY_ELECTRICITY!V$3=\"Y\",IF(VAL_MONTHLY_ELECTRICITY!U17=\"\",\"A\",VAL_MONTHLY_ELECTRICITY!U17),\"\")","v":""},{"$f":"IF(VAL_MONTHLY_ELECTRICITY!V$3=\"Y\",IF(VAL_MONTHLY_ELECTRICITY!V17=\"\",\"F\",VAL_MONTHLY_ELECTRICITY!V17),\"\")","v":""},{"$f":"IF(VAL_MONTHLY_ELECTRICITY!Y$3=\"Y\",ROUND(VAL_MONTHLY_ELECTRICITY!W17,3),\"\")","v":""},{"$f":"IF(VAL_MONTHLY_ELECTRICITY!Y$3=\"Y\",IF(VAL_MONTHLY_ELECTRICITY!X17=\"\",\"A\",VAL_MONTHLY_ELECTRICITY!X17),\"\")","v":""},{"$f":"IF(VAL_MONTHLY_ELECTRICITY!Y$3=\"Y\",IF(VAL_MONTHLY_ELECTRICITY!Y17=\"\",\"F\",VAL_MONTHLY_ELECTRICITY!Y17),\"\")","v":""},{"$f":"IF(VAL_MONTHLY_ELECTRICITY!AB$3=\"Y\",ROUND(VAL_MONTHLY_ELECTRICITY!Z17,3),\"\")","v":""},{"$f":"IF(VAL_MONTHLY_ELECTRICITY!AB$3=\"Y\",IF(VAL_MONTHLY_ELECTRICITY!AA17=\"\",\"A\",VAL_MONTHLY_ELECTRICITY!AA17),\"\")","v":""},{"$f":"IF(VAL_MONTHLY_ELECTRICITY!AB$3=\"Y\",IF(VAL_MONTHLY_ELECTRICITY!AB17=\"\",\"F\",VAL_MONTHLY_ELECTRICITY!AB17),\"\")","v":""},{"$f":"IF(VAL_MONTHLY_ELECTRICITY!AE$3=\"Y\",ROUND(VAL_MONTHLY_ELECTRICITY!AC17,3),\"\")","v":""},{"$f":"IF(VAL_MONTHLY_ELECTRICITY!AE$3=\"Y\",IF(VAL_MONTHLY_ELECTRICITY!AD17=\"\",\"A\",VAL_MONTHLY_ELECTRICITY!AD17),\"\")","v":""},{"$f":"IF(VAL_MONTHLY_ELECTRICITY!AE$3=\"Y\",IF(VAL_MONTHLY_ELECTRICITY!AE17=\"\",\"F\",VAL_MONTHLY_ELECTRICITY!AE17),\"\")","v":""},{"$f":"IF(VAL_MONTHLY_ELECTRICITY!AH$3=\"Y\",ROUND(VAL_MONTHLY_ELECTRICITY!AF17,3),\"\")","v":0},{"$f":"IF(VAL_MONTHLY_ELECTRICITY!AH$3=\"Y\",IF(VAL_MONTHLY_ELECTRICITY!AG17=\"\",\"A\",VAL_MONTHLY_ELECTRICITY!AG17),\"\")","v":"A"},{"$f":"IF(VAL_MONTHLY_ELECTRICITY!AH$3=\"Y\",IF(VAL_MONTHLY_ELECTRICITY!AH17=\"\",\"F\",VAL_MONTHLY_ELECTRICITY!AH17),\"\")","v":"F"},{"$f":"IF(VAL_MONTHLY_ELECTRICITY!AK$3=\"Y\",ROUND(VAL_MONTHLY_ELECTRICITY!AI17,3),\"\")","v":0},{"$f":"IF(VAL_MONTHLY_ELECTRICITY!AK$3=\"Y\",IF(VAL_MONTHLY_ELECTRICITY!AJ17=\"\",\"A\",VAL_MONTHLY_ELECTRICITY!AJ17),\"\")","v":"A"},{"$f":"IF(VAL_MONTHLY_ELECTRICITY!AK$3=\"Y\",IF(VAL_MONTHLY_ELECTRICITY!AK17=\"\",\"F\",VAL_MONTHLY_ELECTRICITY!AK17),\"\")","v":"F"},{"$f":"IF(VAL_MONTHLY_ELECTRICITY!AN$3=\"Y\",ROUND(VAL_MONTHLY_ELECTRICITY!AL17,3),\"\")","v":0},{"$f":"IF(VAL_MONTHLY_ELECTRICITY!AN$3=\"Y\",IF(VAL_MONTHLY_ELECTRICITY!AM17=\"\",\"A\",VAL_MONTHLY_ELECTRICITY!AM17),\"\")","v":"A"},{"$f":"IF(VAL_MONTHLY_ELECTRICITY!AN$3=\"Y\",IF(VAL_MONTHLY_ELECTRICITY!AN17=\"\",\"F\",VAL_MONTHLY_ELECTRICITY!AN17),\"\")","v":"F"}]
[null,null,"NETPROD","_Z","WIND","_Z","Wind",{"$f":"IF(VAL_MONTHLY_ELECTRICITY!G$3=\"Y\",ROUND(VAL_MONTHLY_ELECTRICITY!E18,3),\"\")","v":""},{"$f":"IF(VAL_MONTHLY_ELECTRICITY!G$3=\"Y\",IF(VAL_MONTHLY_ELECTRICITY!F18=\"\",\"A\",VAL_MONTHLY_ELECTRICITY!F18),\"\")","v":""},{"$f":"IF(VAL_MONTHLY_ELECTRICITY!G$3=\"Y\",IF(VAL_MONTHLY_ELECTRICITY!G18=\"\",\"F\",VAL_MONTHLY_ELECTRICITY!G18),\"\")","v":""},{"$f":"IF(VAL_MONTHLY_ELECTRICITY!J$3=\"Y\",ROUND(VAL_MONTHLY_ELECTRICITY!H18,3),\"\")","v":""},{"$f":"IF(VAL_MONTHLY_ELECTRICITY!J$3=\"Y\",IF(VAL_MONTHLY_ELECTRICITY!I18=\"\",\"A\",VAL_MONTHLY_ELECTRICITY!I18),\"\")","v":""},{"$f":"IF(VAL_MONTHLY_ELECTRICITY!J$3=\"Y\",IF(VAL_MONTHLY_ELECTRICITY!J18=\"\",\"F\",VAL_MONTHLY_ELECTRICITY!J18),\"\")","v":""},{"$f":"IF(VAL_MONTHLY_ELECTRICITY!M$3=\"Y\",ROUND(VAL_MONTHLY_ELECTRICITY!K18,3),\"\")","v":""},{"$f":"IF(VAL_MONTHLY_ELECTRICITY!M$3=\"Y\",IF(VAL_MONTHLY_ELECTRICITY!L18=\"\",\"A\",VAL_MONTHLY_ELECTRICITY!L18),\"\")","v":""},{"$f":"IF(VAL_MONTHLY_ELECTRICITY!M$3=\"Y\",IF(VAL_MONTHLY_ELECTRICITY!M18=\"\",\"F\",VAL_MONTHLY_ELECTRICITY!M18),\"\")","v":""},{"$f":"IF(VAL_MONTHLY_ELECTRICITY!P$3=\"Y\",ROUND(VAL_MONTHLY_ELECTRICITY!N18,3),\"\")","v":6.34},{"$f":"IF(VAL_MONTHLY_ELECTRICITY!P$3=\"Y\",IF(VAL_MONTHLY_ELECTRICITY!O18=\"\",\"A\",VAL_MONTHLY_ELECTRICITY!O18),\"\")","v":"A"},{"$f":"IF(VAL_MONTHLY_ELECTRICITY!P$3=\"Y\",IF(VAL_MONTHLY_ELECTRICITY!P18=\"\",\"F\",VAL_MONTHLY_ELECTRICITY!P18),\"\")","v":"F"},{"$f":"IF(VAL_MONTHLY_ELECTRICITY!S$3=\"Y\",ROUND(VAL_MONTHLY_ELECTRICITY!Q18,3),\"\")","v":6.992},{"$f":"IF(VAL_MONTHLY_ELECTRICITY!S$3=\"Y\",IF(VAL_MONTHLY_ELECTRICITY!R18=\"\",\"A\",VAL_MONTHLY_ELECTRICITY!R18),\"\")","v":"A"},{"$f":"IF(VAL_MONTHLY_ELECTRICITY!S$3=\"Y\",IF(VAL_MONTHLY_ELECTRICITY!S18=\"\",\"F\",VAL_MONTHLY_ELECTRICITY!S18),\"\")","v":"F"},{"$f":"IF(VAL_MONTHLY_ELECTRICITY!V$3=\"Y\",ROUND(VAL_MONTHLY_ELECTRICITY!T18,3),\"\")","v":""},{"$f":"IF(VAL_MONTHLY_ELECTRICITY!V$3=\"Y\",IF(VAL_MONTHLY_ELECTRICITY!U18=\"\",\"A\",VAL_MONTHLY_ELECTRICITY!U18),\"\")","v":""},{"$f":"IF(VAL_MONTHLY_ELECTRICITY!V$3=\"Y\",IF(VAL_MONTHLY_ELECTRICITY!V18=\"\",\"F\",VAL_MONTHLY_ELECTRICITY!V18),\"\")","v":""},{"$f":"IF(VAL_MONTHLY_ELECTRICITY!Y$3=\"Y\",ROUND(VAL_MONTHLY_ELECTRICITY!W18,3),\"\")","v":""},{"$f":"IF(VAL_MONTHLY_ELECTRICITY!Y$3=\"Y\",IF(VAL_MONTHLY_ELECTRICITY!X18=\"\",\"A\",VAL_MONTHLY_ELECTRICITY!X18),\"\")","v":""},{"$f":"IF(VAL_MONTHLY_ELECTRICITY!Y$3=\"Y\",IF(VAL_MONTHLY_ELECTRICITY!Y18=\"\",\"F\",VAL_MONTHLY_ELECTRICITY!Y18),\"\")","v":""},{"$f":"IF(VAL_MONTHLY_ELECTRICITY!AB$3=\"Y\",ROUND(VAL_MONTHLY_ELECTRICITY!Z18,3),\"\")","v":""},{"$f":"IF(VAL_MONTHLY_ELECTRICITY!AB$3=\"Y\",IF(VAL_MONTHLY_ELECTRICITY!AA18=\"\",\"A\",VAL_MONTHLY_ELECTRICITY!AA18),\"\")","v":""},{"$f":"IF(VAL_MONTHLY_ELECTRICITY!AB$3=\"Y\",IF(VAL_MONTHLY_ELECTRICITY!AB18=\"\",\"F\",VAL_MONTHLY_ELECTRICITY!AB18),\"\")","v":""},{"$f":"IF(VAL_MONTHLY_ELECTRICITY!AE$3=\"Y\",ROUND(VAL_MONTHLY_ELECTRICITY!AC18,3),\"\")","v":""},{"$f":"IF(VAL_MONTHLY_ELECTRICITY!AE$3=\"Y\",IF(VAL_MONTHLY_ELECTRICITY!AD18=\"\",\"A\",VAL_MONTHLY_ELECTRICITY!AD18),\"\")","v":""},{"$f":"IF(VAL_MONTHLY_ELECTRICITY!AE$3=\"Y\",IF(VAL_MONTHLY_ELECTRICITY!AE18=\"\",\"F\",VAL_MONTHLY_ELECTRICITY!AE18),\"\")","v":""},{"$f":"IF(VAL_MONTHLY_ELECTRICITY!AH$3=\"Y\",ROUND(VAL_MONTHLY_ELECTRICITY!AF18,3),\"\")","v":0},{"$f":"IF(VAL_MONTHLY_ELECTRICITY!AH$3=\"Y\",IF(VAL_MONTHLY_ELECTRICITY!AG18=\"\",\"A\",VAL_MONTHLY_ELECTRICITY!AG18),\"\")","v":"A"},{"$f":"IF(VAL_MONTHLY_ELECTRICITY!AH$3=\"Y\",IF(VAL_MONTHLY_ELECTRICITY!AH18=\"\",\"F\",VAL_MONTHLY_ELECTRICITY!AH18),\"\")","v":"F"},{"$f":"IF(VAL_MONTHLY_ELECTRICITY!AK$3=\"Y\",ROUND(VAL_MONTHLY_ELECTRICITY!AI18,3),\"\")","v":0},{"$f":"IF(VAL_MONTHLY_ELECTRICITY!AK$3=\"Y\",IF(VAL_MONTHLY_ELECTRICITY!AJ18=\"\",\"A\",VAL_MONTHLY_ELECTRICITY!AJ18),\"\")","v":"A"},{"$f":"IF(VAL_MONTHLY_ELECTRICITY!AK$3=\"Y\",IF(VAL_MONTHLY_ELECTRICITY!AK18=\"\",\"F\",VAL_MONTHLY_ELECTRICITY!AK18),\"\")","v":"F"},{"$f":"IF(VAL_MONTHLY_ELECTRICITY!AN$3=\"Y\",ROUND(VAL_MONTHLY_ELECTRICITY!AL18,3),\"\")","v":0},{"$f":"IF(VAL_MONTHLY_ELECTRICITY!AN$3=\"Y\",IF(VAL_MONTHLY_ELECTRICITY!AM18=\"\",\"A\",VAL_MONTHLY_ELECTRICITY!AM18),\"\")","v":"A"},{"$f":"IF(VAL_MONTHLY_ELECTRICITY!AN$3=\"Y\",IF(VAL_MONTHLY_ELECTRICITY!AN18=\"\",\"F\",VAL_MONTHLY_ELECTRICITY!AN18),\"\")","v":"F"}]
[null,null,"NETPROD","_Z","WINDON","_Z","Onshore",{"$f":"IF(VAL_MONTHLY_ELECTRICITY!G$3=\"Y\",ROUND(VAL_MONTHLY_ELECTRICITY!E19,3),\"\")","v":""},{"$f":"IF(VAL_MONTHLY_ELECTRICITY!G$3=\"Y\",IF(VAL_MONTHLY_ELECTRICITY!F19=\"\",\"A\",VAL_MONTHLY_ELECTRICITY!F19),\"\")","v":""},{"$f":"IF(VAL_MONTHLY_ELECTRICITY!G$3=\"Y\",IF(VAL_MONTHLY_ELECTRICITY!G19=\"\",\"F\",VAL_MONTHLY_ELECTRICITY!G19),\"\")","v":""},{"$f":"IF(VAL_MONTHLY_ELECTRICITY!J$3=\"Y\",ROUND(VAL_MONTHLY_ELECTRICITY!H19,3),\"\")","v":""},{"$f":"IF(VAL_MONTHLY_ELECTRICITY!J$3=\"Y\",IF(VAL_MONTHLY_ELECTRICITY!I19=\"\",\"A\",VAL_MONTHLY_ELECTRICITY!I19),\"\")","v":""},{"$f":"IF(VAL_MONTHLY_ELECTRICITY!J$3=\"Y\",IF(VAL_MONTHLY_ELECTRICITY!J19=\"\",\"F\",VAL_MONTHLY_ELECTRICITY!J19),\"\")","v":""},{"$f":"IF(VAL_MONTHLY_ELECTRICITY!M$3=\"Y\",ROUND(VAL_MONTHLY_ELECTRICITY!K19,3),\"\")","v":""},{"$f":"IF(VAL_MONTHLY_ELECTRICITY!M$3=\"Y\",IF(VAL_MONTHLY_ELECTRICITY!L19=\"\",\"A\",VAL_MONTHLY_ELECTRICITY!L19),\"\")","v":""},{"$f":"IF(VAL_MONTHLY_ELECTRICITY!M$3=\"Y\",IF(VAL_MONTHLY_ELECTRICITY!M19=\"\",\"F\",VAL_MONTHLY_ELECTRICITY!M19),\"\")","v":""},{"$f":"IF(VAL_MONTHLY_ELECTRICITY!P$3=\"Y\",ROUND(VAL_MONTHLY_ELECTRICITY!N19,3),\"\")","v":6.34},{"$f":"IF(VAL_MONTHLY_ELECTRICITY!P$3=\"Y\",IF(VAL_MONTHLY_ELECTRICITY!O19=\"\",\"A\",VAL_MONTHLY_ELECTRICITY!O19),\"\")","v":"A"},{"$f":"IF(VAL_MONTHLY_ELECTRICITY!P$3=\"Y\",IF(VAL_MONTHLY_ELECTRICITY!P19=\"\",\"F\",VAL_MONTHLY_ELECTRICITY!P19),\"\")","v":"F"},{"$f":"IF(VAL_MONTHLY_ELECTRICITY!S$3=\"Y\",ROUND(VAL_MONTHLY_ELECTRICITY!Q19,3),\"\")","v":6.992},{"$f":"IF(VAL_MONTHLY_ELECTRICITY!S$3=\"Y\",IF(VAL_MONTHLY_ELECTRICITY!R19=\"\",\"A\",VAL_MONTHLY_ELECTRICITY!R19),\"\")","v":"A"},{"$f":"IF(VAL_MONTHLY_ELECTRICITY!S$3=\"Y\",IF(VAL_MONTHLY_ELECTRICITY!S19=\"\",\"F\",VAL_MONTHLY_ELECTRICITY!S19),\"\")","v":"F"},{"$f":"IF(VAL_MONTHLY_ELECTRICITY!V$3=\"Y\",ROUND(VAL_MONTHLY_ELECTRICITY!T19,3),\"\")","v":""},{"$f":"IF(VAL_MONTHLY_ELECTRICITY!V$3=\"Y\",IF(VAL_MONTHLY_ELECTRICITY!U19=\"\",\"A\",VAL_MONTHLY_ELECTRICITY!U19),\"\")","v":""},{"$f":"IF(VAL_MONTHLY_ELECTRICITY!V$3=\"Y\",IF(VAL_MONTHLY_ELECTRICITY!V19=\"\",\"F\",VAL_MONTHLY_ELECTRICITY!V19),\"\")","v":""},{"$f":"IF(VAL_MONTHLY_ELECTRICITY!Y$3=\"Y\",ROUND(VAL_MONTHLY_ELECTRICITY!W19,3),\"\")","v":""},{"$f":"IF(VAL_MONTHLY_ELECTRICITY!Y$3=\"Y\",IF(VAL_MONTHLY_ELECTRICITY!X19=\"\",\"A\",VAL_MONTHLY_ELECTRICITY!X19),\"\")","v":""},{"$f":"IF(VAL_MONTHLY_ELECTRICITY!Y$3=\"Y\",IF(VAL_MONTHLY_ELECTRICITY!Y19=\"\",\"F\",VAL_MONTHLY_ELECTRICITY!Y19),\"\")","v":""},{"$f":"IF(VAL_MONTHLY_ELECTRICITY!AB$3=\"Y\",ROUND(VAL_MONTHLY_ELECTRICITY!Z19,3),\"\")","v":""},{"$f":"IF(VAL_MONTHLY_ELECTRICITY!AB$3=\"Y\",IF(VAL_MONTHLY_ELECTRICITY!AA19=\"\",\"A\",VAL_MONTHLY_ELECTRICITY!AA19),\"\")","v":""},{"$f":"IF(VAL_MONTHLY_ELECTRICITY!AB$3=\"Y\",IF(VAL_MONTHLY_ELECTRICITY!AB19=\"\",\"F\",VAL_MONTHLY_ELECTRICITY!AB19),\"\")","v":""},{"$f":"IF(VAL_MONTHLY_ELECTRICITY!AE$3=\"Y\",ROUND(VAL_MONTHLY_ELECTRICITY!AC19,3),\"\")","v":""},{"$f":"IF(VAL_MONTHLY_ELECTRICITY!AE$3=\"Y\",IF(VAL_MONTHLY_ELECTRICITY!AD19=\"\",\"A\",VAL_MONTHLY_ELECTRICITY!AD19),\"\")","v":""},{"$f":"IF(VAL_MONTHLY_ELECTRICITY!AE$3=\"Y\",IF(VAL_MONTHLY_ELECTRICITY!AE19=\"\",\"F\",VAL_MONTHLY_ELECTRICITY!AE19),\"\")","v":""},{"$f":"IF(VAL_MONTHLY_ELECTRICITY!AH$3=\"Y\",ROUND(VAL_MONTHLY_ELECTRICITY!AF19,3),\"\")","v":0},{"$f":"IF(VAL_MONTHLY_ELECTRICITY!AH$3=\"Y\",IF(VAL_MONTHLY_ELECTRICITY!AG19=\"\",\"A\",VAL_MONTHLY_ELECTRICITY!AG19),\"\")","v":"A"},{"$f":"IF(VAL_MONTHLY_ELECTRICITY!AH$3=\"Y\",IF(VAL_MONTHLY_ELECTRICITY!AH19=\"\",\"F\",VAL_MONTHLY_ELECTRICITY!AH19),\"\")","v":"F"},{"$f":"IF(VAL_MONTHLY_ELECTRICITY!AK$3=\"Y\",ROUND(VAL_MONTHLY_ELECTRICITY!AI19,3),\"\")","v":0},{"$f":"IF(VAL_MONTHLY_ELECTRICITY!AK$3=\"Y\",IF(VAL_MONTHLY_ELECTRICITY!AJ19=\"\",\"A\",VAL_MONTHLY_ELECTRICITY!AJ19),\"\")","v":"A"},{"$f":"IF(VAL_MONTHLY_ELECTRICITY!AK$3=\"Y\",IF(VAL_MONTHLY_ELECTRICITY!AK19=\"\",\"F\",VAL_MONTHLY_ELECTRICITY!AK19),\"\")","v":"F"},{"$f":"IF(VAL_MONTHLY_ELECTRICITY!AN$3=\"Y\",ROUND(VAL_MONTHLY_ELECTRICITY!AL19,3),\"\")","v":0},{"$f":"IF(VAL_MONTHLY_ELECTRICITY!AN$3=\"Y\",IF(VAL_MONTHLY_ELECTRICITY!AM19=\"\",\"A\",VAL_MONTHLY_ELECTRICITY!AM19),\"\")","v":"A"},{"$f":"IF(VAL_MONTHLY_ELECTRICITY!AN$3=\"Y\",IF(VAL_MONTHLY_ELECTRICITY!AN19=\"\",\"F\",VAL_MONTHLY_ELECTRICITY!AN19),\"\")","v":"F"}]
[null,null,"NETPROD","_Z","WINDOFF","_Z","Offshore",{"$f":"IF(VAL_MONTHLY_ELECTRICITY!G$3=\"Y\",ROUND(VAL_MONTHLY_ELECTRICITY!E20,3),\"\")","v":""},{"$f":"IF(VAL_MONTHLY_ELECTRICITY!G$3=\"Y\",IF(VAL_MONTHLY_ELECTRICITY!F20=\"\",\"A\",VAL_MONTHLY_ELECTRICITY!F20),\"\")","v":""},{"$f":"IF(VAL_MONTHLY_ELECTRICITY!G$3=\"Y\",IF(VAL_MONTHLY_ELECTRICITY!G20=\"\",\"F\",VAL_MONTHLY_ELECTRICITY!G20),\"\")","v":""},{"$f":"IF(VAL_MONTHLY_ELECTRICITY!J$3=\"Y\",ROUND(VAL_MONTHLY_ELECTRICITY!H20,3),\"\")","v":""},{"$f":"IF(VAL_MONTHLY_ELECTRICITY!J$3=\"Y\",IF(VAL_MONTHLY_ELECTRICITY!I20=\"\",\"A\",VAL_MONTHLY_ELECTRICITY!I20),\"\")","v":""},{"$f":"IF(VAL_MONTHLY_ELECTRICITY!J$3=\"Y\",IF(VAL_MONTHLY_ELECTRICITY!J20=\"\",\"F\",VAL_MONTHLY_ELECTRICITY!J20),\"\")","v":""},{"$f":"IF(VAL_MONTHLY_ELECTRICITY!M$3=\"Y\",ROUND(VAL_MONTHLY_ELECTRICITY!K20,3),\"\")","v":""},{"$f":"IF(VAL_MONTHLY_ELECTRICITY!M$3=\"Y\",IF(VAL_MONTHLY_ELECTRICITY!L20=\"\",\"A\",VAL_MONTHLY_ELECTRICITY!L20),\"\")","v":""},{"$f":"IF(VAL_MONTHLY_ELECTRICITY!M$3=\"Y\",IF(VAL_MONTHLY_ELECTRICITY!M20=\"\",\"F\",VAL_MONTHLY_ELECTRICITY!M20),\"\")","v":""},{"$f":"IF(VAL_MONTHLY_ELECTRICITY!P$3=\"Y\",ROUND(VAL_MONTHLY_ELECTRICITY!N20,3),\"\")","v":0},{"$f":"IF(VAL_MONTHLY_ELECTRICITY!P$3=\"Y\",IF(VAL_MONTHLY_ELECTRICITY!O20=\"\",\"A\",VAL_MONTHLY_ELECTRICITY!O20),\"\")","v":"A"},{"$f":"IF(VAL_MONTHLY_ELECTRICITY!P$3=\"Y\",IF(VAL_MONTHLY_ELECTRICITY!P20=\"\",\"F\",VAL_MONTHLY_ELECTRICITY!P20),\"\")","v":"F"},{"$f":"IF(VAL_MONTHLY_ELECTRICITY!S$3=\"Y\",ROUND(VAL_MONTHLY_ELECTRICITY!Q20,3),\"\")","v":0},{"$f":"IF(VAL_MONTHLY_ELECTRICITY!S$3=\"Y\",IF(VAL_MONTHLY_ELECTRICITY!R20=\"\",\"A\",VAL_MONTHLY_ELECTRICITY!R20),\"\")","v":"A"},{"$f":"IF(VAL_MONTHLY_ELECTRICITY!S$3=\"Y\",IF(VAL_MONTHLY_ELECTRICITY!S20=\"\",\"F\",VAL_MONTHLY_ELECTRICITY!S20),\"\")","v":"F"},{"$f":"IF(VAL_MONTHLY_ELECTRICITY!V$3=\"Y\",ROUND(VAL_MONTHLY_ELECTRICITY!T20,3),\"\")","v":""},{"$f":"IF(VAL_MONTHLY_ELECTRICITY!V$3=\"Y\",IF(VAL_MONTHLY_ELECTRICITY!U20=\"\",\"A\",VAL_MONTHLY_ELECTRICITY!U20),\"\")","v":""},{"$f":"IF(VAL_MONTHLY_ELECTRICITY!V$3=\"Y\",IF(VAL_MONTHLY_ELECTRICITY!V20=\"\",\"F\",VAL_MONTHLY_ELECTRICITY!V20),\"\")","v":""},{"$f":"IF(VAL_MONTHLY_ELECTRICITY!Y$3=\"Y\",ROUND(VAL_MONTHLY_ELECTRICITY!W20,3),\"\")","v":""},{"$f":"IF(VAL_MONTHLY_ELECTRICITY!Y$3=\"Y\",IF(VAL_MONTHLY_ELECTRICITY!X20=\"\",\"A\",VAL_MONTHLY_ELECTRICITY!X20),\"\")","v":""},{"$f":"IF(VAL_MONTHLY_ELECTRICITY!Y$3=\"Y\",IF(VAL_MONTHLY_ELECTRICITY!Y20=\"\",\"F\",VAL_MONTHLY_ELECTRICITY!Y20),\"\")","v":""},{"$f":"IF(VAL_MONTHLY_ELECTRICITY!AB$3=\"Y\",ROUND(VAL_MONTHLY_ELECTRICITY!Z20,3),\"\")","v":""},{"$f":"IF(VAL_MONTHLY_ELECTRICITY!AB$3=\"Y\",IF(VAL_MONTHLY_ELECTRICITY!AA20=\"\",\"A\",VAL_MONTHLY_ELECTRICITY!AA20),\"\")","v":""},{"$f":"IF(VAL_MONTHLY_ELECTRICITY!AB$3=\"Y\",IF(VAL_MONTHLY_ELECTRICITY!AB20=\"\",\"F\",VAL_MONTHLY_ELECTRICITY!AB20),\"\")","v":""},{"$f":"IF(VAL_MONTHLY_ELECTRICITY!AE$3=\"Y\",ROUND(VAL_MONTHLY_ELECTRICITY!AC20,3),\"\")","v":""},{"$f":"IF(VAL_MONTHLY_ELECTRICITY!AE$3=\"Y\",IF(VAL_MONTHLY_ELECTRICITY!AD20=\"\",\"A\",VAL_MONTHLY_ELECTRICITY!AD20),\"\")","v":""},{"$f":"IF(VAL_MONTHLY_ELECTRICITY!AE$3=\"Y\",IF(VAL_MONTHLY_ELECTRICITY!AE20=\"\",\"F\",VAL_MONTHLY_ELECTRICITY!AE20),\"\")","v":""},{"$f":"IF(VAL_MONTHLY_ELECTRICITY!AH$3=\"Y\",ROUND(VAL_MONTHLY_ELECTRICITY!AF20,3),\"\")","v":0},{"$f":"IF(VAL_MONTHLY_ELECTRICITY!AH$3=\"Y\",IF(VAL_MONTHLY_ELECTRICITY!AG20=\"\",\"A\",VAL_MONTHLY_ELECTRICITY!AG20),\"\")","v":"A"},{"$f":"IF(VAL_MONTHLY_ELECTRICITY!AH$3=\"Y\",IF(VAL_MONTHLY_ELECTRICITY!AH20=\"\",\"F\",VAL_MONTHLY_ELECTRICITY!AH20),\"\")","v":"F"},{"$f":"IF(VAL_MONTHLY_ELECTRICITY!AK$3=\"Y\",ROUND(VAL_MONTHLY_ELECTRICITY!AI20,3),\"\")","v":0},{"$f":"IF(VAL_MONTHLY_ELECTRICITY!AK$3=\"Y\",IF(VAL_MONTHLY_ELECTRICITY!AJ20=\"\",\"A\",VAL_MONTHLY_ELECTRICITY!AJ20),\"\")","v":"A"},{"$f":"IF(VAL_MONTHLY_ELECTRICITY!AK$3=\"Y\",IF(VAL_MONTHLY_ELECTRICITY!AK20=\"\",\"F\",VAL_MONTHLY_ELECTRICITY!AK20),\"\")","v":"F"},{"$f":"IF(VAL_MONTHLY_ELECTRICITY!AN$3=\"Y\",ROUND(VAL_MONTHLY_ELECTRICITY!AL20,3),\"\")","v":0},{"$f":"IF(VAL_MONTHLY_ELECTRICITY!AN$3=\"Y\",IF(VAL_MONTHLY_ELECTRICITY!AM20=\"\",\"A\",VAL_MONTHLY_ELECTRICITY!AM20),\"\")","v":"A"},{"$f":"IF(VAL_MONTHLY_ELECTRICITY!AN$3=\"Y\",IF(VAL_MONTHLY_ELECTRICITY!AN20=\"\",\"F\",VAL_MONTHLY_ELECTRICITY!AN20),\"\")","v":"F"}]
[null,null,"NETPROD","_Z","SOLAR","_Z","Solar",{"$f":"IF(VAL_MONTHLY_ELECTRICITY!G$3=\"Y\",ROUND(VAL_MONTHLY_ELECTRICITY!E21,3),\"\")","v":""},{"$f":"IF(VAL_MONTHLY_ELECTRICITY!G$3=\"Y\",IF(VAL_MONTHLY_ELECTRICITY!F21=\"\",\"A\",VAL_MONTHLY_ELECTRICITY!F21),\"\")","v":""},{"$f":"IF(VAL_MONTHLY_ELECTRICITY!G$3=\"Y\",IF(VAL_MONTHLY_ELECTRICITY!G21=\"\",\"F\",VAL_MONTHLY_ELECTRICITY!G21),\"\")","v":""},{"$f":"IF(VAL_MONTHLY_ELECTRICITY!J$3=\"Y\",ROUND(VAL_MONTHLY_ELECTRICITY!H21,3),\"\")","v":""},{"$f":"IF(VAL_MONTHLY_ELECTRICITY!J$3=\"Y\",IF(VAL_MONTHLY_ELECTRICITY!I21=\"\",\"A\",VAL_MONTHLY_ELECTRICITY!I21),\"\")","v":""},{"$f":"IF(VAL_MONTHLY_ELECTRICITY!J$3=\"Y\",IF(VAL_MONTHLY_ELECTRICITY!J21=\"\",\"F\",VAL_MONTHLY_ELECTRICITY!J21),\"\")","v":""},{"$f":"IF(VAL_MONTHLY_ELECTRICITY!M$3=\"Y\",ROUND(VAL_MONTHLY_ELECTRICITY!K21,3),\"\")","v":""},{"$f":"IF(VAL_MONTHLY_ELECTRICITY!M$3=\"Y\",IF(VAL_MONTHLY_ELECTRICITY!L21=\"\",\"A\",VAL_MONTHLY_ELECTRICITY!L21),\"\")","v":""},{"$f":"IF(VAL_MONTHLY_ELECTRICITY!M$3=\"Y\",IF(VAL_MONTHLY_ELECTRICITY!M21=\"\",\"F\",VAL_MONTHLY_ELECTRICITY!M21),\"\")","v":""},{"$f":"IF(VAL_MONTHLY_ELECTRICITY!P$3=\"Y\",ROUND(VAL_MONTHLY_ELECTRICITY!N21,3),\"\")","v":23.768000000000001},{"$f":"IF(VAL_MONTHLY_ELECTRICITY!P$3=\"Y\",IF(VAL_MONTHLY_ELECTRICITY!O21=\"\",\"A\",VAL_MONTHLY_ELECTRICITY!O21),\"\")","v":"A"},{"$f":"IF(VAL_MONTHLY_ELECTRICITY!P$3=\"Y\",IF(VAL_MONTHLY_ELECTRICITY!P21=\"\",\"F\",VAL_MONTHLY_ELECTRICITY!P21),\"\")","v":"F"},{"$f":"IF(VAL_MONTHLY_ELECTRICITY!S$3=\"Y\",ROUND(VAL_MONTHLY_ELECTRICITY!Q21,3),\"\")","v":21.978000000000002},{"$f":"IF(VAL_MONTHLY_ELECTRICITY!S$3=\"Y\",IF(VAL_MONTHLY_ELECTRICITY!R21=\"\",\"A\",VAL_MONTHLY_ELECTRICITY!R21),\"\")","v":"A"},{"$f":"IF(VAL_MONTHLY_ELECTRICITY!S$3=\"Y\",IF(VAL_MONTHLY_ELECTRICITY!S21=\"\",\"F\",VAL_MONTHLY_ELECTRICITY!S21),\"\")","v":"F"},{"$f":"IF(VAL_MONTHLY_ELECTRICITY!V$3=\"Y\",ROUND(VAL_MONTHLY_ELECTRICITY!T21,3),\"\")","v":""},{"$f":"IF(VAL_MONTHLY_ELECTRICITY!V$3=\"Y\",IF(VAL_MONTHLY_ELECTRICITY!U21=\"\",\"A\",VAL_MONTHLY_ELECTRICITY!U21),\"\")","v":""},{"$f":"IF(VAL_MONTHLY_ELECTRICITY!V$3=\"Y\",IF(VAL_MONTHLY_ELECTRICITY!V21=\"\",\"F\",VAL_MONTHLY_ELECTRICITY!V21),\"\")","v":""},{"$f":"IF(VAL_MONTHLY_ELECTRICITY!Y$3=\"Y\",ROUND(VAL_MONTHLY_ELECTRICITY!W21,3),\"\")","v":""},{"$f":"IF(VAL_MONTHLY_ELECTRICITY!Y$3=\"Y\",IF(VAL_MONTHLY_ELECTRICITY!X21=\"\",\"A\",VAL_MONTHLY_ELECTRICITY!X21),\"\")","v":""},{"$f":"IF(VAL_MONTHLY_ELECTRICITY!Y$3=\"Y\",IF(VAL_MONTHLY_ELECTRICITY!Y21=\"\",\"F\",VAL_MONTHLY_ELECTRICITY!Y21),\"\")","v":""},{"$f":"IF(VAL_MONTHLY_ELECTRICITY!AB$3=\"Y\",ROUND(VAL_MONTHLY_ELECTRICITY!Z21,3),\"\")","v":""},{"$f":"IF(VAL_MONTHLY_ELECTRICITY!AB$3=\"Y\",IF(VAL_MONTHLY_ELECTRICITY!AA21=\"\",\"A\",VAL_MONTHLY_ELECTRICITY!AA21),\"\")","v":""},{"$f":"IF(VAL_MONTHLY_ELECTRICITY!AB$3=\"Y\",IF(VAL_MONTHLY_ELECTRICITY!AB21=\"\",\"F\",VAL_MONTHLY_ELECTRICITY!AB21),\"\")","v":""},{"$f":"IF(VAL_MONTHLY_ELECTRICITY!AE$3=\"Y\",ROUND(VAL_MONTHLY_ELECTRICITY!AC21,3),\"\")","v":""},{"$f":"IF(VAL_MONTHLY_ELECTRICITY!AE$3=\"Y\",IF(VAL_MONTHLY_ELECTRICITY!AD21=\"\",\"A\",VAL_MONTHLY_ELECTRICITY!AD21),\"\")","v":""},{"$f":"IF(VAL_MONTHLY_ELECTRICITY!AE$3=\"Y\",IF(VAL_MONTHLY_ELECTRICITY!AE21=\"\",\"F\",VAL_MONTHLY_ELECTRICITY!AE21),\"\")","v":""},{"$f":"IF(VAL_MONTHLY_ELECTRICITY!AH$3=\"Y\",ROUND(VAL_MONTHLY_ELECTRICITY!AF21,3),\"\")","v":0},{"$f":"IF(VAL_MONTHLY_ELECTRICITY!AH$3=\"Y\",IF(VAL_MONTHLY_ELECTRICITY!AG21=\"\",\"A\",VAL_MONTHLY_ELECTRICITY!AG21),\"\")","v":"A"},{"$f":"IF(VAL_MONTHLY_ELECTRICITY!AH$3=\"Y\",IF(VAL_MONTHLY_ELECTRICITY!AH21=\"\",\"F\",VAL_MONTHLY_ELECTRICITY!AH21),\"\")","v":"F"},{"$f":"IF(VAL_MONTHLY_ELECTRICITY!AK$3=\"Y\",ROUND(VAL_MONTHLY_ELECTRICITY!AI21,3),\"\")","v":0},{"$f":"IF(VAL_MONTHLY_ELECTRICITY!AK$3=\"Y\",IF(VAL_MONTHLY_ELECTRICITY!AJ21=\"\",\"A\",VAL_MONTHLY_ELECTRICITY!AJ21),\"\")","v":"A"},{"$f":"IF(VAL_MONTHLY_ELECTRICITY!AK$3=\"Y\",IF(VAL_MONTHLY_ELECTRICITY!AK21=\"\",\"F\",VAL_MONTHLY_ELECTRICITY!AK21),\"\")","v":"F"},{"$f":"IF(VAL_MONTHLY_ELECTRICITY!AN$3=\"Y\",ROUND(VAL_MONTHLY_ELECTRICITY!AL21,3),\"\")","v":0},{"$f":"IF(VAL_MONTHLY_ELECTRICITY!AN$3=\"Y\",IF(VAL_MONTHLY_ELECTRICITY!AM21=\"\",\"A\",VAL_MONTHLY_ELECTRICITY!AM21),\"\")","v":"A"},{"$f":"IF(VAL_MONTHLY_ELECTRICITY!AN$3=\"Y\",IF(VAL_MONTHLY_ELECTRICITY!AN21=\"\",\"F\",VAL_MONTHLY_ELECTRICITY!AN21),\"\")","v":"F"}]
[null,null,"NETPROD","_Z","SOLARPV","_Z","Solar photovoltaic",{"$f":"IF(VAL_MONTHLY_ELECTRICITY!G$3=\"Y\",ROUND(VAL_MONTHLY_ELECTRICITY!E22,3),\"\")","v":""},{"$f":"IF(VAL_MONTHLY_ELECTRICITY!G$3=\"Y\",IF(VAL_MONTHLY_ELECTRICITY!F22=\"\",\"A\",VAL_MONTHLY_ELECTRICITY!F22),\"\")","v":""},{"$f":"IF(VAL_MONTHLY_ELECTRICITY!G$3=\"Y\",IF(VAL_MONTHLY_ELECTRICITY!G22=\"\",\"F\",VAL_MONTHLY_ELECTRICITY!G22),\"\")","v":""},{"$f":"IF(VAL_MONTHLY_ELECTRICITY!J$3=\"Y\",ROUND(VAL_MONTHLY_ELECTRICITY!H22,3),\"\")","v":""},{"$f":"IF(VAL_MONTHLY_ELECTRICITY!J$3=\"Y\",IF(VAL_MONTHLY_ELECTRICITY!I22=\"\",\"A\",VAL_MONTHLY_ELECTRICITY!I22),\"\")","v":""},{"$f":"IF(VAL_MONTHLY_ELECTRICITY!J$3=\"Y\",IF(VAL_MONTHLY_ELECTRICITY!J22=\"\",\"F\",VAL_MONTHLY_ELECTRICITY!J22),\"\")","v":""},{"$f":"IF(VAL_MONTHLY_ELECTRICITY!M$3=\"Y\",ROUND(VAL_MONTHLY_ELECTRICITY!K22,3),\"\")","v":""},{"$f":"IF(VAL_MONTHLY_ELECTRICITY!M$3=\"Y\",IF(VAL_MONTHLY_ELECTRICITY!L22=\"\",\"A\",VAL_MONTHLY_ELECTRICITY!L22),\"\")","v":""},{"$f":"IF(VAL_MONTHLY_ELECTRICITY!M$3=\"Y\",IF(VAL_MONTHLY_ELECTRICITY!M22=\"\",\"F\",VAL_MONTHLY_ELECTRICITY!M22),\"\")","v":""},{"$f":"IF(VAL_MONTHLY_ELECTRICITY!P$3=\"Y\",ROUND(VAL_MONTHLY_ELECTRICITY!N22,3),\"\")","v":23.768000000000001},{"$f":"IF(VAL_MONTHLY_ELECTRICITY!P$3=\"Y\",IF(VAL_MONTHLY_ELECTRICITY!O22=\"\",\"A\",VAL_MONTHLY_ELECTRICITY!O22),\"\")","v":"A"},{"$f":"IF(VAL_MONTHLY_ELECTRICITY!P$3=\"Y\",IF(VAL_MONTHLY_ELECTRICITY!P22=\"\",\"F\",VAL_MONTHLY_ELECTRICITY!P22),\"\")","v":"F"},{"$f":"IF(VAL_MONTHLY_ELECTRICITY!S$3=\"Y\",ROUND(VAL_MONTHLY_ELECTRICITY!Q22,3),\"\")","v":21.978000000000002},{"$f":"IF(VAL_MONTHLY_ELECTRICITY!S$3=\"Y\",IF(VAL_MONTHLY_ELECTRICITY!R22=\"\",\"A\",VAL_MONTHLY_ELECTRICITY!R22),\"\")","v":"A"},{"$f":"IF(VAL_MONTHLY_ELECTRICITY!S$3=\"Y\",IF(VAL_MONTHLY_ELECTRICITY!S22=\"\",\"F\",VAL_MONTHLY_ELECTRICITY!S22),\"\")","v":"F"},{"$f":"IF(VAL_MONTHLY_ELECTRICITY!V$3=\"Y\",ROUND(VAL_MONTHLY_ELECTRICITY!T22,3),\"\")","v":""},{"$f":"IF(VAL_MONTHLY_ELECTRICITY!V$3=\"Y\",IF(VAL_MONTHLY_ELECTRICITY!U22=\"\",\"A\",VAL_MONTHLY_ELECTRICITY!U22),\"\")","v":""},{"$f":"IF(VAL_MONTHLY_ELECTRICITY!V$3=\"Y\",IF(VAL_MONTHLY_ELECTRICITY!V22=\"\",\"F\",VAL_MONTHLY_ELECTRICITY!V22),\"\")","v":""},{"$f":"IF(VAL_MONTHLY_ELECTRICITY!Y$3=\"Y\",ROUND(VAL_MONTHLY_ELECTRICITY!W22,3),\"\")","v":""},{"$f":"IF(VAL_MONTHLY_ELECTRICITY!Y$3=\"Y\",IF(VAL_MONTHLY_ELECTRICITY!X22=\"\",\"A\",VAL_MONTHLY_ELECTRICITY!X22),\"\")","v":""},{"$f":"IF(VAL_MONTHLY_ELECTRICITY!Y$3=\"Y\",IF(VAL_MONTHLY_ELECTRICITY!Y22=\"\",\"F\",VAL_MONTHLY_ELECTRICITY!Y22),\"\")","v":""},{"$f":"IF(VAL_MONTHLY_ELECTRICITY!AB$3=\"Y\",ROUND(VAL_MONTHLY_ELECTRICITY!Z22,3),\"\")","v":""},{"$f":"IF(VAL_MONTHLY_ELECTRICITY!AB$3=\"Y\",IF(VAL_MONTHLY_ELECTRICITY!AA22=\"\",\"A\",VAL_MONTHLY_ELECTRICITY!AA22),\"\")","v":""},{"$f":"IF(VAL_MONTHLY_ELECTRICITY!AB$3=\"Y\",IF(VAL_MONTHLY_ELECTRICITY!AB22=\"\",\"F\",VAL_MONTHLY_ELECTRICITY!AB22),\"\")","v":""},{"$f":"IF(VAL_MONTHLY_ELECTRICITY!AE$3=\"Y\",ROUND(VAL_MONTHLY_ELECTRICITY!AC22,3),\"\")","v":""},{"$f":"IF(VAL_MONTHLY_ELECTRICITY!AE$3=\"Y\",IF(VAL_MONTHLY_ELECTRICITY!AD22=\"\",\"A\",VAL_MONTHLY_ELECTRICITY!AD22),\"\")","v":""},{"$f":"IF(VAL_MONTHLY_ELECTRICITY!AE$3=\"Y\",IF(VAL_MONTHLY_ELECTRICITY!AE22=\"\",\"F\",VAL_MONTHLY_ELECTRICITY!AE22),\"\")","v":""},{"$f":"IF(VAL_MONTHLY_ELECTRICITY!AH$3=\"Y\",ROUND(VAL_MONTHLY_ELECTRICITY!AF22,3),\"\")","v":0},{"$f":"IF(VAL_MONTHLY_ELECTRICITY!AH$3=\"Y\",IF(VAL_MONTHLY_ELECTRICITY!AG22=\"\",\"A\",VAL_MONTHLY_ELECTRICITY!AG22),\"\")","v":"A"},{"$f":"IF(VAL_MONTHLY_ELECTRICITY!AH$3=\"Y\",IF(VAL_MONTHLY_ELECTRICITY!AH22=\"\",\"F\",VAL_MONTHLY_ELECTRICITY!AH22),\"\")","v":"F"},{"$f":"IF(VAL_MONTHLY_ELECTRICITY!AK$3=\"Y\",ROUND(VAL_MONTHLY_ELECTRICITY!AI22,3),\"\")","v":0},{"$f":"IF(VAL_MONTHLY_ELECTRICITY!AK$3=\"Y\",IF(VAL_MONTHLY_ELECTRICITY!AJ22=\"\",\"A\",VAL_MONTHLY_ELECTRICITY!AJ22),\"\")","v":"A"},{"$f":"IF(VAL_MONTHLY_ELECTRICITY!AK$3=\"Y\",IF(VAL_MONTHLY_ELECTRICITY!AK22=\"\",\"F\",VAL_MONTHLY_ELECTRICITY!AK22),\"\")","v":"F"},{"$f":"IF(VAL_MONTHLY_ELECTRICITY!AN$3=\"Y\",ROUND(VAL_MONTHLY_ELECTRICITY!AL22,3),\"\")","v":0},{"$f":"IF(VAL_MONTHLY_ELECTRICITY!AN$3=\"Y\",IF(VAL_MONTHLY_ELECTRICITY!AM22=\"\",\"A\",VAL_MONTHLY_ELECTRICITY!AM22),\"\")","v":"A"},{"$f":"IF(VAL_MONTHLY_ELECTRICITY!AN$3=\"Y\",IF(VAL_MONTHLY_ELECTRICITY!AN22=\"\",\"F\",VAL_MONTHLY_ELECTRICITY!AN22),\"\")","v":"F"}]
[null,null,"NETPROD","_Z","SOLARTH","_Z","Solar thermal",{"$f":"IF(VAL_MONTHLY_ELECTRICITY!G$3=\"Y\",ROUND(VAL_MONTHLY_ELECTRICITY!E23,3),\"\")","v":""},{"$f":"IF(VAL_MONTHLY_ELECTRICITY!G$3=\"Y\",IF(VAL_MONTHLY_ELECTRICITY!F23=\"\",\"A\",VAL_MONTHLY_ELECTRICITY!F23),\"\")","v":""},{"$f":"IF(VAL_MONTHLY_ELECTRICITY!G$3=\"Y\",IF(VAL_MONTHLY_ELECTRICITY!G23=\"\",\"F\",VAL_MONTHLY_ELECTRICITY!G23),\"\")","v":""},{"$f":"IF(VAL_MONTHLY_ELECTRICITY!J$3=\"Y\",ROUND(VAL_MONTHLY_ELECTRICITY!H23,3),\"\")","v":""},{"$f":"IF(VAL_MONTHLY_ELECTRICITY!J$3=\"Y\",IF(VAL_MONTHLY_ELECTRICITY!I23=\"\",\"A\",VAL_MONTHLY_ELECTRICITY!I23),\"\")","v":""},{"$f":"IF(VAL_MONTHLY_ELECTRICITY!J$3=\"Y\",IF(VAL_MONTHLY_ELECTRICITY!J23=\"\",\"F\",VAL_MONTHLY_ELECTRICITY!J23),\"\")","v":""},{"$f":"IF(VAL_MONTHLY_ELECTRICITY!M$3=\"Y\",ROUND(VAL_MONTHLY_ELECTRICITY!K23,3),\"\")","v":""},{"$f":"IF(VAL_MONTHLY_ELECTRICITY!M$3=\"Y\",IF(VAL_MONTHLY_ELECTRICITY!L23=\"\",\"A\",VAL_MONTHLY_ELECTRICITY!L23),\"\")","v":""},{"$f":"IF(VAL_MONTHLY_ELECTRICITY!M$3=\"Y\",IF(VAL_MONTHLY_ELECTRICITY!M23=\"\",\"F\",VAL_MONTHLY_ELECTRICITY!M23),\"\")","v":""},{"$f":"IF(VAL_MONTHLY_ELECTRICITY!P$3=\"Y\",ROUND(VAL_MONTHLY_ELECTRICITY!N23,3),\"\")","v":0},{"$f":"IF(VAL_MONTHLY_ELECTRICITY!P$3=\"Y\",IF(VAL_MONTHLY_ELECTRICITY!O23=\"\",\"A\",VAL_MONTHLY_ELECTRICITY!O23),\"\")","v":"A"},{"$f":"IF(VAL_MONTHLY_ELECTRICITY!P$3=\"Y\",IF(VAL_MONTHLY_ELECTRICITY!P23=\"\",\"F\",VAL_MONTHLY_ELECTRICITY!P23),\"\")","v":"F"},{"$f":"IF(VAL_MONTHLY_ELECTRICITY!S$3=\"Y\",ROUND(VAL_MONTHLY_ELECTRICITY!Q23,3),\"\")","v":0},{"$f":"IF(VAL_MONTHLY_ELECTRICITY!S$3=\"Y\",IF(VAL_MONTHLY_ELECTRICITY!R23=\"\",\"A\",VAL_MONTHLY_ELECTRICITY!R23),\"\")","v":"A"},{"$f":"IF(VAL_MONTHLY_ELECTRICITY!S$3=\"Y\",IF(VAL_MONTHLY_ELECTRICITY!S23=\"\",\"F\",VAL_MONTHLY_ELECTRICITY!S23),\"\")","v":"F"},{"$f":"IF(VAL_MONTHLY_ELECTRICITY!V$3=\"Y\",ROUND(VAL_MONTHLY_ELECTRICITY!T23,3),\"\")","v":""},{"$f":"IF(VAL_MONTHLY_ELECTRICITY!V$3=\"Y\",IF(VAL_MONTHLY_ELECTRICITY!U23=\"\",\"A\",VAL_MONTHLY_ELECTRICITY!U23),\"\")","v":""},{"$f":"IF(VAL_MONTHLY_ELECTRICITY!V$3=\"Y\",IF(VAL_MONTHLY_ELECTRICITY!V23=\"\",\"F\",VAL_MONTHLY_ELECTRICITY!V23),\"\")","v":""},{"$f":"IF(VAL_MONTHLY_ELECTRICITY!Y$3=\"Y\",ROUND(VAL_MONTHLY_ELECTRICITY!W23,3),\"\")","v":""},{"$f":"IF(VAL_MONTHLY_ELECTRICITY!Y$3=\"Y\",IF(VAL_MONTHLY_ELECTRICITY!X23=\"\",\"A\",VAL_MONTHLY_ELECTRICITY!X23),\"\")","v":""},{"$f":"IF(VAL_MONTHLY_ELECTRICITY!Y$3=\"Y\",IF(VAL_MONTHLY_ELECTRICITY!Y23=\"\",\"F\",VAL_MONTHLY_ELECTRICITY!Y23),\"\")","v":""},{"$f":"IF(VAL_MONTHLY_ELECTRICITY!AB$3=\"Y\",ROUND(VAL_MONTHLY_ELECTRICITY!Z23,3),\"\")","v":""},{"$f":"IF(VAL_MONTHLY_ELECTRICITY!AB$3=\"Y\",IF(VAL_MONTHLY_ELECTRICITY!AA23=\"\",\"A\",VAL_MONTHLY_ELECTRICITY!AA23),\"\")","v":""},{"$f":"IF(VAL_MONTHLY_ELECTRICITY!AB$3=\"Y\",IF(VAL_MONTHLY_ELECTRICITY!AB23=\"\",\"F\",VAL_MONTHLY_ELECTRICITY!AB23),\"\")","v":""},{"$f":"IF(VAL_MONTHLY_ELECTRICITY!AE$3=\"Y\",ROUND(VAL_MONTHLY_ELECTRICITY!AC23,3),\"\")","v":""},{"$f":"IF(VAL_MONTHLY_ELECTRICITY!AE$3=\"Y\",IF(VAL_MONTHLY_ELECTRICITY!AD23=\"\",\"A\",VAL_MONTHLY_ELECTRICITY!AD23),\"\")","v":""},{"$f":"IF(VAL_MONTHLY_ELECTRICITY!AE$3=\"Y\",IF(VAL_MONTHLY_ELECTRICITY!AE23=\"\",\"F\",VAL_MONTHLY_ELECTRICITY!AE23),\"\")","v":""},{"$f":"IF(VAL_MONTHLY_ELECTRICITY!AH$3=\"Y\",ROUND(VAL_MONTHLY_ELECTRICITY!AF23,3),\"\")","v":0},{"$f":"IF(VAL_MONTHLY_ELECTRICITY!AH$3=\"Y\",IF(VAL_MONTHLY_ELECTRICITY!AG23=\"\",\"A\",VAL_MONTHLY_ELECTRICITY!AG23),\"\")","v":"A"},{"$f":"IF(VAL_MONTHLY_ELECTRICITY!AH$3=\"Y\",IF(VAL_MONTHLY_ELECTRICITY!AH23=\"\",\"F\",VAL_MONTHLY_ELECTRICITY!AH23),\"\")","v":"F"},{"$f":"IF(VAL_MONTHLY_ELECTRICITY!AK$3=\"Y\",ROUND(VAL_MONTHLY_ELECTRICITY!AI23,3),\"\")","v":0},{"$f":"IF(VAL_MONTHLY_ELECTRICITY!AK$3=\"Y\",IF(VAL_MONTHLY_ELECTRICITY!AJ23=\"\",\"A\",VAL_MONTHLY_ELECTRICITY!AJ23),\"\")","v":"A"},{"$f":"IF(VAL_MONTHLY_ELECTRICITY!AK$3=\"Y\",IF(VAL_MONTHLY_ELECTRICITY!AK23=\"\",\"F\",VAL_MONTHLY_ELECTRICITY!AK23),\"\")","v":"F"},{"$f":"IF(VAL_MONTHLY_ELECTRICITY!AN$3=\"Y\",ROUND(VAL_MONTHLY_ELECTRICITY!AL23,3),\"\")","v":0},{"$f":"IF(VAL_MONTHLY_ELECTRICITY!AN$3=\"Y\",IF(VAL_MONTHLY_ELECTRICITY!AM23=\"\",\"A\",VAL_MONTHLY_ELECTRICITY!AM23),\"\")","v":"A"},{"$f":"IF(VAL_MONTHLY_ELECTRICITY!AN$3=\"Y\",IF(VAL_MONTHLY_ELECTRICITY!AN23=\"\",\"F\",VAL_MONTHLY_ELECTRICITY!AN23),\"\")","v":"F"}]
[null,null,"NETPROD","_Z","GEOTHERM","_Z","Geothermal",{"$f":"IF(VAL_MONTHLY_ELECTRICITY!G$3=\"Y\",ROUND(VAL_MONTHLY_ELECTRICITY!E24,3),\"\")","v":""},{"$f":"IF(VAL_MONTHLY_ELECTRICITY!G$3=\"Y\",IF(VAL_MONTHLY_ELECTRICITY!F24=\"\",\"A\",VAL_MONTHLY_ELECTRICITY!F24),\"\")","v":""},{"$f":"IF(VAL_MONTHLY_ELECTRICITY!G$3=\"Y\",IF(VAL_MONTHLY_ELECTRICITY!G24=\"\",\"F\",VAL_MONTHLY_ELECTRICITY!G24),\"\")","v":""},{"$f":"IF(VAL_MONTHLY_ELECTRICITY!J$3=\"Y\",ROUND(VAL_MONTHLY_ELECTRICITY!H24,3),\"\")","v":""},{"$f":"IF(VAL_MONTHLY_ELECTRICITY!J$3=\"Y\",IF(VAL_MONTHLY_ELECTRICITY!I24=\"\",\"A\",VAL_MONTHLY_ELECTRICITY!I24),\"\")","v":""},{"$f":"IF(VAL_MONTHLY_ELECTRICITY!J$3=\"Y\",IF(VAL_MONTHLY_ELECTRICITY!J24=\"\",\"F\",VAL_MONTHLY_ELECTRICITY!J24),\"\")","v":""},{"$f":"IF(VAL_MONTHLY_ELECTRICITY!M$3=\"Y\",ROUND(VAL_MONTHLY_ELECTRICITY!K24,3),\"\")","v":""},{"$f":"IF(VAL_MONTHLY_ELECTRICITY!M$3=\"Y\",IF(VAL_MONTHLY_ELECTRICITY!L24=\"\",\"A\",VAL_MONTHLY_ELECTRICITY!L24),\"\")","v":""},{"$f":"IF(VAL_MONTHLY_ELECTRICITY!M$3=\"Y\",IF(VAL_MONTHLY_ELECTRICITY!M24=\"\",\"F\",VAL_MONTHLY_ELECTRICITY!M24),\"\")","v":""},{"$f":"IF(VAL_MONTHLY_ELECTRICITY!P$3=\"Y\",ROUND(VAL_MONTHLY_ELECTRICITY!N24,3),\"\")","v":0},{"$f":"IF(VAL_MONTHLY_ELECTRICITY!P$3=\"Y\",IF(VAL_MONTHLY_ELECTRICITY!O24=\"\",\"A\",VAL_MONTHLY_ELECTRICITY!O24),\"\")","v":"A"},{"$f":"IF(VAL_MONTHLY_ELECTRICITY!P$3=\"Y\",IF(VAL_MONTHLY_ELECTRICITY!P24=\"\",\"F\",VAL_MONTHLY_ELECTRICITY!P24),\"\")","v":"F"},{"$f":"IF(VAL_MONTHLY_ELECTRICITY!S$3=\"Y\",ROUND(VAL_MONTHLY_ELECTRICITY!Q24,3),\"\")","v":0},{"$f":"IF(VAL_MONTHLY_ELECTRICITY!S$3=\"Y\",IF(VAL_MONTHLY_ELECTRICITY!R24=\"\",\"A\",VAL_MONTHLY_ELECTRICITY!R24),\"\")","v":"A"},{"$f":"IF(VAL_MONTHLY_ELECTRICITY!S$3=\"Y\",IF(VAL_MONTHLY_ELECTRICITY!S24=\"\",\"F\",VAL_MONTHLY_ELECTRICITY!S24),\"\")","v":"F"},{"$f":"IF(VAL_MONTHLY_ELECTRICITY!V$3=\"Y\",ROUND(VAL_MONTHLY_ELECTRICITY!T24,3),\"\")","v":""},{"$f":"IF(VAL_MONTHLY_ELECTRICITY!V$3=\"Y\",IF(VAL_MONTHLY_ELECTRICITY!U24=\"\",\"A\",VAL_MONTHLY_ELECTRICITY!U24),\"\")","v":""},{"$f":"IF(VAL_MONTHLY_ELECTRICITY!V$3=\"Y\",IF(VAL_MONTHLY_ELECTRICITY!V24=\"\",\"F\",VAL_MONTHLY_ELECTRICITY!V24),\"\")","v":""},{"$f":"IF(VAL_MONTHLY_ELECTRICITY!Y$3=\"Y\",ROUND(VAL_MONTHLY_ELECTRICITY!W24,3),\"\")","v":""},{"$f":"IF(VAL_MONTHLY_ELECTRICITY!Y$3=\"Y\",IF(VAL_MONTHLY_ELECTRICITY!X24=\"\",\"A\",VAL_MONTHLY_ELECTRICITY!X24),\"\")","v":""},{"$f":"IF(VAL_MONTHLY_ELECTRICITY!Y$3=\"Y\",IF(VAL_MONTHLY_ELECTRICITY!Y24=\"\",\"F\",VAL_MONTHLY_ELECTRICITY!Y24),\"\")","v":""},{"$f":"IF(VAL_MONTHLY_ELECTRICITY!AB$3=\"Y\",ROUND(VAL_MONTHLY_ELECTRICITY!Z24,3),\"\")","v":""},{"$f":"IF(VAL_MONTHLY_ELECTRICITY!AB$3=\"Y\",IF(VAL_MONTHLY_ELECTRICITY!AA24=\"\",\"A\",VAL_MONTHLY_ELECTRICITY!AA24),\"\")","v":""},{"$f":"IF(VAL_MONTHLY_ELECTRICITY!AB$3=\"Y\",IF(VAL_MONTHLY_ELECTRICITY!AB24=\"\",\"F\",VAL_MONTHLY_ELECTRICITY!AB24),\"\")","v":""},{"$f":"IF(VAL_MONTHLY_ELECTRICITY!AE$3=\"Y\",ROUND(VAL_MONTHLY_ELECTRICITY!AC24,3),\"\")","v":""},{"$f":"IF(VAL_MONTHLY_ELECTRICITY!AE$3=\"Y\",IF(VAL_MONTHLY_ELECTRICITY!AD24=\"\",\"A\",VAL_MONTHLY_ELECTRICITY!AD24),\"\")","v":""},{"$f":"IF(VAL_MONTHLY_ELECTRICITY!AE$3=\"Y\",IF(VAL_MONTHLY_ELECTRICITY!AE24=\"\",\"F\",VAL_MONTHLY_ELECTRICITY!AE24),\"\")","v":""},{"$f":"IF(VAL_MONTHLY_ELECTRICITY!AH$3=\"Y\",ROUND(VAL_MONTHLY_ELECTRICITY!AF24,3),\"\")","v":0},{"$f":"IF(VAL_MONTHLY_ELECTRICITY!AH$3=\"Y\",IF(VAL_MONTHLY_ELECTRICITY!AG24=\"\",\"A\",VAL_MONTHLY_ELECTRICITY!AG24),\"\")","v":"A"},{"$f":"IF(VAL_MONTHLY_ELECTRICITY!AH$3=\"Y\",IF(VAL_MONTHLY_ELECTRICITY!AH24=\"\",\"F\",VAL_MONTHLY_ELECTRICITY!AH24),\"\")","v":"F"},{"$f":"IF(VAL_MONTHLY_ELECTRICITY!AK$3=\"Y\",ROUND(VAL_MONTHLY_ELECTRICITY!AI24,3),\"\")","v":0},{"$f":"IF(VAL_MONTHLY_ELECTRICITY!AK$3=\"Y\",IF(VAL_MONTHLY_ELECTRICITY!AJ24=\"\",\"A\",VAL_MONTHLY_ELECTRICITY!AJ24),\"\")","v":"A"},{"$f":"IF(VAL_MONTHLY_ELECTRICITY!AK$3=\"Y\",IF(VAL_MONTHLY_ELECTRICITY!AK24=\"\",\"F\",VAL_MONTHLY_ELECTRICITY!AK24),\"\")","v":"F"},{"$f":"IF(VAL_MONTHLY_ELECTRICITY!AN$3=\"Y\",ROUND(VAL_MONTHLY_ELECTRICITY!AL24,3),\"\")","v":0},{"$f":"IF(VAL_MONTHLY_ELECTRICITY!AN$3=\"Y\",IF(VAL_MONTHLY_ELECTRICITY!AM24=\"\",\"A\",VAL_MONTHLY_ELECTRICITY!AM24),\"\")","v":"A"},{"$f":"IF(VAL_MONTHLY_ELECTRICITY!AN$3=\"Y\",IF(VAL_MONTHLY_ELECTRICITY!AN24=\"\",\"F\",VAL_MONTHLY_ELECTRICITY!AN24),\"\")","v":"F"}]
[null,null,"NETPROD","_Z","TIDE","_Z","Other renewable sources",{"$f":"IF(VAL_MONTHLY_ELECTRICITY!G$3=\"Y\",ROUND(VAL_MONTHLY_ELECTRICITY!E25,3),\"\")","v":""},{"$f":"IF(VAL_MONTHLY_ELECTRICITY!G$3=\"Y\",IF(VAL_MONTHLY_ELECTRICITY!F25=\"\",\"A\",VAL_MONTHLY_ELECTRICITY!F25),\"\")","v":""},{"$f":"IF(VAL_MONTHLY_ELECTRICITY!G$3=\"Y\",IF(VAL_MONTHLY_ELECTRICITY!G25=\"\",\"F\",VAL_MONTHLY_ELECTRICITY!G25),\"\")","v":""},{"$f":"IF(VAL_MONTHLY_ELECTRICITY!J$3=\"Y\",ROUND(VAL_MONTHLY_ELECTRICITY!H25,3),\"\")","v":""},{"$f":"IF(VAL_MONTHLY_ELECTRICITY!J$3=\"Y\",IF(VAL_MONTHLY_ELECTRICITY!I25=\"\",\"A\",VAL_MONTHLY_ELECTRICITY!I25),\"\")","v":""},{"$f":"IF(VAL_MONTHLY_ELECTRICITY!J$3=\"Y\",IF(VAL_MONTHLY_ELECTRICITY!J25=\"\",\"F\",VAL_MONTHLY_ELECTRICITY!J25),\"\")","v":""},{"$f":"IF(VAL_MONTHLY_ELECTRICITY!M$3=\"Y\",ROUND(VAL_MONTHLY_ELECTRICITY!K25,3),\"\")","v":""},{"$f":"IF(VAL_MONTHLY_ELECTRICITY!M$3=\"Y\",IF(VAL_MONTHLY_ELECTRICITY!L25=\"\",\"A\",VAL_MONTHLY_ELECTRICITY!L25),\"\")","v":""},{"$f":"IF(VAL_MONTHLY_ELECTRICITY!M$3=\"Y\",IF(VAL_MONTHLY_ELECTRICITY!M25=\"\",\"F\",VAL_MONTHLY_ELECTRICITY!M25),\"\")","v":""},{"$f":"IF(VAL_MONTHLY_ELECTRICITY!P$3=\"Y\",ROUND(VAL_MONTHLY_ELECTRICITY!N25,3),\"\")","v":0},{"$f":"IF(VAL_MONTHLY_ELECTRICITY!P$3=\"Y\",IF(VAL_MONTHLY_ELECTRICITY!O25=\"\",\"A\",VAL_MONTHLY_ELECTRICITY!O25),\"\")","v":"A"},{"$f":"IF(VAL_MONTHLY_ELECTRICITY!P$3=\"Y\",IF(VAL_MONTHLY_ELECTRICITY!P25=\"\",\"F\",VAL_MONTHLY_ELECTRICITY!P25),\"\")","v":"F"},{"$f":"IF(VAL_MONTHLY_ELECTRICITY!S$3=\"Y\",ROUND(VAL_MONTHLY_ELECTRICITY!Q25,3),\"\")","v":0},{"$f":"IF(VAL_MONTHLY_ELECTRICITY!S$3=\"Y\",IF(VAL_MONTHLY_ELECTRICITY!R25=\"\",\"A\",VAL_MONTHLY_ELECTRICITY!R25),\"\")","v":"A"},{"$f":"IF(VAL_MONTHLY_ELECTRICITY!S$3=\"Y\",IF(VAL_MONTHLY_ELECTRICITY!S25=\"\",\"F\",VAL_MONTHLY_ELECTRICITY!S25),\"\")","v":"F"},{"$f":"IF(VAL_MONTHLY_ELECTRICITY!V$3=\"Y\",ROUND(VAL_MONTHLY_ELECTRICITY!T25,3),\"\")","v":""},{"$f":"IF(VAL_MONTHLY_ELECTRICITY!V$3=\"Y\",IF(VAL_MONTHLY_ELECTRICITY!U25=\"\",\"A\",VAL_MONTHLY_ELECTRICITY!U25),\"\")","v":""},{"$f":"IF(VAL_MONTHLY_ELECTRICITY!V$3=\"Y\",IF(VAL_MONTHLY_ELECTRICITY!V25=\"\",\"F\",VAL_MONTHLY_ELECTRICITY!V25),\"\")","v":""},{"$f":"IF(VAL_MONTHLY_ELECTRICITY!Y$3=\"Y\",ROUND(VAL_MONTHLY_ELECTRICITY!W25,3),\"\")","v":""},{"$f":"IF(VAL_MONTHLY_ELECTRICITY!Y$3=\"Y\",IF(VAL_MONTHLY_ELECTRICITY!X25=\"\",\"A\",VAL_MONTHLY_ELECTRICITY!X25),\"\")","v":""},{"$f":"IF(VAL_MONTHLY_ELECTRICITY!Y$3=\"Y\",IF(VAL_MONTHLY_ELECTRICITY!Y25=\"\",\"F\",VAL_MONTHLY_ELECTRICITY!Y25),\"\")","v":""},{"$f":"IF(VAL_MONTHLY_ELECTRICITY!AB$3=\"Y\",ROUND(VAL_MONTHLY_ELECTRICITY!Z25,3),\"\")","v":""},{"$f":"IF(VAL_MONTHLY_ELECTRICITY!AB$3=\"Y\",IF(VAL_MONTHLY_ELECTRICITY!AA25=\"\",\"A\",VAL_MONTHLY_ELECTRICITY!AA25),\"\")","v":""},{"$f":"IF(VAL_MONTHLY_ELECTRICITY!AB$3=\"Y\",IF(VAL_MONTHLY_ELECTRICITY!AB25=\"\",\"F\",VAL_MONTHLY_ELECTRICITY!AB25),\"\")","v":""},{"$f":"IF(VAL_MONTHLY_ELECTRICITY!AE$3=\"Y\",ROUND(VAL_MONTHLY_ELECTRICITY!AC25,3),\"\")","v":""},{"$f":"IF(VAL_MONTHLY_ELECTRICITY!AE$3=\"Y\",IF(VAL_MONTHLY_ELECTRICITY!AD25=\"\",\"A\",VAL_MONTHLY_ELECTRICITY!AD25),\"\")","v":""},{"$f":"IF(VAL_MONTHLY_ELECTRICITY!AE$3=\"Y\",IF(VAL_MONTHLY_ELECTRICITY!AE25=\"\",\"F\",VAL_MONTHLY_ELECTRICITY!AE25),\"\")","v":""},{"$f":"IF(VAL_MONTHLY_ELECTRICITY!AH$3=\"Y\",ROUND(VAL_MONTHLY_ELECTRICITY!AF25,3),\"\")","v":0},{"$f":"IF(VAL_MONTHLY_ELECTRICITY!AH$3=\"Y\",IF(VAL_MONTHLY_ELECTRICITY!AG25=\"\",\"A\",VAL_MONTHLY_ELECTRICITY!AG25),\"\")","v":"A"},{"$f":"IF(VAL_MONTHLY_ELECTRICITY!AH$3=\"Y\",IF(VAL_MONTHLY_ELECTRICITY!AH25=\"\",\"F\",VAL_MONTHLY_ELECTRICITY!AH25),\"\")","v":"F"},{"$f":"IF(VAL_MONTHLY_ELECTRICITY!AK$3=\"Y\",ROUND(VAL_MONTHLY_ELECTRICITY!AI25,3),\"\")","v":0},{"$f":"IF(VAL_MONTHLY_ELECTRICITY!AK$3=\"Y\",IF(VAL_MONTHLY_ELECTRICITY!AJ25=\"\",\"A\",VAL_MONTHLY_ELECTRICITY!AJ25),\"\")","v":"A"},{"$f":"IF(VAL_MONTHLY_ELECTRICITY!AK$3=\"Y\",IF(VAL_MONTHLY_ELECTRICITY!AK25=\"\",\"F\",VAL_MONTHLY_ELECTRICITY!AK25),\"\")","v":"F"},{"$f":"IF(VAL_MONTHLY_ELECTRICITY!AN$3=\"Y\",ROUND(VAL_MONTHLY_ELECTRICITY!AL25,3),\"\")","v":0},{"$f":"IF(VAL_MONTHLY_ELECTRICITY!AN$3=\"Y\",IF(VAL_MONTHLY_ELECTRICITY!AM25=\"\",\"A\",VAL_MONTHLY_ELECTRICITY!AM25),\"\")","v":"A"},{"$f":"IF(VAL_MONTHLY_ELECTRICITY!AN$3=\"Y\",IF(VAL_MONTHLY_ELECTRICITY!AN25=\"\",\"F\",VAL_MONTHLY_ELECTRICITY!AN25),\"\")","v":"F"}]
[null,null,"NETPROD","_Z","OTHGEN","_Z","Not specified",{"$f":"IF(VAL_MONTHLY_ELECTRICITY!G$3=\"Y\",ROUND(VAL_MONTHLY_ELECTRICITY!E26,3),\"\")","v":""},{"$f":"IF(VAL_MONTHLY_ELECTRICITY!G$3=\"Y\",IF(VAL_MONTHLY_ELECTRICITY!F26=\"\",\"A\",VAL_MONTHLY_ELECTRICITY!F26),\"\")","v":""},{"$f":"IF(VAL_MONTHLY_ELECTRICITY!G$3=\"Y\",IF(VAL_MONTHLY_ELECTRICITY!G26=\"\",\"F\",VAL_MONTHLY_ELECTRICITY!G26),\"\")","v":""},{"$f":"IF(VAL_MONTHLY_ELECTRICITY!J$3=\"Y\",ROUND(VAL_MONTHLY_ELECTRICITY!H26,3),\"\")","v":""},{"$f":"IF(VAL_MONTHLY_ELECTRICITY!J$3=\"Y\",IF(VAL_MONTHLY_ELECTRICITY!I26=\"\",\"A\",VAL_MONTHLY_ELECTRICITY!I26),\"\")","v":""},{"$f":"IF(VAL_MONTHLY_ELECTRICITY!J$3=\"Y\",IF(VAL_MONTHLY_ELECTRICITY!J26=\"\",\"F\",VAL_MONTHLY_ELECTRICITY!J26),\"\")","v":""},{"$f":"IF(VAL_MONTHLY_ELECTRICITY!M$3=\"Y\",ROUND(VAL_MONTHLY_ELECTRICITY!K26,3),\"\")","v":""},{"$f":"IF(VAL_MONTHLY_ELECTRICITY!M$3=\"Y\",IF(VAL_MONTHLY_ELECTRICITY!L26=\"\",\"A\",VAL_MONTHLY_ELECTRICITY!L26),\"\")","v":""},{"$f":"IF(VAL_MONTHLY_ELECTRICITY!M$3=\"Y\",IF(VAL_MONTHLY_ELECTRICITY!M26=\"\",\"F\",VAL_MONTHLY_ELECTRICITY!M26),\"\")","v":""},{"$f":"IF(VAL_MONTHLY_ELECTRICITY!P$3=\"Y\",ROUND(VAL_MONTHLY_ELECTRICITY!N26,3),\"\")","v":0},{"$f":"IF(VAL_MONTHLY_ELECTRICITY!P$3=\"Y\",IF(VAL_MONTHLY_ELECTRICITY!O26=\"\",\"A\",VAL_MONTHLY_ELECTRICITY!O26),\"\")","v":"A"},{"$f":"IF(VAL_MONTHLY_ELECTRICITY!P$3=\"Y\",IF(VAL_MONTHLY_ELECTRICITY!P26=\"\",\"F\",VAL_MONTHLY_ELECTRICITY!P26),\"\")","v":"F"},{"$f":"IF(VAL_MONTHLY_ELECTRICITY!S$3=\"Y\",ROUND(VAL_MONTHLY_ELECTRICITY!Q26,3),\"\")","v":0},{"$f":"IF(VAL_MONTHLY_ELECTRICITY!S$3=\"Y\",IF(VAL_MONTHLY_ELECTRICITY!R26=\"\",\"A\",VAL_MONTHLY_ELECTRICITY!R26),\"\")","v":"A"},{"$f":"IF(VAL_MONTHLY_ELECTRICITY!S$3=\"Y\",IF(VAL_MONTHLY_ELECTRICITY!S26=\"\",\"F\",VAL_MONTHLY_ELECTRICITY!S26),\"\")","v":"F"},{"$f":"IF(VAL_MONTHLY_ELECTRICITY!V$3=\"Y\",ROUND(VAL_MONTHLY_ELECTRICITY!T26,3),\"\")","v":""},{"$f":"IF(VAL_MONTHLY_ELECTRICITY!V$3=\"Y\",IF(VAL_MONTHLY_ELECTRICITY!U26=\"\",\"A\",VAL_MONTHLY_ELECTRICITY!U26),\"\")","v":""},{"$f":"IF(VAL_MONTHLY_ELECTRICITY!V$3=\"Y\",IF(VAL_MONTHLY_ELECTRICITY!V26=\"\",\"F\",VAL_MONTHLY_ELECTRICITY!V26),\"\")","v":""},{"$f":"IF(VAL_MONTHLY_ELECTRICITY!Y$3=\"Y\",ROUND(VAL_MONTHLY_ELECTRICITY!W26,3),\"\")","v":""},{"$f":"IF(VAL_MONTHLY_ELECTRICITY!Y$3=\"Y\",IF(VAL_MONTHLY_ELECTRICITY!X26=\"\",\"A\",VAL_MONTHLY_ELECTRICITY!X26),\"\")","v":""},{"$f":"IF(VAL_MONTHLY_ELECTRICITY!Y$3=\"Y\",IF(VAL_MONTHLY_ELECTRICITY!Y26=\"\",\"F\",VAL_MONTHLY_ELECTRICITY!Y26),\"\")","v":""},{"$f":"IF(VAL_MONTHLY_ELECTRICITY!AB$3=\"Y\",ROUND(VAL_MONTHLY_ELECTRICITY!Z26,3),\"\")","v":""},{"$f":"IF(VAL_MONTHLY_ELECTRICITY!AB$3=\"Y\",IF(VAL_MONTHLY_ELECTRICITY!AA26=\"\",\"A\",VAL_MONTHLY_ELECTRICITY!AA26),\"\")","v":""},{"$f":"IF(VAL_MONTHLY_ELECTRICITY!AB$3=\"Y\",IF(VAL_MONTHLY_ELECTRICITY!AB26=\"\",\"F\",VAL_MONTHLY_ELECTRICITY!AB26),\"\")","v":""},{"$f":"IF(VAL_MONTHLY_ELECTRICITY!AE$3=\"Y\",ROUND(VAL_MONTHLY_ELECTRICITY!AC26,3),\"\")","v":""},{"$f":"IF(VAL_MONTHLY_ELECTRICITY!AE$3=\"Y\",IF(VAL_MONTHLY_ELECTRICITY!AD26=\"\",\"A\",VAL_MONTHLY_ELECTRICITY!AD26),\"\")","v":""},{"$f":"IF(VAL_MONTHLY_ELECTRICITY!AE$3=\"Y\",IF(VAL_MONTHLY_ELECTRICITY!AE26=\"\",\"F\",VAL_MONTHLY_ELECTRICITY!AE26),\"\")","v":""},{"$f":"IF(VAL_MONTHLY_ELECTRICITY!AH$3=\"Y\",ROUND(VAL_MONTHLY_ELECTRICITY!AF26,3),\"\")","v":0},{"$f":"IF(VAL_MONTHLY_ELECTRICITY!AH$3=\"Y\",IF(VAL_MONTHLY_ELECTRICITY!AG26=\"\",\"A\",VAL_MONTHLY_ELECTRICITY!AG26),\"\")","v":"A"},{"$f":"IF(VAL_MONTHLY_ELECTRICITY!AH$3=\"Y\",IF(VAL_MONTHLY_ELECTRICITY!AH26=\"\",\"F\",VAL_MONTHLY_ELECTRICITY!AH26),\"\")","v":"F"},{"$f":"IF(VAL_MONTHLY_ELECTRICITY!AK$3=\"Y\",ROUND(VAL_MONTHLY_ELECTRICITY!AI26,3),\"\")","v":0},{"$f":"IF(VAL_MONTHLY_ELECTRICITY!AK$3=\"Y\",IF(VAL_MONTHLY_ELECTRICITY!AJ26=\"\",\"A\",VAL_MONTHLY_ELECTRICITY!AJ26),\"\")","v":"A"},{"$f":"IF(VAL_MONTHLY_ELECTRICITY!AK$3=\"Y\",IF(VAL_MONTHLY_ELECTRICITY!AK26=\"\",\"F\",VAL_MONTHLY_ELECTRICITY!AK26),\"\")","v":"F"},{"$f":"IF(VAL_MONTHLY_ELECTRICITY!AN$3=\"Y\",ROUND(VAL_MONTHLY_ELECTRICITY!AL26,3),\"\")","v":0},{"$f":"IF(VAL_MONTHLY_ELECTRICITY!AN$3=\"Y\",IF(VAL_MONTHLY_ELECTRICITY!AM26=\"\",\"A\",VAL_MONTHLY_ELECTRICITY!AM26),\"\")","v":"A"},{"$f":"IF(VAL_MONTHLY_ELECTRICITY!AN$3=\"Y\",IF(VAL_MONTHLY_ELECTRICITY!AN26=\"\",\"F\",VAL_MONTHLY_ELECTRICITY!AN26),\"\")","v":"F"}]
[null,null,"IMPORTS","TOTIMPSB","_Z","_Z","Total imports",{"$f":"IF(VAL_MONTHLY_ELECTRICITY!G$3=\"Y\",ROUND(VAL_MONTHLY_ELECTRICITY!E30,3),\"\")","v":""},{"$f":"IF(VAL_MONTHLY_ELECTRICITY!G$3=\"Y\",IF(VAL_MONTHLY_ELECTRICITY!F30=\"\",\"A\",VAL_MONTHLY_ELECTRICITY!F30),\"\")","v":""},{"$f":"IF(VAL_MONTHLY_ELECTRICITY!G$3=\"Y\",IF(VAL_MONTHLY_ELECTRICITY!G30=\"\",\"F\",VAL_MONTHLY_ELECTRICITY!G30),\"\")","v":""},{"$f":"IF(VAL_MONTHLY_ELECTRICITY!J$3=\"Y\",ROUND(VAL_MONTHLY_ELECTRICITY!H30,3),\"\")","v":""},{"$f":"IF(VAL_MONTHLY_ELECTRICITY!J$3=\"Y\",IF(VAL_MONTHLY_ELECTRICITY!I30=\"\",\"A\",VAL_MONTHLY_ELECTRICITY!I30),\"\")","v":""},{"$f":"IF(VAL_MONTHLY_ELECTRICITY!J$3=\"Y\",IF(VAL_MONTHLY_ELECTRICITY!J30=\"\",\"F\",VAL_MONTHLY_ELECTRICITY!J30),\"\")","v":""},{"$f":"IF(VAL_MONTHLY_ELECTRICITY!M$3=\"Y\",ROUND(VAL_MONTHLY_ELECTRICITY!K30,3),\"\")","v":""},{"$f":"IF(VAL_MONTHLY_ELECTRICITY!M$3=\"Y\",IF(VAL_MONTHLY_ELECTRICITY!L30=\"\",\"A\",VAL_MONTHLY_ELECTRICITY!L30),\"\")","v":""},{"$f":"IF(VAL_MONTHLY_ELECTRICITY!M$3=\"Y\",IF(VAL_MONTHLY_ELECTRICITY!M30=\"\",\"F\",VAL_MONTHLY_ELECTRICITY!M30),\"\")","v":""},{"$f":"IF(VAL_MONTHLY_ELECTRICITY!P$3=\"Y\",ROUND(VAL_MONTHLY_ELECTRICITY!N30,3),\"\")","v":173.81100000000001},{"$f":"IF(VAL_MONTHLY_ELECTRICITY!P$3=\"Y\",IF(VAL_MONTHLY_ELECTRICITY!O30=\"\",\"A\",VAL_MONTHLY_ELECTRICITY!O30),\"\")","v":"A"},{"$f":"IF(VAL_MONTHLY_ELECTRICITY!P$3=\"Y\",IF(VAL_MONTHLY_ELECTRICITY!P30=\"\",\"F\",VAL_MONTHLY_ELECTRICITY!P30),\"\")","v":"F"},{"$f":"IF(VAL_MONTHLY_ELECTRICITY!S$3=\"Y\",ROUND(VAL_MONTHLY_ELECTRICITY!Q30,3),\"\")","v":15.555},{"$f":"IF(VAL_MONTHLY_ELECTRICITY!S$3=\"Y\",IF(VAL_MONTHLY_ELECTRICITY!R30=\"\",\"A\",VAL_MONTHLY_ELECTRICITY!R30),\"\")","v":"A"},{"$f":"IF(VAL_MONTHLY_ELECTRICITY!S$3=\"Y\",IF(VAL_MONTHLY_ELECTRICITY!S30=\"\",\"F\",VAL_MONTHLY_ELECTRICITY!S30),\"\")","v":"F"},{"$f":"IF(VAL_MONTHLY_ELECTRICITY!V$3=\"Y\",ROUND(VAL_MONTHLY_ELECTRICITY!T30,3),\"\")","v":""},{"$f":"IF(VAL_MONTHLY_ELECTRICITY!V$3=\"Y\",IF(VAL_MONTHLY_ELECTRICITY!U30=\"\",\"A\",VAL_MONTHLY_ELECTRICITY!U30),\"\")","v":""},{"$f":"IF(VAL_MONTHLY_ELECTRICITY!V$3=\"Y\",IF(VAL_MONTHLY_ELECTRICITY!V30=\"\",\"F\",VAL_MONTHLY_ELECTRICITY!V30),\"\")","v":""},{"$f":"IF(VAL_MONTHLY_ELECTRICITY!Y$3=\"Y\",ROUND(VAL_MONTHLY_ELECTRICITY!W30,3),\"\")","v":""},{"$f":"IF(VAL_MONTHLY_ELECTRICITY!Y$3=\"Y\",IF(VAL_MONTHLY_ELECTRICITY!X30=\"\",\"A\",VAL_MONTHLY_ELECTRICITY!X30),\"\")","v":""},{"$f":"IF(VAL_MONTHLY_ELECTRICITY!Y$3=\"Y\",IF(VAL_MONTHLY_ELECTRICITY!Y30=\"\",\"F\",VAL_MONTHLY_ELECTRICITY!Y30),\"\")","v":""},{"$f":"IF(VAL_MONTHLY_ELECTRICITY!AB$3=\"Y\",ROUND(VAL_MONTHLY_ELECTRICITY!Z30,3),\"\")","v":""},{"$f":"IF(VAL_MONTHLY_ELECTRICITY!AB$3=\"Y\",IF(VAL_MONTHLY_ELECTRICITY!AA30=\"\",\"A\",VAL_MONTHLY_ELECTRICITY!AA30),\"\")","v":""},{"$f":"IF(VAL_MONTHLY_ELECTRICITY!AB$3=\"Y\",IF(VAL_MONTHLY_ELECTRICITY!AB30=\"\",\"F\",VAL_MONTHLY_ELECTRICITY!AB30),\"\")","v":""},{"$f":"IF(VAL_MONTHLY_ELECTRICITY!AE$3=\"Y\",ROUND(VAL_MONTHLY_ELECTRICITY!AC30,3),\"\")","v":""},{"$f":"IF(VAL_MONTHLY_ELECTRICITY!AE$3=\"Y\",IF(VAL_MONTHLY_ELECTRICITY!AD30=\"\",\"A\",VAL_MONTHLY_ELECTRICITY!AD30),\"\")","v":""},{"$f":"IF(VAL_MONTHLY_ELECTRICITY!AE$3=\"Y\",IF(VAL_MONTHLY_ELECTRICITY!AE30=\"\",\"F\",VAL_MONTHLY_ELECTRICITY!AE30),\"\")","v":""},{"$f":"IF(VAL_MONTHLY_ELECTRICITY!AH$3=\"Y\",ROUND(VAL_MONTHLY_ELECTRICITY!AF30,3),\"\")","v":0},{"$f":"IF(VAL_MONTHLY_ELECTRICITY!AH$3=\"Y\",IF(VAL_MONTHLY_ELECTRICITY!AG30=\"\",\"A\",VAL_MONTHLY_ELECTRICITY!AG30),\"\")","v":"A"},{"$f":"IF(VAL_MONTHLY_ELECTRICITY!AH$3=\"Y\",IF(VAL_MONTHLY_ELECTRICITY!AH30=\"\",\"F\",VAL_MONTHLY_ELECTRICITY!AH30),\"\")","v":"F"},{"$f":"IF(VAL_MONTHLY_ELECTRICITY!AK$3=\"Y\",ROUND(VAL_MONTHLY_ELECTRICITY!AI30,3),\"\")","v":0},{"$f":"IF(VAL_MONTHLY_ELECTRICITY!AK$3=\"Y\",IF(VAL_MONTHLY_ELECTRICITY!AJ30=\"\",\"A\",VAL_MONTHLY_ELECTRICITY!AJ30),\"\")","v":"A"},{"$f":"IF(VAL_MONTHLY_ELECTRICITY!AK$3=\"Y\",IF(VAL_MONTHLY_ELECTRICITY!AK30=\"\",\"F\",VAL_MONTHLY_ELECTRICITY!AK30),\"\")","v":"F"},{"$f":"IF(VAL_MONTHLY_ELECTRICITY!AN$3=\"Y\",ROUND(VAL_MONTHLY_ELECTRICITY!AL30,3),\"\")","v":0},{"$f":"IF(VAL_MONTHLY_ELECTRICITY!AN$3=\"Y\",IF(VAL_MONTHLY_ELECTRICITY!AM30=\"\",\"A\",VAL_MONTHLY_ELECTRICITY!AM30),\"\")","v":"A"},{"$f":"IF(VAL_MONTHLY_ELECTRICITY!AN$3=\"Y\",IF(VAL_MONTHLY_ELECTRICITY!AN30=\"\",\"F\",VAL_MONTHLY_ELECTRICITY!AN30),\"\")","v":"F"}]
[null,null,"IMPORTS","_Z","_Z","B0","    out of which from EU",{"$f":"IF(VAL_MONTHLY_ELECTRICITY!G$3=\"Y\",ROUND(VAL_MONTHLY_ELECTRICITY!E31,3),\"\")","v":""},{"$f":"IF(VAL_MONTHLY_ELECTRICITY!G$3=\"Y\",IF(VAL_MONTHLY_ELECTRICITY!F31=\"\",\"A\",VAL_MONTHLY_ELECTRICITY!F31),\"\")","v":""},{"$f":"IF(VAL_MONTHLY_ELECTRICITY!G$3=\"Y\",IF(VAL_MONTHLY_ELECTRICITY!G31=\"\",\"F\",VAL_MONTHLY_ELECTRICITY!G31),\"\")","v":""},{"$f":"IF(VAL_MONTHLY_ELECTRICITY!J$3=\"Y\",ROUND(VAL_MONTHLY_ELECTRICITY!H31,3),\"\")","v":""},{"$f":"IF(VAL_MONTHLY_ELECTRICITY!J$3=\"Y\",IF(VAL_MONTHLY_ELECTRICITY!I31=\"\",\"A\",VAL_MONTHLY_ELECTRICITY!I31),\"\")","v":""},{"$f":"IF(VAL_MONTHLY_ELECTRICITY!J$3=\"Y\",IF(VAL_MONTHLY_ELECTRICITY!J31=\"\",\"F\",VAL_MONTHLY_ELECTRICITY!J31),\"\")","v":""},{"$f":"IF(VAL_MONTHLY_ELECTRICITY!M$3=\"Y\",ROUND(VAL_MONTHLY_ELECTRICITY!K31,3),\"\")","v":""},{"$f":"IF(VAL_MONTHLY_ELECTRICITY!M$3=\"Y\",IF(VAL_MONTHLY_ELECTRICITY!L31=\"\",\"A\",VAL_MONTHLY_ELECTRICITY!L31),\"\")","v":""},{"$f":"IF(VAL_MONTHLY_ELECTRICITY!M$3=\"Y\",IF(VAL_MONTHLY_ELECTRICITY!M31=\"\",\"F\",VAL_MONTHLY_ELECTRICITY!M31),\"\")","v":""},{"$f":"IF(VAL_MONTHLY_ELECTRICITY!P$3=\"Y\",ROUND(VAL_MONTHLY_ELECTRICITY!N31,3),\"\")","v":0},{"$f":"IF(VAL_MONTHLY_ELECTRICITY!P$3=\"Y\",IF(VAL_MONTHLY_ELECTRICITY!O31=\"\",\"A\",VAL_MONTHLY_ELECTRICITY!O31),\"\")","v":"A"},{"$f":"IF(VAL_MONTHLY_ELECTRICITY!P$3=\"Y\",IF(VAL_MONTHLY_ELECTRICITY!P31=\"\",\"F\",VAL_MONTHLY_ELECTRICITY!P31),\"\")","v":"F"},{"$f":"IF(VAL_MONTHLY_ELECTRICITY!S$3=\"Y\",ROUND(VAL_MONTHLY_ELECTRICITY!Q31,3),\"\")","v":0},{"$f":"IF(VAL_MONTHLY_ELECTRICITY!S$3=\"Y\",IF(VAL_MONTHLY_ELECTRICITY!R31=\"\",\"A\",VAL_MONTHLY_ELECTRICITY!R31),\"\")","v":"A"},{"$f":"IF(VAL_MONTHLY_ELECTRICITY!S$3=\"Y\",IF(VAL_MONTHLY_ELECTRICITY!S31=\"\",\"F\",VAL_MONTHLY_ELECTRICITY!S31),\"\")","v":"F"},{"$f":"IF(VAL_MONTHLY_ELECTRICITY!V$3=\"Y\",ROUND(VAL_MONTHLY_ELECTRICITY!T31,3),\"\")","v":""},{"$f":"IF(VAL_MONTHLY_ELECTRICITY!V$3=\"Y\",IF(VAL_MONTHLY_ELECTRICITY!U31=\"\",\"A\",VAL_MONTHLY_ELECTRICITY!U31),\"\")","v":""},{"$f":"IF(VAL_MONTHLY_ELECTRICITY!V$3=\"Y\",IF(VAL_MONTHLY_ELECTRICITY!V31=\"\",\"F\",VAL_MONTHLY_ELECTRICITY!V31),\"\")","v":""},{"$f":"IF(VAL_MONTHLY_ELECTRICITY!Y$3=\"Y\",ROUND(VAL_MONTHLY_ELECTRICITY!W31,3),\"\")","v":""},{"$f":"IF(VAL_MONTHLY_ELECTRICITY!Y$3=\"Y\",IF(VAL_MONTHLY_ELECTRICITY!X31=\"\",\"A\",VAL_MONTHLY_ELECTRICITY!X31),\"\")","v":""},{"$f":"IF(VAL_MONTHLY_ELECTRICITY!Y$3=\"Y\",IF(VAL_MONTHLY_ELECTRICITY!Y31=\"\",\"F\",VAL_MONTHLY_ELECTRICITY!Y31),\"\")","v":""},{"$f":"IF(VAL_MONTHLY_ELECTRICITY!AB$3=\"Y\",ROUND(VAL_MONTHLY_ELECTRICITY!Z31,3),\"\")","v":""},{"$f":"IF(VAL_MONTHLY_ELECTRICITY!AB$3=\"Y\",IF(VAL_MONTHLY_ELECTRICITY!AA31=\"\",\"A\",VAL_MONTHLY_ELECTRICITY!AA31),\"\")","v":""},{"$f":"IF(VAL_MONTHLY_ELECTRICITY!AB$3=\"Y\",IF(VAL_MONTHLY_ELECTRICITY!AB31=\"\",\"F\",VAL_MONTHLY_ELECTRICITY!AB31),\"\")","v":""},{"$f":"IF(VAL_MONTHLY_ELECTRICITY!AE$3=\"Y\",ROUND(VAL_MONTHLY_ELECTRICITY!AC31,3),\"\")","v":""},{"$f":"IF(VAL_MONTHLY_ELECTRICITY!AE$3=\"Y\",IF(VAL_MONTHLY_ELECTRICITY!AD31=\"\",\"A\",VAL_MONTHLY_ELECTRICITY!AD31),\"\")","v":""},{"$f":"IF(VAL_MONTHLY_ELECTRICITY!AE$3=\"Y\",IF(VAL_MONTHLY_ELECTRICITY!AE31=\"\",\"F\",VAL_MONTHLY_ELECTRICITY!AE31),\"\")","v":""},{"$f":"IF(VAL_MONTHLY_ELECTRICITY!AH$3=\"Y\",ROUND(VAL_MONTHLY_ELECTRICITY!AF31,3),\"\")","v":0},{"$f":"IF(VAL_MONTHLY_ELECTRICITY!AH$3=\"Y\",IF(VAL_MONTHLY_ELECTRICITY!AG31=\"\",\"A\",VAL_MONTHLY_ELECTRICITY!AG31),\"\")","v":"A"},{"$f":"IF(VAL_MONTHLY_ELECTRICITY!AH$3=\"Y\",IF(VAL_MONTHLY_ELECTRICITY!AH31=\"\",\"F\",VAL_MONTHLY_ELECTRICITY!AH31),\"\")","v":"F"},{"$f":"IF(VAL_MONTHLY_ELECTRICITY!AK$3=\"Y\",ROUND(VAL_MONTHLY_ELECTRICITY!AI31,3),\"\")","v":0},{"$f":"IF(VAL_MONTHLY_ELECTRICITY!AK$3=\"Y\",IF(VAL_MONTHLY_ELECTRICITY!AJ31=\"\",\"A\",VAL_MONTHLY_ELECTRICITY!AJ31),\"\")","v":"A"},{"$f":"IF(VAL_MONTHLY_ELECTRICITY!AK$3=\"Y\",IF(VAL_MONTHLY_ELECTRICITY!AK31=\"\",\"F\",VAL_MONTHLY_ELECTRICITY!AK31),\"\")","v":"F"},{"$f":"IF(VAL_MONTHLY_ELECTRICITY!AN$3=\"Y\",ROUND(VAL_MONTHLY_ELECTRICITY!AL31,3),\"\")","v":0},{"$f":"IF(VAL_MONTHLY_ELECTRICITY!AN$3=\"Y\",IF(VAL_MONTHLY_ELECTRICITY!AM31=\"\",\"A\",VAL_MONTHLY_ELECTRICITY!AM31),\"\")","v":"A"},{"$f":"IF(VAL_MONTHLY_ELECTRICITY!AN$3=\"Y\",IF(VAL_MONTHLY_ELECTRICITY!AN31=\"\",\"F\",VAL_MONTHLY_ELECTRICITY!AN31),\"\")","v":"F"}]
[null,null,"EXPORTS","TOTEXPSB","_Z","_Z","Total exports",{"$f":"IF(VAL_MONTHLY_ELECTRICITY!G$3=\"Y\",ROUND(VAL_MONTHLY_ELECTRICITY!E32,3),\"\")","v":""},{"$f":"IF(VAL_MONTHLY_ELECTRICITY!G$3=\"Y\",IF(VAL_MONTHLY_ELECTRICITY!F32=\"\",\"A\",VAL_MONTHLY_ELECTRICITY!F32),\"\")","v":""},{"$f":"IF(VAL_MONTHLY_ELECTRICITY!G$3=\"Y\",IF(VAL_MONTHLY_ELECTRICITY!G32=\"\",\"F\",VAL_MONTHLY_ELECTRICITY!G32),\"\")","v":""},{"$f":"IF(VAL_MONTHLY_ELECTRICITY!J$3=\"Y\",ROUND(VAL_MONTHLY_ELECTRICITY!H32,3),\"\")","v":""},{"$f":"IF(VAL_MONTHLY_ELECTRICITY!J$3=\"Y\",IF(VAL_MONTHLY_ELECTRICITY!I32=\"\",\"A\",VAL_MONTHLY_ELECTRICITY!I32),\"\")","v":""},{"$f":"IF(VAL_MONTHLY_ELECTRICITY!J$3=\"Y\",IF(VAL_MONTHLY_ELECTRICITY!J32=\"\",\"F\",VAL_MONTHLY_ELECTRICITY!J32),\"\")","v":""},{"$f":"IF(VAL_MONTHLY_ELECTRICITY!M$3=\"Y\",ROUND(VAL_MONTHLY_ELECTRICITY!K32,3),\"\")","v":""},{"$f":"IF(VAL_MONTHLY_ELECTRICITY!M$3=\"Y\",IF(VAL_MONTHLY_ELECTRICITY!L32=\"\",\"A\",VAL_MONTHLY_ELECTRICITY!L32),\"\")","v":""},{"$f":"IF(VAL_MONTHLY_ELECTRICITY!M$3=\"Y\",IF(VAL_MONTHLY_ELECTRICITY!M32=\"\",\"F\",VAL_MONTHLY_ELECTRICITY!M32),\"\")","v":""},{"$f":"IF(VAL_MONTHLY_ELECTRICITY!P$3=\"Y\",ROUND(VAL_MONTHLY_ELECTRICITY!N32,3),\"\")","v":4.2999999999999997E-2},{"$f":"IF(VAL_MONTHLY_ELECTRICITY!P$3=\"Y\",IF(VAL_MONTHLY_ELECTRICITY!O32=\"\",\"A\",VAL_MONTHLY_ELECTRICITY!O32),\"\")","v":"A"},{"$f":"IF(VAL_MONTHLY_ELECTRICITY!P$3=\"Y\",IF(VAL_MONTHLY_ELECTRICITY!P32=\"\",\"F\",VAL_MONTHLY_ELECTRICITY!P32),\"\")","v":"F"},{"$f":"IF(VAL_MONTHLY_ELECTRICITY!S$3=\"Y\",ROUND(VAL_MONTHLY_ELECTRICITY!Q32,3),\"\")","v":1.1100000000000001},{"$f":"IF(VAL_MONTHLY_ELECTRICITY!S$3=\"Y\",IF(VAL_MONTHLY_ELECTRICITY!R32=\"\",\"A\",VAL_MONTHLY_ELECTRICITY!R32),\"\")","v":"A"},{"$f":"IF(VAL_MONTHLY_ELECTRICITY!S$3=\"Y\",IF(VAL_MONTHLY_ELECTRICITY!S32=\"\",\"F\",VAL_MONTHLY_ELECTRICITY!S32),\"\")","v":"F"},{"$f":"IF(VAL_MONTHLY_ELECTRICITY!V$3=\"Y\",ROUND(VAL_MONTHLY_ELECTRICITY!T32,3),\"\")","v":""},{"$f":"IF(VAL_MONTHLY_ELECTRICITY!V$3=\"Y\",IF(VAL_MONTHLY_ELECTRICITY!U32=\"\",\"A\",VAL_MONTHLY_ELECTRICITY!U32),\"\")","v":""},{"$f":"IF(VAL_MONTHLY_ELECTRICITY!V$3=\"Y\",IF(VAL_MONTHLY_ELECTRICITY!V32=\"\",\"F\",VAL_MONTHLY_ELECTRICITY!V32),\"\")","v":""},{"$f":"IF(VAL_MONTHLY_ELECTRICITY!Y$3=\"Y\",ROUND(VAL_MONTHLY_ELECTRICITY!W32,3),\"\")","v":""},{"$f":"IF(VAL_MONTHLY_ELECTRICITY!Y$3=\"Y\",IF(VAL_MONTHLY_ELECTRICITY!X32=\"\",\"A\",VAL_MONTHLY_ELECTRICITY!X32),\"\")","v":""},{"$f":"IF(VAL_MONTHLY_ELECTRICITY!Y$3=\"Y\",IF(VAL_MONTHLY_ELECTRICITY!Y32=\"\",\"F\",VAL_MONTHLY_ELECTRICITY!Y32),\"\")","v":""},{"$f":"IF(VAL_MONTHLY_ELECTRICITY!AB$3=\"Y\",ROUND(VAL_MONTHLY_ELECTRICITY!Z32,3),\"\")","v":""},{"$f":"IF(VAL_MONTHLY_ELECTRICITY!AB$3=\"Y\",IF(VAL_MONTHLY_ELECTRICITY!AA32=\"\",\"A\",VAL_MONTHLY_ELECTRICITY!AA32),\"\")","v":""},{"$f":"IF(VAL_MONTHLY_ELECTRICITY!AB$3=\"Y\",IF(VAL_MONTHLY_ELECTRICITY!AB32=\"\",\"F\",VAL_MONTHLY_ELECTRICITY!AB32),\"\")","v":""},{"$f":"IF(VAL_MONTHLY_ELECTRICITY!AE$3=\"Y\",ROUND(VAL_MONTHLY_ELECTRICITY!AC32,3),\"\")","v":""},{"$f":"IF(VAL_MONTHLY_ELECTRICITY!AE$3=\"Y\",IF(VAL_MONTHLY_ELECTRICITY!AD32=\"\",\"A\",VAL_MONTHLY_ELECTRICITY!AD32),\"\")","v":""},{"$f":"IF(VAL_MONTHLY_ELECTRICITY!AE$3=\"Y\",IF(VAL_MONTHLY_ELECTRICITY!AE32=\"\",\"F\",VAL_MONTHLY_ELECTRICITY!AE32),\"\")","v":""},{"$f":"IF(VAL_MONTHLY_ELECTRICITY!AH$3=\"Y\",ROUND(VAL_MONTHLY_ELECTRICITY!AF32,3),\"\")","v":0},{"$f":"IF(VAL_MONTHLY_ELECTRICITY!AH$3=\"Y\",IF(VAL_MONTHLY_ELECTRICITY!AG32=\"\",\"A\",VAL_MONTHLY_ELECTRICITY!AG32),\"\")","v":"A"},{"$f":"IF(VAL_MONTHLY_ELECTRICITY!AH$3=\"Y\",IF(VAL_MONTHLY_ELECTRICITY!AH32=\"\",\"F\",VAL_MONTHLY_ELECTRICITY!AH32),\"\")","v":"F"},{"$f":"IF(VAL_MONTHLY_ELECTRICITY!AK$3=\"Y\",ROUND(VAL_MONTHLY_ELECTRICITY!AI32,3),\"\")","v":0},{"$f":"IF(VAL_MONTHLY_ELECTRICITY!AK$3=\"Y\",IF(VAL_MONTHLY_ELECTRICITY!AJ32=\"\",\"A\",VAL_MONTHLY_ELECTRICITY!AJ32),\"\")","v":"A"},{"$f":"IF(VAL_MONTHLY_ELECTRICITY!AK$3=\"Y\",IF(VAL_MONTHLY_ELECTRICITY!AK32=\"\",\"F\",VAL_MONTHLY_ELECTRICITY!AK32),\"\")","v":"F"},{"$f":"IF(VAL_MONTHLY_ELECTRICITY!AN$3=\"Y\",ROUND(VAL_MONTHLY_ELECTRICITY!AL32,3),\"\")","v":0},{"$f":"IF(VAL_MONTHLY_ELECTRICITY!AN$3=\"Y\",IF(VAL_MONTHLY_ELECTRICITY!AM32=\"\",\"A\",VAL_MONTHLY_ELECTRICITY!AM32),\"\")","v":"A"},{"$f":"IF(VAL_MONTHLY_ELECTRICITY!AN$3=\"Y\",IF(VAL_MONTHLY_ELECTRICITY!AN32=\"\",\"F\",VAL_MONTHLY_ELECTRICITY!AN32),\"\")","v":"F"}]
[null,null,"EXPORTS","_Z","_Z","B0","    out of which to EU",{"$f":"IF(VAL_MONTHLY_ELECTRICITY!G$3=\"Y\",ROUND(VAL_MONTHLY_ELECTRICITY!E33,3),\"\")","v":""},{"$f":"IF(VAL_MONTHLY_ELECTRICITY!G$3=\"Y\",IF(VAL_MONTHLY_ELECTRICITY!F33=\"\",\"A\",VAL_MONTHLY_ELECTRICITY!F33),\"\")","v":""},{"$f":"IF(VAL_MONTHLY_ELECTRICITY!G$3=\"Y\",IF(VAL_MONTHLY_ELECTRICITY!G33=\"\",\"F\",VAL_MONTHLY_ELECTRICITY!G33),\"\")","v":""},{"$f":"IF(VAL_MONTHLY_ELECTRICITY!J$3=\"Y\",ROUND(VAL_MONTHLY_ELECTRICITY!H33,3),\"\")","v":""},{"$f":"IF(VAL_MONTHLY_ELECTRICITY!J$3=\"Y\",IF(VAL_MONTHLY_ELECTRICITY!I33=\"\",\"A\",VAL_MONTHLY_ELECTRICITY!I33),\"\")","v":""},{"$f":"IF(VAL_MONTHLY_ELECTRICITY!J$3=\"Y\",IF(VAL_MONTHLY_ELECTRICITY!J33=\"\",\"F\",VAL_MONTHLY_ELECTRICITY!J33),\"\")","v":""},{"$f":"IF(VAL_MONTHLY_ELECTRICITY!M$3=\"Y\",ROUND(VAL_MONTHLY_ELECTRICITY!K33,3),\"\")","v":""},{"$f":"IF(VAL_MONTHLY_ELECTRICITY!M$3=\"Y\",IF(VAL_MONTHLY_ELECTRICITY!L33=\"\",\"A\",VAL_MONTHLY_ELECTRICITY!L33),\"\")","v":""},{"$f":"IF(VAL_MONTHLY_ELECTRICITY!M$3=\"Y\",IF(VAL_MONTHLY_ELECTRICITY!M33=\"\",\"F\",VAL_MONTHLY_ELECTRICITY!M33),\"\")","v":""},{"$f":"IF(VAL_MONTHLY_ELECTRICITY!P$3=\"Y\",ROUND(VAL_MONTHLY_ELECTRICITY!N33,3),\"\")","v":0},{"$f":"IF(VAL_MONTHLY_ELECTRICITY!P$3=\"Y\",IF(VAL_MONTHLY_ELECTRICITY!O33=\"\",\"A\",VAL_MONTHLY_ELECTRICITY!O33),\"\")","v":"A"},{"$f":"IF(VAL_MONTHLY_ELECTRICITY!P$3=\"Y\",IF(VAL_MONTHLY_ELECTRICITY!P33=\"\",\"F\",VAL_MONTHLY_ELECTRICITY!P33),\"\")","v":"F"},{"$f":"IF(VAL_MONTHLY_ELECTRICITY!S$3=\"Y\",ROUND(VAL_MONTHLY_ELECTRICITY!Q33,3),\"\")","v":0},{"$f":"IF(VAL_MONTHLY_ELECTRICITY!S$3=\"Y\",IF(VAL_MONTHLY_ELECTRICITY!R33=\"\",\"A\",VAL_MONTHLY_ELECTRICITY!R33),\"\")","v":"A"},{"$f":"IF(VAL_MONTHLY_ELECTRICITY!S$3=\"Y\",IF(VAL_MONTHLY_ELECTRICITY!S33=\"\",\"F\",VAL_MONTHLY_ELECTRICITY!S33),\"\")","v":"F"},{"$f":"IF(VAL_MONTHLY_ELECTRICITY!V$3=\"Y\",ROUND(VAL_MONTHLY_ELECTRICITY!T33,3),\"\")","v":""},{"$f":"IF(VAL_MONTHLY_ELECTRICITY!V$3=\"Y\",IF(VAL_MONTHLY_ELECTRICITY!U33=\"\",\"A\",VAL_MONTHLY_ELECTRICITY!U33),\"\")","v":""},{"$f":"IF(VAL_MONTHLY_ELECTRICITY!V$3=\"Y\",IF(VAL_MONTHLY_ELECTRICITY!V33=\"\",\"F\",VAL_MONTHLY_ELECTRICITY!V33),\"\")","v":""},{"$f":"IF(VAL_MONTHLY_ELECTRICITY!Y$3=\"Y\",ROUND(VAL_MONTHLY_ELECTRICITY!W33,3),\"\")","v":""},{"$f":"IF(VAL_MONTHLY_ELECTRICITY!Y$3=\"Y\",IF(VAL_MONTHLY_ELECTRICITY!X33=\"\",\"A\",VAL_MONTHLY_ELECTRICITY!X33),\"\")","v":""},{"$f":"IF(VAL_MONTHLY_ELECTRICITY!Y$3=\"Y\",IF(VAL_MONTHLY_ELECTRICITY!Y33=\"\",\"F\",VAL_MONTHLY_ELECTRICITY!Y33),\"\")","v":""},{"$f":"IF(VAL_MONTHLY_ELECTRICITY!AB$3=\"Y\",ROUND(VAL_MONTHLY_ELECTRICITY!Z33,3),\"\")","v":""},{"$f":"IF(VAL_MONTHLY_ELECTRICITY!AB$3=\"Y\",IF(VAL_MONTHLY_ELECTRICITY!AA33=\"\",\"A\",VAL_MONTHLY_ELECTRICITY!AA33),\"\")","v":""},{"$f":"IF(VAL_MONTHLY_ELECTRICITY!AB$3=\"Y\",IF(VAL_MONTHLY_ELECTRICITY!AB33=\"\",\"F\",VAL_MONTHLY_ELECTRICITY!AB33),\"\")","v":""},{"$f":"IF(VAL_MONTHLY_ELECTRICITY!AE$3=\"Y\",ROUND(VAL_MONTHLY_ELECTRICITY!AC33,3),\"\")","v":""},{"$f":"IF(VAL_MONTHLY_ELECTRICITY!AE$3=\"Y\",IF(VAL_MONTHLY_ELECTRICITY!AD33=\"\",\"A\",VAL_MONTHLY_ELECTRICITY!AD33),\"\")","v":""},{"$f":"IF(VAL_MONTHLY_ELECTRICITY!AE$3=\"Y\",IF(VAL_MONTHLY_ELECTRICITY!AE33=\"\",\"F\",VAL_MONTHLY_ELECTRICITY!AE33),\"\")","v":""},{"$f":"IF(VAL_MONTHLY_ELECTRICITY!AH$3=\"Y\",ROUND(VAL_MONTHLY_ELECTRICITY!AF33,3),\"\")","v":0},{"$f":"IF(VAL_MONTHLY_ELECTRICITY!AH$3=\"Y\",IF(VAL_MONTHLY_ELECTRICITY!AG33=\"\",\"A\",VAL_MONTHLY_ELECTRICITY!AG33),\"\")","v":"A"},{"$f":"IF(VAL_MONTHLY_ELECTRICITY!AH$3=\"Y\",IF(VAL_MONTHLY_ELECTRICITY!AH33=\"\",\"F\",VAL_MONTHLY_ELECTRICITY!AH33),\"\")","v":"F"},{"$f":"IF(VAL_MONTHLY_ELECTRICITY!AK$3=\"Y\",ROUND(VAL_MONTHLY_ELECTRICITY!AI33,3),\"\")","v":0},{"$f":"IF(VAL_MONTHLY_ELECTRICITY!AK$3=\"Y\",IF(VAL_MONTHLY_ELECTRICITY!AJ33=\"\",\"A\",VAL_MONTHLY_ELECTRICITY!AJ33),\"\")","v":"A"},{"$f":"IF(VAL_MONTHLY_ELECTRICITY!AK$3=\"Y\",IF(VAL_MONTHLY_ELECTRICITY!AK33=\"\",\"F\",VAL_MONTHLY_ELECTRICITY!AK33),\"\")","v":"F"},{"$f":"IF(VAL_MONTHLY_ELECTRICITY!AN$3=\"Y\",ROUND(VAL_MONTHLY_ELECTRICITY!AL33,3),\"\")","v":0},{"$f":"IF(VAL_MONTHLY_ELECTRICITY!AN$3=\"Y\",IF(VAL_MONTHLY_ELECTRICITY!AM33=\"\",\"A\",VAL_MONTHLY_ELECTRICITY!AM33),\"\")","v":"A"},{"$f":"IF(VAL_MONTHLY_ELECTRICITY!AN$3=\"Y\",IF(VAL_MONTHLY_ELECTRICITY!AN33=\"\",\"F\",VAL_MONTHLY_ELECTRICITY!AN33),\"\")","v":"F"}]
[null,null,"ENERGUSE","PUMPST","_Z","_Z","Used for pumped storage",{"$f":"IF(VAL_MONTHLY_ELECTRICITY!G$3=\"Y\",ROUND(VAL_MONTHLY_ELECTRICITY!E34,3),\"\")","v":""},{"$f":"IF(VAL_MONTHLY_ELECTRICITY!G$3=\"Y\",IF(VAL_MONTHLY_ELECTRICITY!F34=\"\",\"A\",VAL_MONTHLY_ELECTRICITY!F34),\"\")","v":""},{"$f":"IF(VAL_MONTHLY_ELECTRICITY!G$3=\"Y\",IF(VAL_MONTHLY_ELECTRICITY!G34=\"\",\"F\",VAL_MONTHLY_ELECTRICITY!G34),\"\")","v":""},{"$f":"IF(VAL_MONTHLY_ELECTRICITY!J$3=\"Y\",ROUND(VAL_MONTHLY_ELECTRICITY!H34,3),\"\")","v":""},{"$f":"IF(VAL_MONTHLY_ELECTRICITY!J$3=\"Y\",IF(VAL_MONTHLY_ELECTRICITY!I34=\"\",\"A\",VAL_MONTHLY_ELECTRICITY!I34),\"\")","v":""},{"$f":"IF(VAL_MONTHLY_ELECTRICITY!J$3=\"Y\",IF(VAL_MONTHLY_ELECTRICITY!J34=\"\",\"F\",VAL_MONTHLY_ELECTRICITY!J34),\"\")","v":""},{"$f":"IF(VAL_MONTHLY_ELECTRICITY!M$3=\"Y\",ROUND(VAL_MONTHLY_ELECTRICITY!K34,3),\"\")","v":""},{"$f":"IF(VAL_MONTHLY_ELECTRICITY!M$3=\"Y\",IF(VAL_MONTHLY_ELECTRICITY!L34=\"\",\"A\",VAL_MONTHLY_ELECTRICITY!L34),\"\")","v":""},{"$f":"IF(VAL_MONTHLY_ELECTRICITY!M$3=\"Y\",IF(VAL_MONTHLY_ELECTRICITY!M34=\"\",\"F\",VAL_MONTHLY_ELECTRICITY!M34),\"\")","v":""},{"$f":"IF(VAL_MONTHLY_ELECTRICITY!P$3=\"Y\",ROUND(VAL_MONTHLY_ELECTRICITY!N34,3),\"\")","v":0},{"$f":"IF(VAL_MONTHLY_ELECTRICITY!P$3=\"Y\",IF(VAL_MONTHLY_ELECTRICITY!O34=\"\",\"A\",VAL_MONTHLY_ELECTRICITY!O34),\"\")","v":"A"},{"$f":"IF(VAL_MONTHLY_ELECTRICITY!P$3=\"Y\",IF(VAL_MONTHLY_ELECTRICITY!P34=\"\",\"F\",VAL_MONTHLY_ELECTRICITY!P34),\"\")","v":"F"},{"$f":"IF(VAL_MONTHLY_ELECTRICITY!S$3=\"Y\",ROUND(VAL_MONTHLY_ELECTRICITY!Q34,3),\"\")","v":0},{"$f":"IF(VAL_MONTHLY_ELECTRICITY!S$3=\"Y\",IF(VAL_MONTHLY_ELECTRICITY!R34=\"\",\"A\",VAL_MONTHLY_ELECTRICITY!R34),\"\")","v":"A"},{"$f":"IF(VAL_MONTHLY_ELECTRICITY!S$3=\"Y\",IF(VAL_MONTHLY_ELECTRICITY!S34=\"\",\"F\",VAL_MONTHLY_ELECTRICITY!S34),\"\")","v":"F"},{"$f":"IF(VAL_MONTHLY_ELECTRICITY!V$3=\"Y\",ROUND(VAL_MONTHLY_ELECTRICITY!T34,3),\"\")","v":""},{"$f":"IF(VAL_MONTHLY_ELECTRICITY!V$3=\"Y\",IF(VAL_MONTHLY_ELECTRICITY!U34=\"\",\"A\",VAL_MONTHLY_ELECTRICITY!U34),\"\")","v":""},{"$f":"IF(VAL_MONTHLY_ELECTRICITY!V$3=\"Y\",IF(VAL_MONTHLY_ELECTRICITY!V34=\"\",\"F\",VAL_MONTHLY_ELECTRICITY!V34),\"\")","v":""},{"$f":"IF(VAL_MONTHLY_ELECTRICITY!Y$3=\"Y\",ROUND(VAL_MONTHLY_ELECTRICITY!W34,3),\"\")","v":""},{"$f":"IF(VAL_MONTHLY_ELECTRICITY!Y$3=\"Y\",IF(VAL_MONTHLY_ELECTRICITY!X34=\"\",\"A\",VAL_MONTHLY_ELECTRICITY!X34),\"\")","v":""},{"$f":"IF(VAL_MONTHLY_ELECTRICITY!Y$3=\"Y\",IF(VAL_MONTHLY_ELECTRICITY!Y34=\"\",\"F\",VAL_MONTHLY_ELECTRICITY!Y34),\"\")","v":""},{"$f":"IF(VAL_MONTHLY_ELECTRICITY!AB$3=\"Y\",ROUND(VAL_MONTHLY_ELECTRICITY!Z34,3),\"\")","v":""},{"$f":"IF(VAL_MONTHLY_ELECTRICITY!AB$3=\"Y\",IF(VAL_MONTHLY_ELECTRICITY!AA34=\"\",\"A\",VAL_MONTHLY_ELECTRICITY!AA34),\"\")","v":""},{"$f":"IF(VAL_MONTHLY_ELECTRICITY!AB$3=\"Y\",IF(VAL_MONTHLY_ELECTRICITY!AB34=\"\",\"F\",VAL_MONTHLY_ELECTRICITY!AB34),\"\")","v":""},{"$f":"IF(VAL_MONTHLY_ELECTRICITY!AE$3=\"Y\",ROUND(VAL_MONTHLY_ELECTRICITY!AC34,3),\"\")","v":""},{"$f":"IF(VAL_MONTHLY_ELECTRICITY!AE$3=\"Y\",IF(VAL_MONTHLY_ELECTRICITY!AD34=\"\",\"A\",VAL_MONTHLY_ELECTRICITY!AD34),\"\")","v":""},{"$f":"IF(VAL_MONTHLY_ELECTRICITY!AE$3=\"Y\",IF(VAL_MONTHLY_ELECTRICITY!AE34=\"\",\"F\",VAL_MONTHLY_ELECTRICITY!AE34),\"\")","v":""},{"$f":"IF(VAL_MONTHLY_ELECTRICITY!AH$3=\"Y\",ROUND(VAL_MONTHLY_ELECTRICITY!AF34,3),\"\")","v":0},{"$f":"IF(VAL_MONTHLY_ELECTRICITY!AH$3=\"Y\",IF(VAL_MONTHLY_ELECTRICITY!AG34=\"\",\"A\",VAL_MONTHLY_ELECTRICITY!AG34),\"\")","v":"A"},{"$f":"IF(VAL_MONTHLY_ELECTRICITY!AH$3=\"Y\",IF(VAL_MONTHLY_ELECTRICITY!AH34=\"\",\"F\",VAL_MONTHLY_ELECTRICITY!AH34),\"\")","v":"F"},{"$f":"IF(VAL_MONTHLY_ELECTRICITY!AK$3=\"Y\",ROUND(VAL_MONTHLY_ELECTRICITY!AI34,3),\"\")","v":0},{"$f":"IF(VAL_MONTHLY_ELECTRICITY!AK$3=\"Y\",IF(VAL_MONTHLY_ELECTRICITY!AJ34=\"\",\"A\",VAL_MONTHLY_ELECTRICITY!AJ34),\"\")","v":"A"},{"$f":"IF(VAL_MONTHLY_ELECTRICITY!AK$3=\"Y\",IF(VAL_MONTHLY_ELECTRICITY!AK34=\"\",\"F\",VAL_MONTHLY_ELECTRICITY!AK34),\"\")","v":"F"},{"$f":"IF(VAL_MONTHLY_ELECTRICITY!AN$3=\"Y\",ROUND(VAL_MONTHLY_ELECTRICITY!AL34,3),\"\")","v":0},{"$f":"IF(VAL_MONTHLY_ELECTRICITY!AN$3=\"Y\",IF(VAL_MONTHLY_ELECTRICITY!AM34=\"\",\"A\",VAL_MONTHLY_ELECTRICITY!AM34),\"\")","v":"A"},{"$f":"IF(VAL_MONTHLY_ELECTRICITY!AN$3=\"Y\",IF(VAL_MONTHLY_ELECTRICITY!AN34=\"\",\"F\",VAL_MONTHLY_ELECTRICITY!AN34),\"\")","v":"F"}]
[null,null,"LOSSES","DISTLOSS","_Z","_Z","Transmission and distribution losses",{"$f":"IF(VAL_MONTHLY_ELECTRICITY!G$3=\"Y\",ROUND(VAL_MONTHLY_ELECTRICITY!E35,3),\"\")","v":""},{"$f":"IF(VAL_MONTHLY_ELECTRICITY!G$3=\"Y\",IF(VAL_MONTHLY_ELECTRICITY!F35=\"\",\"A\",VAL_MONTHLY_ELECTRICITY!F35),\"\")","v":""},{"$f":"IF(VAL_MONTHLY_ELECTRICITY!G$3=\"Y\",IF(VAL_MONTHLY_ELECTRICITY!G35=\"\",\"F\",VAL_MONTHLY_ELECTRICITY!G35),\"\")","v":""},{"$f":"IF(VAL_MONTHLY_ELECTRICITY!J$3=\"Y\",ROUND(VAL_MONTHLY_ELECTRICITY!H35,3),\"\")","v":""},{"$f":"IF(VAL_MONTHLY_ELECTRICITY!J$3=\"Y\",IF(VAL_MONTHLY_ELECTRICITY!I35=\"\",\"A\",VAL_MONTHLY_ELECTRICITY!I35),\"\")","v":""},{"$f":"IF(VAL_MONTHLY_ELECTRICITY!J$3=\"Y\",IF(VAL_MONTHLY_ELECTRICITY!J35=\"\",\"F\",VAL_MONTHLY_ELECTRICITY!J35),\"\")","v":""},{"$f":"IF(VAL_MONTHLY_ELECTRICITY!M$3=\"Y\",ROUND(VAL_MONTHLY_ELECTRICITY!K35,3),\"\")","v":""},{"$f":"IF(VAL_MONTHLY_ELECTRICITY!M$3=\"Y\",IF(VAL_MONTHLY_ELECTRICITY!L35=\"\",\"A\",VAL_MONTHLY_ELECTRICITY!L35),\"\")","v":""},{"$f":"IF(VAL_MONTHLY_ELECTRICITY!M$3=\"Y\",IF(VAL_MONTHLY_ELECTRICITY!M35=\"\",\"F\",VAL_MONTHLY_ELECTRICITY!M35),\"\")","v":""},{"$f":"IF(VAL_MONTHLY_ELECTRICITY!P$3=\"Y\",ROUND(VAL_MONTHLY_ELECTRICITY!N35,3),\"\")","v":1110.8820000000001},{"$f":"IF(VAL_MONTHLY_ELECTRICITY!P$3=\"Y\",IF(VAL_MONTHLY_ELECTRICITY!O35=\"\",\"A\",VAL_MONTHLY_ELECTRICITY!O35),\"\")","v":"E"},{"$f":"IF(VAL_MONTHLY_ELECTRICITY!P$3=\"Y\",IF(VAL_MONTHLY_ELECTRICITY!P35=\"\",\"F\",VAL_MONTHLY_ELECTRICITY!P35),\"\")","v":"F"},{"$f":"IF(VAL_MONTHLY_ELECTRICITY!S$3=\"Y\",ROUND(VAL_MONTHLY_ELECTRICITY!Q35,3),\"\")","v":1197.645},{"$f":"IF(VAL_MONTHLY_ELECTRICITY!S$3=\"Y\",IF(VAL_MONTHLY_ELECTRICITY!R35=\"\",\"A\",VAL_MONTHLY_ELECTRICITY!R35),\"\")","v":"E"},{"$f":"IF(VAL_MONTHLY_ELECTRICITY!S$3=\"Y\",IF(VAL_MONTHLY_ELECTRICITY!S35=\"\",\"F\",VAL_MONTHLY_ELECTRICITY!S35),\"\")","v":"F"},{"$f":"IF(VAL_MONTHLY_ELECTRICITY!V$3=\"Y\",ROUND(VAL_MONTHLY_ELECTRICITY!T35,3),\"\")","v":""},{"$f":"IF(VAL_MONTHLY_ELECTRICITY!V$3=\"Y\",IF(VAL_MONTHLY_ELECTRICITY!U35=\"\",\"A\",VAL_MONTHLY_ELECTRICITY!U35),\"\")","v":""},{"$f":"IF(VAL_MONTHLY_ELECTRICITY!V$3=\"Y\",IF(VAL_MONTHLY_ELECTRICITY!V35=\"\",\"F\",VAL_MONTHLY_ELECTRICITY!V35),\"\")","v":""},{"$f":"IF(VAL_MONTHLY_ELECTRICITY!Y$3=\"Y\",ROUND(VAL_MONTHLY_ELECTRICITY!W35,3),\"\")","v":""},{"$f":"IF(VAL_MONTHLY_ELECTRICITY!Y$3=\"Y\",IF(VAL_MONTHLY_ELECTRICITY!X35=\"\",\"A\",VAL_MONTHLY_ELECTRICITY!X35),\"\")","v":""},{"$f":"IF(VAL_MONTHLY_ELECTRICITY!Y$3=\"Y\",IF(VAL_MONTHLY_ELECTRICITY!Y35=\"\",\"F\",VAL_MONTHLY_ELECTRICITY!Y35),\"\")","v":""},{"$f":"IF(VAL_MONTHLY_ELECTRICITY!AB$3=\"Y\",ROUND(VAL_MONTHLY_ELECTRICITY!Z35,3),\"\")","v":""},{"$f":"IF(VAL_MONTHLY_ELECTRICITY!AB$3=\"Y\",IF(VAL_MONTHLY_ELECTRICITY!AA35=\"\",\"A\",VAL_MONTHLY_ELECTRICITY!AA35),\"\")","v":""},{"$f":"IF(VAL_MONTHLY_ELECTRICITY!AB$3=\"Y\",IF(VAL_MONTHLY_ELECTRICITY!AB35=\"\",\"F\",VAL_MONTHLY_ELECTRICITY!AB35),\"\")","v":""},{"$f":"IF(VAL_MONTHLY_ELECTRICITY!AE$3=\"Y\",ROUND(VAL_MONTHLY_ELECTRICITY!AC35,3),\"\")","v":""},{"$f":"IF(VAL_MONTHLY_ELECTRICITY!AE$3=\"Y\",IF(VAL_MONTHLY_ELECTRICITY!AD35=\"\",\"A\",VAL_MONTHLY_ELECTRICITY!AD35),\"\")","v":""},{"$f":"IF(VAL_MONTHLY_ELECTRICITY!AE$3=\"Y\",IF(VAL_MONTHLY_ELECTRICITY!AE35=\"\",\"F\",VAL_MONTHLY_ELECTRICITY!AE35),\"\")","v":""},{"$f":"IF(VAL_MONTHLY_ELECTRICITY!AH$3=\"Y\",ROUND(VAL_MONTHLY_ELECTRICITY!AF35,3),\"\")","v":0},{"$f":"IF(VAL_MONTHLY_ELECTRICITY!AH$3=\"Y\",IF(VAL_MONTHLY_ELECTRICITY!AG35=\"\",\"A\",VAL_MONTHLY_ELECTRICITY!AG35),\"\")","v":"A"},{"$f":"IF(VAL_MONTHLY_ELECTRICITY!AH$3=\"Y\",IF(VAL_MONTHLY_ELECTRICITY!AH35=\"\",\"F\",VAL_MONTHLY_ELECTRICITY!AH35),\"\")","v":"F"},{"$f":"IF(VAL_MONTHLY_ELECTRICITY!AK$3=\"Y\",ROUND(VAL_MONTHLY_ELECTRICITY!AI35,3),\"\")","v":0},{"$f":"IF(VAL_MONTHLY_ELECTRICITY!AK$3=\"Y\",IF(VAL_MONTHLY_ELECTRICITY!AJ35=\"\",\"A\",VAL_MONTHLY_ELECTRICITY!AJ35),\"\")","v":"A"},{"$f":"IF(VAL_MONTHLY_ELECTRICITY!AK$3=\"Y\",IF(VAL_MONTHLY_ELECTRICITY!AK35=\"\",\"F\",VAL_MONTHLY_ELECTRICITY!AK35),\"\")","v":"F"},{"$f":"IF(VAL_MONTHLY_ELECTRICITY!AN$3=\"Y\",ROUND(VAL_MONTHLY_ELECTRICITY!AL35,3),\"\")","v":0},{"$f":"IF(VAL_MONTHLY_ELECTRICITY!AN$3=\"Y\",IF(VAL_MONTHLY_ELECTRICITY!AM35=\"\",\"A\",VAL_MONTHLY_ELECTRICITY!AM35),\"\")","v":"A"},{"$f":"IF(VAL_MONTHLY_ELECTRICITY!AN$3=\"Y\",IF(VAL_MONTHLY_ELECTRICITY!AN35=\"\",\"F\",VAL_MONTHLY_ELECTRICITY!AN35),\"\")","v":"F"}]
[null,null,"ENERGUSE","FINCONSC","_Z","_Z","Total consumption (calculated)",{"$f":"IF(VAL_MONTHLY_ELECTRICITY!G$3=\"Y\",ROUND(VAL_MONTHLY_ELECTRICITY!E36,3),\"\")","v":""},{"$f":"IF(VAL_MONTHLY_ELECTRICITY!G$3=\"Y\",IF(VAL_MONTHLY_ELECTRICITY!F36=\"\",\"A\",VAL_MONTHLY_ELECTRICITY!F36),\"\")","v":""},{"$f":"IF(VAL_MONTHLY_ELECTRICITY!G$3=\"Y\",IF(VAL_MONTHLY_ELECTRICITY!G36=\"\",\"F\",VAL_MONTHLY_ELECTRICITY!G36),\"\")","v":""},{"$f":"IF(VAL_MONTHLY_ELECTRICITY!J$3=\"Y\",ROUND(VAL_MONTHLY_ELECTRICITY!H36,3),\"\")","v":""},{"$f":"IF(VAL_MONTHLY_ELECTRICITY!J$3=\"Y\",IF(VAL_MONTHLY_ELECTRICITY!I36=\"\",\"A\",VAL_MONTHLY_ELECTRICITY!I36),\"\")","v":""},{"$f":"IF(VAL_MONTHLY_ELECTRICITY!J$3=\"Y\",IF(VAL_MONTHLY_ELECTRICITY!J36=\"\",\"F\",VAL_MONTHLY_ELECTRICITY!J36),\"\")","v":""},{"$f":"IF(VAL_MONTHLY_ELECTRICITY!M$3=\"Y\",ROUND(VAL_MONTHLY_ELECTRICITY!K36,3),\"\")","v":""},{"$f":"IF(VAL_MONTHLY_ELECTRICITY!M$3=\"Y\",IF(VAL_MONTHLY_ELECTRICITY!L36=\"\",\"A\",VAL_MONTHLY_ELECTRICITY!L36),\"\")","v":""},{"$f":"IF(VAL_MONTHLY_ELECTRICITY!M$3=\"Y\",IF(VAL_MONTHLY_ELECTRICITY!M36=\"\",\"F\",VAL_MONTHLY_ELECTRICITY!M36),\"\")","v":""},{"$f":"IF(VAL_MONTHLY_ELECTRICITY!P$3=\"Y\",ROUND(VAL_MONTHLY_ELECTRICITY!N36,3),\"\")","v":4889.1059999999998},{"$f":"IF(VAL_MONTHLY_ELECTRICITY!P$3=\"Y\",IF(VAL_MONTHLY_ELECTRICITY!O36=\"\",\"A\",VAL_MONTHLY_ELECTRICITY!O36),\"\")","v":"A"},{"$f":"IF(VAL_MONTHLY_ELECTRICITY!P$3=\"Y\",IF(VAL_MONTHLY_ELECTRICITY!P36=\"\",\"F\",VAL_MONTHLY_ELECTRICITY!P36),\"\")","v":"F"},{"$f":"IF(VAL_MONTHLY_ELECTRICITY!S$3=\"Y\",ROUND(VAL_MONTHLY_ELECTRICITY!Q36,3),\"\")","v":4814.5929999999998},{"$f":"IF(VAL_MONTHLY_ELECTRICITY!S$3=\"Y\",IF(VAL_MONTHLY_ELECTRICITY!R36=\"\",\"A\",VAL_MONTHLY_ELECTRICITY!R36),\"\")","v":"A"},{"$f":"IF(VAL_MONTHLY_ELECTRICITY!S$3=\"Y\",IF(VAL_MONTHLY_ELECTRICITY!S36=\"\",\"F\",VAL_MONTHLY_ELECTRICITY!S36),\"\")","v":"F"},{"$f":"IF(VAL_MONTHLY_ELECTRICITY!V$3=\"Y\",ROUND(VAL_MONTHLY_ELECTRICITY!T36,3),\"\")","v":""},{"$f":"IF(VAL_MONTHLY_ELECTRICITY!V$3=\"Y\",IF(VAL_MONTHLY_ELECTRICITY!U36=\"\",\"A\",VAL_MONTHLY_ELECTRICITY!U36),\"\")","v":""},{"$f":"IF(VAL_MONTHLY_ELECTRICITY!V$3=\"Y\",IF(VAL_MONTHLY_ELECTRICITY!V36=\"\",\"F\",VAL_MONTHLY_ELECTRICITY!V36),\"\")","v":""},{"$f":"IF(VAL_MONTHLY_ELECTRICITY!Y$3=\"Y\",ROUND(VAL_MONTHLY_ELECTRICITY!W36,3),\"\")","v":""},{"$f":"IF(VAL_MONTHLY_ELECTRICITY!Y$3=\"Y\",IF(VAL_MONTHLY_ELECTRICITY!X36=\"\",\"A\",VAL_MONTHLY_ELECTRICITY!X36),\"\")","v":""},{"$f":"IF(VAL_MONTHLY_ELECTRICITY!Y$3=\"Y\",IF(VAL_MONTHLY_ELECTRICITY!Y36=\"\",\"F\",VAL_MONTHLY_ELECTRICITY!Y36),\"\")","v":""},{"$f":"IF(VAL_MONTHLY_ELECTRICITY!AB$3=\"Y\",ROUND(VAL_MONTHLY_ELECTRICITY!Z36,3),\"\")","v":""},{"$f":"IF(VAL_MONTHLY_ELECTRICITY!AB$3=\"Y\",IF(VAL_MONTHLY_ELECTRICITY!AA36=\"\",\"A\",VAL_MONTHLY_ELECTRICITY!AA36),\"\")","v":""},{"$f":"IF(VAL_MONTHLY_ELECTRICITY!AB$3=\"Y\",IF(VAL_MONTHLY_ELECTRICITY!AB36=\"\",\"F\",VAL_MONTHLY_ELECTRICITY!AB36),\"\")","v":""},{"$f":"IF(VAL_MONTHLY_ELECTRICITY!AE$3=\"Y\",ROUND(VAL_MONTHLY_ELECTRICITY!AC36,3),\"\")","v":""},{"$f":"IF(VAL_MONTHLY_ELECTRICITY!AE$3=\"Y\",IF(VAL_MONTHLY_ELECTRICITY!AD36=\"\",\"A\",VAL_MONTHLY_ELECTRICITY!AD36),\"\")","v":""},{"$f":"IF(VAL_MONTHLY_ELECTRICITY!AE$3=\"Y\",IF(VAL_MONTHLY_ELECTRICITY!AE36=\"\",\"F\",VAL_MONTHLY_ELECTRICITY!AE36),\"\")","v":""},{"$f":"IF(VAL_MONTHLY_ELECTRICITY!AH$3=\"Y\",ROUND(VAL_MONTHLY_ELECTRICITY!AF36,3),\"\")","v":0},{"$f":"IF(VAL_MONTHLY_ELECTRICITY!AH$3=\"Y\",IF(VAL_MONTHLY_ELECTRICITY!AG36=\"\",\"A\",VAL_MONTHLY_ELECTRICITY!AG36),\"\")","v":"A"},{"$f":"IF(VAL_MONTHLY_ELECTRICITY!AH$3=\"Y\",IF(VAL_MONTHLY_ELECTRICITY!AH36=\"\",\"F\",VAL_MONTHLY_ELECTRICITY!AH36),\"\")","v":"F"},{"$f":"IF(VAL_MONTHLY_ELECTRICITY!AK$3=\"Y\",ROUND(VAL_MONTHLY_ELECTRICITY!AI36,3),\"\")","v":0},{"$f":"IF(VAL_MONTHLY_ELECTRICITY!AK$3=\"Y\",IF(VAL_MONTHLY_ELECTRICITY!AJ36=\"\",\"A\",VAL_MONTHLY_ELECTRICITY!AJ36),\"\")","v":"A"},{"$f":"IF(VAL_MONTHLY_ELECTRICITY!AK$3=\"Y\",IF(VAL_MONTHLY_ELECTRICITY!AK36=\"\",\"F\",VAL_MONTHLY_ELECTRICITY!AK36),\"\")","v":"F"},{"$f":"IF(VAL_MONTHLY_ELECTRICITY!AN$3=\"Y\",ROUND(VAL_MONTHLY_ELECTRICITY!AL36,3),\"\")","v":0},{"$f":"IF(VAL_MONTHLY_ELECTRICITY!AN$3=\"Y\",IF(VAL_MONTHLY_ELECTRICITY!AM36=\"\",\"A\",VAL_MONTHLY_ELECTRICITY!AM36),\"\")","v":"A"},{"$f":"IF(VAL_MONTHLY_ELECTRICITY!AN$3=\"Y\",IF(VAL_MONTHLY_ELECTRICITY!AN36=\"\",\"F\",VAL_MONTHLY_ELECTRICITY!AN36),\"\")","v":"F"}]